{"text_format":"1","workbook":"xlsx","n_sheets":6,"sheets":["Machine","Shift1","Shift2","Shift3","Total","Report"],"not_rendered":{"charts":0,"images":0,"macros":1,"external_links":0,"defined_names":5,"comments":0,"pivot_tables":0},"unopened":[],"bounds":{"document_bytes":16777216,"sheet_cells":100000,"rows_first":2000,"rows_last":500,"rows_between":2000,"halvings":0,"cell_chars":16384,"cell_head_chars":4096},"cells_cut":0,"cells_raw":0,"read":"whole","date_system":"1900"}

{"sheet":"Machine","index":0,"n_rows":597,"n_cols":5,"rows_kept":597,"cut":false,"hidden":false,"merged":[]}
["Machine number","Machine Name","Machine Type","Production in millimeters"," Drawing Jakar"]
[1,"Crosha",null,0.05]
[2,"Crosha",null,0.06]
[3,"Crosha",null,7.0000000000000007E-2]
[4,"Crosha",null,0.08]
[5,"Crosha",null,0.09]
[6,"Crosha",null,0.1]
[7,"Crosha",null,0.11]
[8,"Crosha",null,0.12]
[9,"Crosha",null,0.13]
[10,"Crosha",null,0.14000000000000001]
[11,"Crosha",null,0.15]
[12,"Crosha",null,1]
[13,"Crosha",null,0.17]
[14,"Crosha",null,0.18]
[15,"Crosha",null,0.19]
[16,"Crosha",null,0.2]
[17,"Crosha",null,0.21]
[18,"Crosha",null,0.22]
[19,"Crosha",null,0.23]
[20,"Crosha",null,0.24]
[21,"Crosha",null,0.25]
[22,"Crosha",null,0.26]
[23,"Crosha",null,0.27]
[24,"Crosha",null,0.28000000000000003]
[25,"Crosha",null,0.28999999999999998]
[26,"Crosha",null,0.3]
[27,"Crosha",null,0.31]
[28,"Crosha",null,0.32]
[29,"Crosha",null,0.33]
[30,"Crosha",null,0.34]
[31,"Crosha",null,0.35]
[32,"Crosha",null,0.36]
[33,"Crosha",null,0.37]
[34,"Crosha",null,0.38]
[35,"Crosha",null,0.39]
[36,"Crosha",null,0.4]
[37,"Crosha",null,0.41]
[38,"Crosha",null,0.42]
[39,"Crosha",null,0.43]
[40,"Crosha",null,0.44]
[41,"Crosha",null,0.45]
[42,"Crosha",null,0.46]
[43,"Crosha",null,0.47]
[44,"Crosha",null,0.48]
[45,"Crosha",null,0.49]
[46,"Crosha",null,0.5]
[47,"Crosha",null,0.51]
[48,"Crosha",null,0.52]
[49,"Crosha",null,0.53]
[50,"Crosha",null,0.54]
[51,"Crosha",null,0.55000000000000004]
[52,"Crosha",null,0.56000000000000005]
[53,"Crosha",null,0.56999999999999995]
[54,"Crosha",null,0.57999999999999996]
[55,"Crosha",null,0.59]
[56,"Crosha",null,0.6]
[57,"Crosha",null,0.61]
[58,"Crosha",null,0.62]
[59,"Crosha",null,0.63]
[60,"Crosha",null,0.64]
[61,"Crosha",null,0.65]
[62,"Crosha",null,0.66]
[63,"Crosha",null,0.67]
[64,"Crosha",null,0.68]
[65,"Crosha",null,0.69]
[66,"Crosha",null,0.7]
[67,"Crosha",null,0.71]
[68,"Crosha",null,0.72]
[69,"Crosha",null,0.73]
[70,"Crosha",null,0.74]
[71,"Crosha",null,0.75]
[72,"Crosha",null,0.76]
[73,"Crosha",null,0.77]
[74,"Crosha",null,0.78]
[75,"Crosha",null,0.79]
[76,"Crosha",null,0.8]
[77,"Crosha",null,0.81]
[78,"Crosha",null,0.82]
[79,"Crosha",null,0.83]
[80,"Crosha",null,0.84]
[81,"Crosha",null,0.85]
[82,"Crosha",null,0.86]
[83,"Crosha",null,0.87]
[84,"Crosha",null,0.88]
[85,"Crosha",null,0.89]
[86,"Crosha",null,0.9]
[87,"Crosha",null,0.91]
[88,"Crosha",null,0.92]
[89,"Crosha",null,0.93]
[90,"Crosha",null,0.94]
[91,"Crosha",null,0.95]
[92,"Crosha",null,0.96]
[93,"Crosha",null,0.97]
[94,"Crosha",null,0.98]
[95,"Crosha",null,0.99]
[96,"Crosha",null,1]
[97,"Crosha",null,1.01]
[98,"Crosha",null,1.02]
[99,"Crosha",null,1.03]
[100,"Crosha",null,1.04]
[101,"Jakar",null,1.05]
[102,"Jakar",null,1.06]
[103,"Jakar",null,1.07]
[104,"Jakar",null,1.08]
[105,"Jakar",null,1.0900000000000001]
[106,"Jakar",null,1.1000000000000001]
[107,"Jakar",null,1.1100000000000001]
[108,"Jakar",null,1.1200000000000001]
[109,"Jakar",null,1.1299999999999999]
[110,"Jakar",null,1.1399999999999999]
[111,"Jakar",null,1.1499999999999999]
[112,"Jakar",null,1.1599999999999999]
[113,"Jakar",null,1.17]
[114,"Jakar",null,1.18]
[115,"Jakar",null,1.19]
[116,"Jakar",null,1.2]
[117,"Jakar",null,1.21]
[118,"Jakar",null,1.22]
[119,"Jakar",null,1.23]
[120,"Jakar",null,1.24]
[121,"Jakar",null,1.25]
[122,"Jakar",null,1.26]
[123,"Jakar",null,1.27]
[124,"Jakar",null,1.28]
[125,"Jakar",null,1.29]
[126,"Jakar",null,1.3]
[127,"Jakar",null,1.31]
[128,"Jakar",null,1.32]
[129,"Jakar",null,1.33]
[130,"Jakar",null,1.34]
[131,"Jakar",null,1.35]
[132,"Jakar",null,1.36]
[133,"Jakar",null,1.37]
[134,"Jakar",null,1.38]
[135,"Jakar",null,1.39]
[136,"Jakar",null,1.4]
[137,"Jakar",null,1.41]
[138,"Jakar",null,1.42]
[139,"Jakar",null,1.43]
[140,"Jakar",null,1.44]
[141,"Jakar",null,1.45]
[142,"Jakar",null,1.46]
[143,"Jakar",null,1.47]
[144,"Jakar",null,1.48]
[145,"Jakar",null,1.49]
[146,"Jakar",null,1.5]
[147,"Jakar",null,1.51]
[148,"Jakar",null,1.52]
[149,"Jakar",null,1.53]
[150,"Jakar",null,1.54]
[151,"Jakar",null,1.55]
[152,"Jakar",null,1.56]
[153,"Jakar",null,1.57]
[154,"Jakar",null,1.58]
[155,"Jakar",null,1.59]
[156,"Jakar",null,1.6]
[157,"Jakar",null,1.61]
[158,"Jakar",null,1.62]
[159,"Jakar",null,1.63]
[160,"Jakar",null,1.64]
[161,"Jakar",null,1.65]
[162,"Jakar",null,1.66]
[163,"Jakar",null,1.67]
[164,"Jakar",null,1.68]
[165,"Jakar",null,1.69]
[166,"Jakar",null,1.7]
[167,"Jakar",null,1.71]
[168,"Jakar",null,1.72]
[169,"Jakar",null,1.73]
[170,"Jakar",null,1.74]
[171,"Jakar",null,1.75]
[172,"Jakar",null,1.76]
[173,"Jakar",null,1.77]
[174,"Jakar",null,1.78]
[175,"Jakar",null,1.79]
[176,"Jakar",null,1.8]
[177,"Jakar",null,1.81]
[178,"Jakar",null,1.82]
[179,"Jakar",null,1.83]
[180,"Jakar",null,1.84]
[181,"Jakar",null,1.85]
[182,"Jakar",null,1.86]
[183,"Jakar",null,1.87]
[184,"Jakar",null,1.88]
[185,"Jakar",null,1.89]
[186,"Jakar",null,1.9]
[187,"Jakar",null,1.91]
[188,"Jakar",null,1.92]
[189,"Jakar",null,1.93]
[190,"Jakar",null,1.94]
[191,"Jakar",null,1.95]
[192,"Jakar",null,1.96]
[193,"Jakar",null,1.97]
[194,"Jakar",null,1.98]
[195,"Jakar",null,1.99]
[196,"Jakar",null,2]
[197,"Jakar",null,2.0099999999999998]
[198,"Jakar",null,2.02]
[199,"Jakar",null,2.0299999999999998]
[200,"Jakar",null,2.04]
[201,"Jakar",null,2.0499999999999998]
[202,"Jakar",null,2.06]
[203,"Jakar",null,2.0699999999999998]
[204,"Jakar",null,2.08]
[205,"Jakar",null,2.09]
[206,"Jakar",null,2.1]
[207,"Jakar",null,2.11]
[208,"Jakar",null,2.12]
[209,"Jakar",null,2.13]
[210,"Jakar",null,2.14]
[211,"Jakar",null,2.15]
[212,"Jakar",null,2.16]
[213,"Jakar",null,2.17]
[214,"Jakar",null,2.1800000000000002]
[215,"Jakar",null,2.19]
[216,"Jakar",null,2.2000000000000002]
[217,"Jakar",null,2.21]
[218,"Jakar",null,2.2200000000000002]
[219,"Jakar",null,2.23]
[220,"Jakar",null,2.2400000000000002]
[221,"Jakar",null,2.25]
[222,"Jakar",null,2.2599999999999998]
[223,"Jakar",null,2.27]
[224,"Jakar",null,2.2799999999999998]
[225,"Jakar",null,2.29]
[226,"Jakar",null,2.2999999999999998]
[227,"Jakar",null,2.31]
[228,"Jakar",null,2.3199999999999998]
[229,"Jakar",null,2.33]
[230,"Jakar",null,2.34]
[231,"Jakar",null,2.35]
[232,"Jakar",null,2.36]
[233,"Jakar",null,2.37]
[234,"Jakar",null,2.38]
[235,"Jakar",null,2.39]
[236,"Jakar",null,2.4]
[237,"Jakar",null,2.41]
[238,"Jakar",null,2.42]
[239,"Jakar",null,2.4300000000000002]
[240,"Jakar",null,2.44]
[241,"Jakar",null,2.4500000000000002]
[242,"Jakar",null,2.46]
[243,"Jakar",null,2.4700000000000002]
[244,"Jakar",null,2.48]
[245,"Jakar",null,2.4900000000000002]
[246,"Jakar",null,2.5]
[247,"Jakar",null,2.5099999999999998]
[248,"Jakar",null,2.52]
[249,"Jakar",null,2.5299999999999998]
[250,"Jakar",null,2.54]
[251,"Jakar",null,2.5499999999999998]
[252,"Jakar",null,2.56]
[253,"Jakar",null,2.57]
[254,"Jakar",null,2.58]
[255,"Jakar",null,2.59]
[256,"Jakar",null,2.6]
[257,"Jakar",null,2.61]
[258,"Jakar",null,2.62]
[259,"Jakar",null,2.63]
[260,"Jakar",null,2.64]
[261,"Jakar",null,2.65]
[262,"Jakar",null,2.66]
[263,"Jakar",null,2.67]
[264,"Jakar",null,2.68]
[265,"Jakar",null,2.69]
[266,"Jakar",null,2.7]
[267,"Jakar",null,2.71]
[268,"Jakar",null,2.72]
[269,"Jakar",null,2.73]
[270,"Jakar",null,2.74]
[271,"Jakar",null,2.75]
[272,"Jakar",null,2.76]
[273,"Jakar",null,2.77]
[274,"Jakar",null,2.78]
[275,"Jakar",null,2.79]
[276,"Jakar",null,2.8]
[277,"Jakar",null,2.81]
[278,"Jakar",null,2.82]
[279,"Jakar",null,2.83]
[280,"Jakar",null,2.84]
[281,"Jakar",null,2.85]
[282,"Jakar",null,2.86]
[283,"Jakar",null,2.87]
[284,"Jakar",null,2.88]
[285,"Jakar",null,2.89]
[286,"Jakar",null,2.9]
[287,"Jakar",null,2.91]
[288,"Jakar",null,2.92]
[289,"Jakar",null,2.93]
[290,"Jakar",null,2.94]
[291,"Jakar",null,2.95]
[292,"Jakar",null,2.96]
[293,"Jakar",null,2.97]
[294,"Jakar",null,2.98]
[295,"Jakar",null,2.99]
[296,"Jakar",null,3]
[297,"Jakar",null,3.01]
[298,"Jakar",null,3.02]
[299,"Jakar",null,3.03]
[300,"Jakar",null,3.04]
[301,"Electric iron",null,3.05]
[302,"Electric iron",null,3.06]
[303,"Electric iron",null,3.07]
[304,"Electric iron",null,3.08]
[305,"Electric iron",null,3.09]
[306,"Electric iron",null,3.1]
[307,"Electric iron",null,3.11]
[308,"Electric iron",null,3.12]
[309,"Electric iron",null,3.13]
[310,"Electric iron",null,3.14]
[311,"Electric iron",null,3.15]
[312,"Electric iron",null,3.16]
[313,"Electric iron",null,3.17]
[314,"Electric iron",null,3.18]
[315,"Electric iron",null,3.19]
[null,null,null,3.2]
[null,null,null,3.21]
[null,null,null,3.22]
[null,null,null,3.23]
[null,null,null,3.24]
[null,null,null,3.25]
[null,null,null,3.26]
[null,null,null,3.27]
[null,null,null,3.28]
[null,null,null,3.29]
[null,null,null,3.3]
[null,null,null,3.31]
[null,null,null,3.32]
[null,null,null,3.33]
[null,null,null,3.34]
[null,null,null,3.35]
[null,null,null,3.36]
[null,null,null,3.37]
[null,null,null,3.38]
[null,null,null,3.39]
[null,null,null,3.4]
[null,null,null,3.41]
[null,null,null,3.42]
[null,null,null,3.43]
[null,null,null,3.44]
[null,null,null,3.45]
[null,null,null,3.46]
[null,null,null,3.47]
[null,null,null,3.48]
[null,null,null,3.49]
[null,null,null,3.5]
[null,null,null,3.51]
[null,null,null,3.52]
[null,null,null,3.53]
[null,null,null,3.54]
[null,null,null,3.55]
[null,null,null,3.56]
[null,null,null,3.57]
[null,null,null,3.58]
[null,null,null,3.59]
[null,null,null,3.6]
[null,null,null,3.61]
[null,null,null,3.62]
[null,null,null,3.63]
[null,null,null,3.64]
[null,null,null,3.65]
[null,null,null,3.66]
[null,null,null,3.67]
[null,null,null,3.68]
[null,null,null,3.69]
[null,null,null,3.7]
[null,null,null,3.71]
[null,null,null,3.72]
[null,null,null,3.73]
[null,null,null,3.74]
[null,null,null,3.75]
[null,null,null,3.76]
[null,null,null,3.77]
[null,null,null,3.78]
[null,null,null,3.79]
[null,null,null,3.8]
[null,null,null,3.81]
[null,null,null,3.82]
[null,null,null,3.83]
[null,null,null,3.84]
[null,null,null,3.85]
[null,null,null,3.86]
[null,null,null,3.87]
[null,null,null,3.88]
[null,null,null,3.89]
[null,null,null,3.9]
[null,null,null,3.91]
[null,null,null,3.92]
[null,null,null,3.93]
[null,null,null,3.94]
[null,null,null,3.95]
[null,null,null,3.96]
[null,null,null,3.97]
[null,null,null,3.98]
[null,null,null,3.99]
[null,null,null,4]
[null,null,null,4.01]
[null,null,null,4.0199999999999996]
[null,null,null,4.03]
[null,null,null,4.04]
[null,null,null,4.05]
[null,null,null,4.0599999999999996]
[null,null,null,4.07]
[null,null,null,4.08]
[null,null,null,4.09]
[null,null,null,4.0999999999999996]
[null,null,null,4.1100000000000003]
[null,null,null,4.12]
[null,null,null,4.13]
[null,null,null,4.1399999999999997]
[null,null,null,4.1500000000000004]
[null,null,null,4.16]
[null,null,null,4.17]
[null,null,null,4.18]
[null,null,null,4.1900000000000004]
[null,null,null,4.2]
[null,null,null,4.21]
[null,null,null,4.22]
[null,null,null,4.2300000000000004]
[null,null,null,4.24]
[null,null,null,4.25]
[null,null,null,4.26]
[null,null,null,4.2699999999999996]
[null,null,null,4.28]
[null,null,null,4.29]
[null,null,null,4.3]
[null,null,null,4.3099999999999996]
[null,null,null,4.32]
[null,null,null,4.33]
[null,null,null,4.34]
[null,null,null,4.3499999999999996]
[null,null,null,4.3600000000000003]
[null,null,null,4.37]
[null,null,null,4.38]
[null,null,null,4.3899999999999997]
[null,null,null,4.4000000000000004]
[null,null,null,4.41]
[null,null,null,4.42]
[null,null,null,4.43]
[null,null,null,4.4400000000000004]
[null,null,null,4.45]
[null,null,null,4.46]
[null,null,null,4.47]
[null,null,null,4.4800000000000004]
[null,null,null,4.49]
[null,null,null,4.5]
[null,null,null,4.51]
[null,null,null,4.5199999999999996]
[null,null,null,4.53]
[null,null,null,4.54]
[null,null,null,4.55]
[null,null,null,4.5599999999999996]
[null,null,null,4.57]
[null,null,null,4.58]
[null,null,null,4.59]
[null,null,null,4.5999999999999996]
[null,null,null,4.6100000000000003]
[null,null,null,4.62]
[null,null,null,4.63]
[null,null,null,4.6399999999999997]
[null,null,null,4.6500000000000004]
[null,null,null,4.66]
[null,null,null,4.67]
[null,null,null,4.68]
[null,null,null,4.6900000000000004]
[null,null,null,4.7]
[null,null,null,4.71]
[null,null,null,4.72]
[null,null,null,4.7300000000000004]
[null,null,null,4.74]
[null,null,null,4.75]
[null,null,null,4.76]
[null,null,null,4.7699999999999996]
[null,null,null,4.78]
[null,null,null,4.79]
[null,null,null,4.8]
[null,null,null,4.8099999999999996]
[null,null,null,4.82]
[null,null,null,4.83]
[null,null,null,4.84]
[null,null,null,4.8499999999999996]
[null,null,null,4.8600000000000003]
[null,null,null,4.87]
[null,null,null,4.88]
[null,null,null,4.8899999999999997]
[null,null,null,4.9000000000000004]
[null,null,null,4.91]
[null,null,null,4.92]
[null,null,null,4.93]
[null,null,null,4.9400000000000004]
[null,null,null,4.95]
[null,null,null,4.96]
[null,null,null,4.97]
[null,null,null,4.9800000000000004]
[null,null,null,4.99]
[null,null,null,5]
[null,null,null,5.01]
[null,null,null,5.0199999999999996]
[null,null,null,5.03]
[null,null,null,5.04]
[null,null,null,5.05]
[null,null,null,5.0599999999999996]
[null,null,null,5.07]
[null,null,null,5.08]
[null,null,null,5.09]
[null,null,null,5.0999999999999996]
[null,null,null,5.1100000000000003]
[null,null,null,5.12]
[null,null,null,5.13]
[null,null,null,5.14]
[null,null,null,5.15]
[null,null,null,5.16]
[null,null,null,5.17]
[null,null,null,5.18]
[null,null,null,5.19]
[null,null,null,5.2]
[null,null,null,5.21]
[null,null,null,5.22]
[null,null,null,5.23]
[null,null,null,5.24]
[null,null,null,5.25]
[null,null,null,5.26]
[null,null,null,5.27]
[null,null,null,5.28]
[null,null,null,5.29]
[null,null,null,5.3]
[null,null,null,5.31]
[null,null,null,5.32]
[null,null,null,5.33]
[null,null,null,5.34]
[null,null,null,5.35]
[null,null,null,5.36]
[null,null,null,5.37]
[null,null,null,5.38]
[null,null,null,5.39]
[null,null,null,5.4]
[null,null,null,5.41]
[null,null,null,5.42]
[null,null,null,5.43]
[null,null,null,5.44]
[null,null,null,5.45]
[null,null,null,5.46]
[null,null,null,5.47]
[null,null,null,5.48]
[null,null,null,5.49]
[null,null,null,5.5]
[null,null,null,5.51]
[null,null,null,5.52]
[null,null,null,5.53]
[null,null,null,5.54]
[null,null,null,5.55]
[null,null,null,5.56]
[null,null,null,5.57]
[null,null,null,5.58]
[null,null,null,5.59]
[null,null,null,5.6]
[null,null,null,5.61]
[null,null,null,5.62]
[null,null,null,5.63]
[null,null,null,5.64]
[null,null,null,5.65]
[null,null,null,5.66]
[null,null,null,5.67]
[null,null,null,5.68]
[null,null,null,5.69]
[null,null,null,5.7]
[null,null,null,5.71]
[null,null,null,5.72]
[null,null,null,5.73]
[null,null,null,5.74]
[null,null,null,5.75]
[null,null,null,5.76]
[null,null,null,5.77]
[null,null,null,5.78]
[null,null,null,5.79]
[null,null,null,5.8]
[null,null,null,5.81]
[null,null,null,5.82]
[null,null,null,5.83]
[null,null,null,5.84]
[null,null,null,5.85]
[null,null,null,5.86]
[null,null,null,5.87]
[null,null,null,5.88]
[null,null,null,5.89]
[null,null,null,5.9]
[null,null,null,5.91]
[null,null,null,5.92]
[null,null,null,5.93]
[null,null,null,5.94]
[null,null,null,5.95]
[null,null,null,5.96]
[null,null,null,5.97]
[null,null,null,5.98]
[null,null,null,5.99]
[null,null,null,6]

{"sheet":"Shift1","index":1,"n_rows":995,"n_cols":14,"rows_kept":995,"cut":false,"hidden":false,"merged":[]}
[]
["Date","Machine No.","Machine Name","Gm/ML","Size MM"," Drawing  "," KG.\\ day","ML X KG."," ML.\\ day","Color","Shift"," name of the employee","OR No.","Comment"]
[{"$f":"IF(B3=\"\",\"\",IF(A3=\"\",TODAY(),A3))","v":"2019-02-12"},200,{"$f":"IFERROR(VLOOKUP(B3,Machine!A2:B597,2,FALSE),\"\")","v":"Jakar"},50,0.06,"SSSSSSS",250,{"$f":"IFERROR(ROUND(SUM(1000/D3),2),\"\")","v":20},{"$f":"IFERROR(ROUND(SUM(G3*H3),2),\"\")","v":5000},"A prominent Black",1,"مسعد رمزي مسعد",2222,"yyyuut"]
[{"$f":"IF(B4=\"\",\"\",IF(A4=\"\",TODAY(),A4))","v":"2019-02-12"},300,{"$f":"IFERROR(VLOOKUP(B4,Machine!A3:B598,2,FALSE),\"\")","v":"Jakar"},30,7.0000000000000007E-2,"tttt",310,{"$f":"IFERROR(ROUND(SUM(1000/D4),2),\"\")","v":33.33},{"$f":"IFERROR(ROUND(SUM(G4*H4),2),\"\")","v":10332.299999999999},"Black&White",1,"علي مراد حسن",3333,"ttttt"]
["2019-02-12",100,{"$f":"IFERROR(VLOOKUP(B5,Machine!A4:B599,2,FALSE),\"\")","v":"Crosha"},20,0.08,"ffffffff",200,50,10000,"A prominent White",1,"منصور محمد منصور",44444,"mmmmmm"]
["",null,{"$f":"IFERROR(VLOOKUP(B6,Machine!A5:B600,2,FALSE),\"\")","v":""},null,null,null,null,"","",null,1]
["",null,{"$f":"IFERROR(VLOOKUP(B7,Machine!A6:B601,2,FALSE),\"\")","v":""},null,null,null,null,"","",null,1]
["",null,{"$f":"IFERROR(VLOOKUP(B8,Machine!A7:B602,2,FALSE),\"\")","v":""},null,null,null,null,"","",null,1]
["",null,{"$f":"IFERROR(VLOOKUP(B9,Machine!A8:B603,2,FALSE),\"\")","v":""},null,null,null,null,"","",null,1]
["",null,{"$f":"IFERROR(VLOOKUP(B10,Machine!A9:B604,2,FALSE),\"\")","v":""},null,null,null,null,"","",null,1]
["",null,{"$f":"IFERROR(VLOOKUP(B11,Machine!A10:B605,2,FALSE),\"\")","v":""},null,null,null,null,"","",null,1]
["",null,{"$f":"IFERROR(VLOOKUP(B12,Machine!A11:B606,2,FALSE),\"\")","v":""},null,null,null,null,"","",null,1]
["",null,{"$f":"IFERROR(VLOOKUP(B13,Machine!A12:B607,2,FALSE),\"\")","v":""},null,null,null,null,"","",null,1]
["",null,{"$f":"IFERROR(VLOOKUP(B14,Machine!A13:B608,2,FALSE),\"\")","v":""},null,null,null,null,"","",null,1]
["",null,{"$f":"IFERROR(VLOOKUP(B15,Machine!A14:B609,2,FALSE),\"\")","v":""},null,null,null,null,"","",null,1]
["",null,{"$f":"IFERROR(VLOOKUP(B16,Machine!A15:B610,2,FALSE),\"\")","v":""},null,null,null,null,"","",null,1]
["",null,{"$f":"IFERROR(VLOOKUP(B17,Machine!A16:B611,2,FALSE),\"\")","v":""},null,null,null,null,"","",null,1]
["",null,{"$f":"IFERROR(VLOOKUP(B18,Machine!A17:B612,2,FALSE),\"\")","v":""},null,null,null,null,"","",null,1]
["",null,{"$f":"IFERROR(VLOOKUP(B19,Machine!A18:B613,2,FALSE),\"\")","v":""},null,null,null,null,"","",null,1]
["",null,{"$f":"IFERROR(VLOOKUP(B20,Machine!A19:B614,2,FALSE),\"\")","v":""},null,null,null,null,"","",null,1]
["",null,{"$f":"IFERROR(VLOOKUP(B21,Machine!A20:B615,2,FALSE),\"\")","v":""},null,null,null,null,"","",null,1]
["",null,{"$f":"IFERROR(VLOOKUP(B22,Machine!A21:B616,2,FALSE),\"\")","v":""},null,null,null,null,"","",null,1]
["",null,{"$f":"IFERROR(VLOOKUP(B23,Machine!A22:B617,2,FALSE),\"\")","v":""},null,null,null,null,"","",null,1]
["",null,{"$f":"IFERROR(VLOOKUP(B24,Machine!A23:B618,2,FALSE),\"\")","v":""},null,null,null,null,"","",null,1]
["",null,{"$f":"IFERROR(VLOOKUP(B25,Machine!A24:B619,2,FALSE),\"\")","v":""},null,null,null,null,"","",null,1]
["",null,{"$f":"IFERROR(VLOOKUP(B26,Machine!A25:B620,2,FALSE),\"\")","v":""},null,null,null,null,"","",null,1]
["",null,{"$f":"IFERROR(VLOOKUP(B27,Machine!A26:B621,2,FALSE),\"\")","v":""},null,null,null,null,"","",null,1]
["",null,{"$f":"IFERROR(VLOOKUP(B28,Machine!A27:B622,2,FALSE),\"\")","v":""},null,null,null,null,"","",null,1]
["",null,{"$f":"IFERROR(VLOOKUP(B29,Machine!A28:B623,2,FALSE),\"\")","v":""},null,null,null,null,"","",null,1]
["",null,{"$f":"IFERROR(VLOOKUP(B30,Machine!A29:B624,2,FALSE),\"\")","v":""},null,null,null,null,"","",null,1]
["",null,{"$f":"IFERROR(VLOOKUP(B31,Machine!A30:B625,2,FALSE),\"\")","v":""},null,null,null,null,"","",null,1]
["",null,{"$f":"IFERROR(VLOOKUP(B32,Machine!A31:B626,2,FALSE),\"\")","v":""},null,null,null,null,"","",null,1]
["",null,{"$f":"IFERROR(VLOOKUP(B33,Machine!A32:B627,2,FALSE),\"\")","v":""},null,null,null,null,"","",null,1]
["",null,{"$f":"IFERROR(VLOOKUP(B34,Machine!A33:B628,2,FALSE),\"\")","v":""},null,null,null,null,"","",null,1]
["",null,{"$f":"IFERROR(VLOOKUP(B35,Machine!A34:B629,2,FALSE),\"\")","v":""},null,null,null,null,"","",null,1]
["",null,{"$f":"IFERROR(VLOOKUP(B36,Machine!A35:B630,2,FALSE),\"\")","v":""},null,null,null,null,"","",null,1]
["",null,{"$f":"IFERROR(VLOOKUP(B37,Machine!A36:B631,2,FALSE),\"\")","v":""},null,null,null,null,"","",null,1]
["",null,{"$f":"IFERROR(VLOOKUP(B38,Machine!A37:B632,2,FALSE),\"\")","v":""},null,null,null,null,"","",null,1]
["",null,{"$f":"IFERROR(VLOOKUP(B39,Machine!A38:B633,2,FALSE),\"\")","v":""},null,null,null,null,"","",null,1]
["",null,{"$f":"IFERROR(VLOOKUP(B40,Machine!A39:B634,2,FALSE),\"\")","v":""},null,null,null,null,"","",null,1]
["",null,{"$f":"IFERROR(VLOOKUP(B41,Machine!A40:B635,2,FALSE),\"\")","v":""},null,null,null,null,"","",null,1]
["",null,{"$f":"IFERROR(VLOOKUP(B42,Machine!A41:B636,2,FALSE),\"\")","v":""},null,null,null,null,"","",null,1]
["",null,{"$f":"IFERROR(VLOOKUP(B43,Machine!A42:B637,2,FALSE),\"\")","v":""},null,null,null,null,"","",null,1]
["",null,{"$f":"IFERROR(VLOOKUP(B44,Machine!A43:B638,2,FALSE),\"\")","v":""},null,null,null,null,"","",null,1]
["",null,{"$f":"IFERROR(VLOOKUP(B45,Machine!A44:B639,2,FALSE),\"\")","v":""},null,null,null,null,"","",null,1]
["",null,{"$f":"IFERROR(VLOOKUP(B46,Machine!A45:B640,2,FALSE),\"\")","v":""},null,null,null,null,"","",null,1]
["",null,{"$f":"IFERROR(VLOOKUP(B47,Machine!A46:B641,2,FALSE),\"\")","v":""},null,null,null,null,"","",null,1]
["",null,{"$f":"IFERROR(VLOOKUP(B48,Machine!A47:B642,2,FALSE),\"\")","v":""},null,null,null,null,"","",null,1]
["",null,{"$f":"IFERROR(VLOOKUP(B49,Machine!A48:B643,2,FALSE),\"\")","v":""},null,null,null,null,"","",null,1]
["",null,{"$f":"IFERROR(VLOOKUP(B50,Machine!A49:B644,2,FALSE),\"\")","v":""},null,null,null,null,"","",null,1]
["",null,{"$f":"IFERROR(VLOOKUP(B51,Machine!A50:B645,2,FALSE),\"\")","v":""},null,null,null,null,"","",null,1]
["",null,{"$f":"IFERROR(VLOOKUP(B52,Machine!A51:B646,2,FALSE),\"\")","v":""},null,null,null,null,"","",null,1]
["",null,{"$f":"IFERROR(VLOOKUP(B53,Machine!A52:B647,2,FALSE),\"\")","v":""},null,null,null,null,"","",null,1]
["",null,{"$f":"IFERROR(VLOOKUP(B54,Machine!A53:B648,2,FALSE),\"\")","v":""},null,null,null,null,"","",null,1]
["",null,{"$f":"IFERROR(VLOOKUP(B55,Machine!A54:B649,2,FALSE),\"\")","v":""},null,null,null,null,"","",null,1]
["",null,{"$f":"IFERROR(VLOOKUP(B56,Machine!A55:B650,2,FALSE),\"\")","v":""},null,null,null,null,"","",null,1]
["",null,{"$f":"IFERROR(VLOOKUP(B57,Machine!A56:B651,2,FALSE),\"\")","v":""},null,null,null,null,"","",null,1]
["",null,{"$f":"IFERROR(VLOOKUP(B58,Machine!A57:B652,2,FALSE),\"\")","v":""},null,null,null,null,"","",null,1]
["",null,{"$f":"IFERROR(VLOOKUP(B59,Machine!A58:B653,2,FALSE),\"\")","v":""},null,null,null,null,"","",null,1]
["",null,{"$f":"IFERROR(VLOOKUP(B60,Machine!A59:B654,2,FALSE),\"\")","v":""},null,null,null,null,"","",null,1]
["",null,{"$f":"IFERROR(VLOOKUP(B61,Machine!A60:B655,2,FALSE),\"\")","v":""},null,null,null,null,"","",null,1]
["",null,{"$f":"IFERROR(VLOOKUP(B62,Machine!A61:B656,2,FALSE),\"\")","v":""},null,null,null,null,"","",null,1]
["",null,{"$f":"IFERROR(VLOOKUP(B63,Machine!A62:B657,2,FALSE),\"\")","v":""},null,null,null,null,"","",null,1]
["",null,{"$f":"IFERROR(VLOOKUP(B64,Machine!A63:B658,2,FALSE),\"\")","v":""},null,null,null,null,"","",null,1]
["",null,{"$f":"IFERROR(VLOOKUP(B65,Machine!A64:B659,2,FALSE),\"\")","v":""},null,null,null,null,"","",null,1]
["",null,{"$f":"IFERROR(VLOOKUP(B66,Machine!A65:B660,2,FALSE),\"\")","v":""},null,null,null,null,"","",null,1]
["",null,{"$f":"IFERROR(VLOOKUP(B67,Machine!A66:B661,2,FALSE),\"\")","v":""},null,null,null,null,"","",null,1]
[{"$f":"IF(B68=\"\",\"\",IF(A68=\"\",TODAY(),A68))","v":""},null,{"$f":"IFERROR(VLOOKUP(B68,Machine!A67:B662,2,FALSE),\"\")","v":""},null,null,null,null,{"$f":"IFERROR(ROUND(SUM(1000/D68),2),\"\")","v":""},{"$f":"IFERROR(ROUND(SUM(G68*H68),2),\"\")","v":""},null,1]
["",null,{"$f":"IFERROR(VLOOKUP(B69,Machine!A68:B663,2,FALSE),\"\")","v":""},null,null,null,null,"","",null,1]
["",null,{"$f":"IFERROR(VLOOKUP(B70,Machine!A69:B664,2,FALSE),\"\")","v":""},null,null,null,null,"","",null,1]
["",null,{"$f":"IFERROR(VLOOKUP(B71,Machine!A70:B665,2,FALSE),\"\")","v":""},null,null,null,null,"","",null,1]
["",null,{"$f":"IFERROR(VLOOKUP(B72,Machine!A71:B666,2,FALSE),\"\")","v":""},null,null,null,null,"","",null,1]
["",null,{"$f":"IFERROR(VLOOKUP(B73,Machine!A72:B667,2,FALSE),\"\")","v":""},null,null,null,null,"","",null,1]
["",null,{"$f":"IFERROR(VLOOKUP(B74,Machine!A73:B668,2,FALSE),\"\")","v":""},null,null,null,null,"","",null,1]
["",null,{"$f":"IFERROR(VLOOKUP(B75,Machine!A74:B669,2,FALSE),\"\")","v":""},null,null,null,null,"","",null,1]
["",null,{"$f":"IFERROR(VLOOKUP(B76,Machine!A75:B670,2,FALSE),\"\")","v":""},null,null,null,null,"","",null,1]
["",null,{"$f":"IFERROR(VLOOKUP(B77,Machine!A76:B671,2,FALSE),\"\")","v":""},null,null,null,null,"","",null,1]
["",null,{"$f":"IFERROR(VLOOKUP(B78,Machine!A77:B672,2,FALSE),\"\")","v":""},null,null,null,null,"","",null,1]
["",null,{"$f":"IFERROR(VLOOKUP(B79,Machine!A78:B673,2,FALSE),\"\")","v":""},null,null,null,null,"","",null,1]
["",null,{"$f":"IFERROR(VLOOKUP(B80,Machine!A79:B674,2,FALSE),\"\")","v":""},null,null,null,null,"","",null,1]
["",null,{"$f":"IFERROR(VLOOKUP(B81,Machine!A80:B675,2,FALSE),\"\")","v":""},null,null,null,null,"","",null,1]
["",null,{"$f":"IFERROR(VLOOKUP(B82,Machine!A81:B676,2,FALSE),\"\")","v":""},null,null,null,null,"","",null,1]
["",null,{"$f":"IFERROR(VLOOKUP(B83,Machine!A82:B677,2,FALSE),\"\")","v":""},null,null,null,null,"","",null,1]
["",null,{"$f":"IFERROR(VLOOKUP(B84,Machine!A83:B678,2,FALSE),\"\")","v":""},null,null,null,null,"","",null,1]
["",null,{"$f":"IFERROR(VLOOKUP(B85,Machine!A84:B679,2,FALSE),\"\")","v":""},null,null,null,null,"","",null,1]
["",null,{"$f":"IFERROR(VLOOKUP(B86,Machine!A85:B680,2,FALSE),\"\")","v":""},null,null,null,null,"","",null,1]
["",null,{"$f":"IFERROR(VLOOKUP(B87,Machine!A86:B681,2,FALSE),\"\")","v":""},null,null,null,null,"","",null,1]
["",null,{"$f":"IFERROR(VLOOKUP(B88,Machine!A87:B682,2,FALSE),\"\")","v":""},null,null,null,null,"","",null,1]
["",null,{"$f":"IFERROR(VLOOKUP(B89,Machine!A88:B683,2,FALSE),\"\")","v":""},null,null,null,null,"","",null,1]
["",null,{"$f":"IFERROR(VLOOKUP(B90,Machine!A89:B684,2,FALSE),\"\")","v":""},null,null,null,null,"","",null,1]
["",null,{"$f":"IFERROR(VLOOKUP(B91,Machine!A90:B685,2,FALSE),\"\")","v":""},null,null,null,null,"","",null,1]
["",null,{"$f":"IFERROR(VLOOKUP(B92,Machine!A91:B686,2,FALSE),\"\")","v":""},null,null,null,null,"","",null,1]
["",null,{"$f":"IFERROR(VLOOKUP(B93,Machine!A92:B687,2,FALSE),\"\")","v":""},null,null,null,null,"","",null,1]
["",null,{"$f":"IFERROR(VLOOKUP(B94,Machine!A93:B688,2,FALSE),\"\")","v":""},null,null,null,null,"","",null,1]
["",null,{"$f":"IFERROR(VLOOKUP(B95,Machine!A94:B689,2,FALSE),\"\")","v":""},null,null,null,null,"","",null,1]
["",null,{"$f":"IFERROR(VLOOKUP(B96,Machine!A95:B690,2,FALSE),\"\")","v":""},null,null,null,null,"","",null,1]
["",null,{"$f":"IFERROR(VLOOKUP(B97,Machine!A96:B691,2,FALSE),\"\")","v":""},null,null,null,null,"","",null,1]
["",null,{"$f":"IFERROR(VLOOKUP(B98,Machine!A97:B692,2,FALSE),\"\")","v":""},null,null,null,null,"","",null,1]
["",null,{"$f":"IFERROR(VLOOKUP(B99,Machine!A98:B693,2,FALSE),\"\")","v":""},null,null,null,null,"","",null,1]
["",null,{"$f":"IFERROR(VLOOKUP(B100,Machine!A99:B694,2,FALSE),\"\")","v":""},null,null,null,null,"","",null,1]
["",null,{"$f":"IFERROR(VLOOKUP(B101,Machine!A100:B695,2,FALSE),\"\")","v":""},null,null,null,null,"","",null,1]
["",null,{"$f":"IFERROR(VLOOKUP(B102,Machine!A101:B696,2,FALSE),\"\")","v":""},null,null,null,null,"","",null,1]
["",null,{"$f":"IFERROR(VLOOKUP(B103,Machine!A102:B697,2,FALSE),\"\")","v":""},null,null,null,null,"","",null,1]
["",null,{"$f":"IFERROR(VLOOKUP(B104,Machine!A103:B698,2,FALSE),\"\")","v":""},null,null,null,null,"","",null,1]
["",null,{"$f":"IFERROR(VLOOKUP(B105,Machine!A104:B699,2,FALSE),\"\")","v":""},null,null,null,null,"","",null,1]
["",null,{"$f":"IFERROR(VLOOKUP(B106,Machine!A105:B700,2,FALSE),\"\")","v":""},null,null,null,null,"","",null,1]
["",null,{"$f":"IFERROR(VLOOKUP(B107,Machine!A106:B701,2,FALSE),\"\")","v":""},null,null,null,null,"","",null,1]
["",null,{"$f":"IFERROR(VLOOKUP(B108,Machine!A107:B702,2,FALSE),\"\")","v":""},null,null,null,null,"","",null,1]
["",null,{"$f":"IFERROR(VLOOKUP(B109,Machine!A108:B703,2,FALSE),\"\")","v":""},null,null,null,null,"","",null,1]
["",null,{"$f":"IFERROR(VLOOKUP(B110,Machine!A109:B704,2,FALSE),\"\")","v":""},null,null,null,null,"","",null,1]
["",null,{"$f":"IFERROR(VLOOKUP(B111,Machine!A110:B705,2,FALSE),\"\")","v":""},null,null,null,null,"","",null,1]
["",null,{"$f":"IFERROR(VLOOKUP(B112,Machine!A111:B706,2,FALSE),\"\")","v":""},null,null,null,null,"","",null,1]
["",null,{"$f":"IFERROR(VLOOKUP(B113,Machine!A112:B707,2,FALSE),\"\")","v":""},null,null,null,null,"","",null,1]
["",null,{"$f":"IFERROR(VLOOKUP(B114,Machine!A113:B708,2,FALSE),\"\")","v":""},null,null,null,null,"","",null,1]
["",null,{"$f":"IFERROR(VLOOKUP(B115,Machine!A114:B709,2,FALSE),\"\")","v":""},null,null,null,null,"","",null,1]
["",null,{"$f":"IFERROR(VLOOKUP(B116,Machine!A115:B710,2,FALSE),\"\")","v":""},null,null,null,null,"","",null,1]
["",null,{"$f":"IFERROR(VLOOKUP(B117,Machine!A116:B711,2,FALSE),\"\")","v":""},null,null,null,null,"","",null,1]
["",null,{"$f":"IFERROR(VLOOKUP(B118,Machine!A117:B712,2,FALSE),\"\")","v":""},null,null,null,null,"","",null,1]
["",null,{"$f":"IFERROR(VLOOKUP(B119,Machine!A118:B713,2,FALSE),\"\")","v":""},null,null,null,null,"","",null,1]
["",null,{"$f":"IFERROR(VLOOKUP(B120,Machine!A119:B714,2,FALSE),\"\")","v":""},null,null,null,null,"","",null,1]
["",null,{"$f":"IFERROR(VLOOKUP(B121,Machine!A120:B715,2,FALSE),\"\")","v":""},null,null,null,null,"","",null,1]
["",null,{"$f":"IFERROR(VLOOKUP(B122,Machine!A121:B716,2,FALSE),\"\")","v":""},null,null,null,null,"","",null,1]
["",null,{"$f":"IFERROR(VLOOKUP(B123,Machine!A122:B717,2,FALSE),\"\")","v":""},null,null,null,null,"","",null,1]
["",null,{"$f":"IFERROR(VLOOKUP(B124,Machine!A123:B718,2,FALSE),\"\")","v":""},null,null,null,null,"","",null,1]
["",null,{"$f":"IFERROR(VLOOKUP(B125,Machine!A124:B719,2,FALSE),\"\")","v":""},null,null,null,null,"","",null,1]
["",null,{"$f":"IFERROR(VLOOKUP(B126,Machine!A125:B720,2,FALSE),\"\")","v":""},null,null,null,null,"","",null,1]
["",null,{"$f":"IFERROR(VLOOKUP(B127,Machine!A126:B721,2,FALSE),\"\")","v":""},null,null,null,null,"","",null,1]
["",null,{"$f":"IFERROR(VLOOKUP(B128,Machine!A127:B722,2,FALSE),\"\")","v":""},null,null,null,null,"","",null,1]
["",null,{"$f":"IFERROR(VLOOKUP(B129,Machine!A128:B723,2,FALSE),\"\")","v":""},null,null,null,null,"","",null,1]
["",null,{"$f":"IFERROR(VLOOKUP(B130,Machine!A129:B724,2,FALSE),\"\")","v":""},null,null,null,null,"","",null,1]
["",null,{"$f":"IFERROR(VLOOKUP(B131,Machine!A130:B725,2,FALSE),\"\")","v":""},null,null,null,null,"","",null,1]
[{"$f":"IF(B132=\"\",\"\",IF(A132=\"\",TODAY(),A132))","v":""},null,{"$f":"IFERROR(VLOOKUP(B132,Machine!A131:B726,2,FALSE),\"\")","v":""},null,null,null,null,{"$f":"IFERROR(ROUND(SUM(1000/D132),2),\"\")","v":""},{"$f":"IFERROR(ROUND(SUM(G132*H132),2),\"\")","v":""},null,1]
["",null,{"$f":"IFERROR(VLOOKUP(B133,Machine!A132:B727,2,FALSE),\"\")","v":""},null,null,null,null,"","",null,1]
["",null,{"$f":"IFERROR(VLOOKUP(B134,Machine!A133:B728,2,FALSE),\"\")","v":""},null,null,null,null,"","",null,1]
["",null,{"$f":"IFERROR(VLOOKUP(B135,Machine!A134:B729,2,FALSE),\"\")","v":""},null,null,null,null,"","",null,1]
["",null,{"$f":"IFERROR(VLOOKUP(B136,Machine!A135:B730,2,FALSE),\"\")","v":""},null,null,null,null,"","",null,1]
["",null,{"$f":"IFERROR(VLOOKUP(B137,Machine!A136:B731,2,FALSE),\"\")","v":""},null,null,null,null,"","",null,1]
["",null,{"$f":"IFERROR(VLOOKUP(B138,Machine!A137:B732,2,FALSE),\"\")","v":""},null,null,null,null,"","",null,1]
["",null,{"$f":"IFERROR(VLOOKUP(B139,Machine!A138:B733,2,FALSE),\"\")","v":""},null,null,null,null,"","",null,1]
["",null,{"$f":"IFERROR(VLOOKUP(B140,Machine!A139:B734,2,FALSE),\"\")","v":""},null,null,null,null,"","",null,1]
["",null,{"$f":"IFERROR(VLOOKUP(B141,Machine!A140:B735,2,FALSE),\"\")","v":""},null,null,null,null,"","",null,1]
["",null,{"$f":"IFERROR(VLOOKUP(B142,Machine!A141:B736,2,FALSE),\"\")","v":""},null,null,null,null,"","",null,1]
["",null,{"$f":"IFERROR(VLOOKUP(B143,Machine!A142:B737,2,FALSE),\"\")","v":""},null,null,null,null,"","",null,1]
["",null,{"$f":"IFERROR(VLOOKUP(B144,Machine!A143:B738,2,FALSE),\"\")","v":""},null,null,null,null,"","",null,1]
["",null,{"$f":"IFERROR(VLOOKUP(B145,Machine!A144:B739,2,FALSE),\"\")","v":""},null,null,null,null,"","",null,1]
["",null,{"$f":"IFERROR(VLOOKUP(B146,Machine!A145:B740,2,FALSE),\"\")","v":""},null,null,null,null,"","",null,1]
["",null,{"$f":"IFERROR(VLOOKUP(B147,Machine!A146:B741,2,FALSE),\"\")","v":""},null,null,null,null,"","",null,1]
["",null,{"$f":"IFERROR(VLOOKUP(B148,Machine!A147:B742,2,FALSE),\"\")","v":""},null,null,null,null,"","",null,1]
["",null,{"$f":"IFERROR(VLOOKUP(B149,Machine!A148:B743,2,FALSE),\"\")","v":""},null,null,null,null,"","",null,1]
["",null,{"$f":"IFERROR(VLOOKUP(B150,Machine!A149:B744,2,FALSE),\"\")","v":""},null,null,null,null,"","",null,1]
["",null,{"$f":"IFERROR(VLOOKUP(B151,Machine!A150:B745,2,FALSE),\"\")","v":""},null,null,null,null,"","",null,1]
["",null,{"$f":"IFERROR(VLOOKUP(B152,Machine!A151:B746,2,FALSE),\"\")","v":""},null,null,null,null,"","",null,1]
["",null,{"$f":"IFERROR(VLOOKUP(B153,Machine!A152:B747,2,FALSE),\"\")","v":""},null,null,null,null,"","",null,1]
["",null,{"$f":"IFERROR(VLOOKUP(B154,Machine!A153:B748,2,FALSE),\"\")","v":""},null,null,null,null,"","",null,1]
["",null,{"$f":"IFERROR(VLOOKUP(B155,Machine!A154:B749,2,FALSE),\"\")","v":""},null,null,null,null,"","",null,1]
["",null,{"$f":"IFERROR(VLOOKUP(B156,Machine!A155:B750,2,FALSE),\"\")","v":""},null,null,null,null,"","",null,1]
["",null,{"$f":"IFERROR(VLOOKUP(B157,Machine!A156:B751,2,FALSE),\"\")","v":""},null,null,null,null,"","",null,1]
["",null,{"$f":"IFERROR(VLOOKUP(B158,Machine!A157:B752,2,FALSE),\"\")","v":""},null,null,null,null,"","",null,1]
["",null,{"$f":"IFERROR(VLOOKUP(B159,Machine!A158:B753,2,FALSE),\"\")","v":""},null,null,null,null,"","",null,1]
["",null,{"$f":"IFERROR(VLOOKUP(B160,Machine!A159:B754,2,FALSE),\"\")","v":""},null,null,null,null,"","",null,1]
["",null,{"$f":"IFERROR(VLOOKUP(B161,Machine!A160:B755,2,FALSE),\"\")","v":""},null,null,null,null,"","",null,1]
["",null,{"$f":"IFERROR(VLOOKUP(B162,Machine!A161:B756,2,FALSE),\"\")","v":""},null,null,null,null,"","",null,1]
["",null,{"$f":"IFERROR(VLOOKUP(B163,Machine!A162:B757,2,FALSE),\"\")","v":""},null,null,null,null,"","",null,1]
["",null,{"$f":"IFERROR(VLOOKUP(B164,Machine!A163:B758,2,FALSE),\"\")","v":""},null,null,null,null,"","",null,1]
["",null,{"$f":"IFERROR(VLOOKUP(B165,Machine!A164:B759,2,FALSE),\"\")","v":""},null,null,null,null,"","",null,1]
["",null,{"$f":"IFERROR(VLOOKUP(B166,Machine!A165:B760,2,FALSE),\"\")","v":""},null,null,null,null,"","",null,1]
["",null,{"$f":"IFERROR(VLOOKUP(B167,Machine!A166:B761,2,FALSE),\"\")","v":""},null,null,null,null,"","",null,1]
["",null,{"$f":"IFERROR(VLOOKUP(B168,Machine!A167:B762,2,FALSE),\"\")","v":""},null,null,null,null,"","",null,1]
["",null,{"$f":"IFERROR(VLOOKUP(B169,Machine!A168:B763,2,FALSE),\"\")","v":""},null,null,null,null,"","",null,1]
["",null,{"$f":"IFERROR(VLOOKUP(B170,Machine!A169:B764,2,FALSE),\"\")","v":""},null,null,null,null,"","",null,1]
["",null,{"$f":"IFERROR(VLOOKUP(B171,Machine!A170:B765,2,FALSE),\"\")","v":""},null,null,null,null,"","",null,1]
["",null,{"$f":"IFERROR(VLOOKUP(B172,Machine!A171:B766,2,FALSE),\"\")","v":""},null,null,null,null,"","",null,1]
["",null,{"$f":"IFERROR(VLOOKUP(B173,Machine!A172:B767,2,FALSE),\"\")","v":""},null,null,null,null,"","",null,1]
["",null,{"$f":"IFERROR(VLOOKUP(B174,Machine!A173:B768,2,FALSE),\"\")","v":""},null,null,null,null,"","",null,1]
["",null,{"$f":"IFERROR(VLOOKUP(B175,Machine!A174:B769,2,FALSE),\"\")","v":""},null,null,null,null,"","",null,1]
["",null,{"$f":"IFERROR(VLOOKUP(B176,Machine!A175:B770,2,FALSE),\"\")","v":""},null,null,null,null,"","",null,1]
["",null,{"$f":"IFERROR(VLOOKUP(B177,Machine!A176:B771,2,FALSE),\"\")","v":""},null,null,null,null,"","",null,1]
["",null,{"$f":"IFERROR(VLOOKUP(B178,Machine!A177:B772,2,FALSE),\"\")","v":""},null,null,null,null,"","",null,1]
["",null,{"$f":"IFERROR(VLOOKUP(B179,Machine!A178:B773,2,FALSE),\"\")","v":""},null,null,null,null,"","",null,1]
["",null,{"$f":"IFERROR(VLOOKUP(B180,Machine!A179:B774,2,FALSE),\"\")","v":""},null,null,null,null,"","",null,1]
["",null,{"$f":"IFERROR(VLOOKUP(B181,Machine!A180:B775,2,FALSE),\"\")","v":""},null,null,null,null,"","",null,1]
["",null,{"$f":"IFERROR(VLOOKUP(B182,Machine!A181:B776,2,FALSE),\"\")","v":""},null,null,null,null,"","",null,1]
["",null,{"$f":"IFERROR(VLOOKUP(B183,Machine!A182:B777,2,FALSE),\"\")","v":""},null,null,null,null,"","",null,1]
["",null,{"$f":"IFERROR(VLOOKUP(B184,Machine!A183:B778,2,FALSE),\"\")","v":""},null,null,null,null,"","",null,1]
["",null,{"$f":"IFERROR(VLOOKUP(B185,Machine!A184:B779,2,FALSE),\"\")","v":""},null,null,null,null,"","",null,1]
["",null,{"$f":"IFERROR(VLOOKUP(B186,Machine!A185:B780,2,FALSE),\"\")","v":""},null,null,null,null,"","",null,1]
["",null,{"$f":"IFERROR(VLOOKUP(B187,Machine!A186:B781,2,FALSE),\"\")","v":""},null,null,null,null,"","",null,1]
["",null,{"$f":"IFERROR(VLOOKUP(B188,Machine!A187:B782,2,FALSE),\"\")","v":""},null,null,null,null,"","",null,1]
["",null,{"$f":"IFERROR(VLOOKUP(B189,Machine!A188:B783,2,FALSE),\"\")","v":""},null,null,null,null,"","",null,1]
["",null,{"$f":"IFERROR(VLOOKUP(B190,Machine!A189:B784,2,FALSE),\"\")","v":""},null,null,null,null,"","",null,1]
["",null,{"$f":"IFERROR(VLOOKUP(B191,Machine!A190:B785,2,FALSE),\"\")","v":""},null,null,null,null,"","",null,1]
["",null,{"$f":"IFERROR(VLOOKUP(B192,Machine!A191:B786,2,FALSE),\"\")","v":""},null,null,null,null,"","",null,1]
["",null,{"$f":"IFERROR(VLOOKUP(B193,Machine!A192:B787,2,FALSE),\"\")","v":""},null,null,null,null,"","",null,1]
["",null,{"$f":"IFERROR(VLOOKUP(B194,Machine!A193:B788,2,FALSE),\"\")","v":""},null,null,null,null,"","",null,1]
["",null,{"$f":"IFERROR(VLOOKUP(B195,Machine!A194:B789,2,FALSE),\"\")","v":""},null,null,null,null,"","",null,1]
[{"$f":"IF(B196=\"\",\"\",IF(A196=\"\",TODAY(),A196))","v":""},null,{"$f":"IFERROR(VLOOKUP(B196,Machine!A195:B790,2,FALSE),\"\")","v":""},null,null,null,null,{"$f":"IFERROR(ROUND(SUM(1000/D196),2),\"\")","v":""},{"$f":"IFERROR(ROUND(SUM(G196*H196),2),\"\")","v":""},null,1]
["",null,{"$f":"IFERROR(VLOOKUP(B197,Machine!A196:B791,2,FALSE),\"\")","v":""},null,null,null,null,"","",null,1]
["",null,{"$f":"IFERROR(VLOOKUP(B198,Machine!A197:B792,2,FALSE),\"\")","v":""},null,null,null,null,"","",null,1]
["",null,{"$f":"IFERROR(VLOOKUP(B199,Machine!A198:B793,2,FALSE),\"\")","v":""},null,null,null,null,"","",null,1]
["",null,{"$f":"IFERROR(VLOOKUP(B200,Machine!A199:B794,2,FALSE),\"\")","v":""},null,null,null,null,"","",null,1]
["",null,{"$f":"IFERROR(VLOOKUP(B201,Machine!A200:B795,2,FALSE),\"\")","v":""},null,null,null,null,"","",null,1]
["",null,{"$f":"IFERROR(VLOOKUP(B202,Machine!A201:B796,2,FALSE),\"\")","v":""},null,null,null,null,"","",null,1]
["",null,{"$f":"IFERROR(VLOOKUP(B203,Machine!A202:B797,2,FALSE),\"\")","v":""},null,null,null,null,"","",null,1]
["",null,{"$f":"IFERROR(VLOOKUP(B204,Machine!A203:B798,2,FALSE),\"\")","v":""},null,null,null,null,"","",null,1]
["",null,{"$f":"IFERROR(VLOOKUP(B205,Machine!A204:B799,2,FALSE),\"\")","v":""},null,null,null,null,"","",null,1]
["",null,{"$f":"IFERROR(VLOOKUP(B206,Machine!A205:B800,2,FALSE),\"\")","v":""},null,null,null,null,"","",null,1]
["",null,{"$f":"IFERROR(VLOOKUP(B207,Machine!A206:B801,2,FALSE),\"\")","v":""},null,null,null,null,"","",null,1]
["",null,{"$f":"IFERROR(VLOOKUP(B208,Machine!A207:B802,2,FALSE),\"\")","v":""},null,null,null,null,"","",null,1]
["",null,{"$f":"IFERROR(VLOOKUP(B209,Machine!A208:B803,2,FALSE),\"\")","v":""},null,null,null,null,"","",null,1]
["",null,{"$f":"IFERROR(VLOOKUP(B210,Machine!A209:B804,2,FALSE),\"\")","v":""},null,null,null,null,"","",null,1]
["",null,{"$f":"IFERROR(VLOOKUP(B211,Machine!A210:B805,2,FALSE),\"\")","v":""},null,null,null,null,"","",null,1]
["",null,{"$f":"IFERROR(VLOOKUP(B212,Machine!A211:B806,2,FALSE),\"\")","v":""},null,null,null,null,"","",null,1]
["",null,{"$f":"IFERROR(VLOOKUP(B213,Machine!A212:B807,2,FALSE),\"\")","v":""},null,null,null,null,"","",null,1]
["",null,{"$f":"IFERROR(VLOOKUP(B214,Machine!A213:B808,2,FALSE),\"\")","v":""},null,null,null,null,"","",null,1]
["",null,{"$f":"IFERROR(VLOOKUP(B215,Machine!A214:B809,2,FALSE),\"\")","v":""},null,null,null,null,"","",null,1]
["",null,{"$f":"IFERROR(VLOOKUP(B216,Machine!A215:B810,2,FALSE),\"\")","v":""},null,null,null,null,"","",null,1]
["",null,{"$f":"IFERROR(VLOOKUP(B217,Machine!A216:B811,2,FALSE),\"\")","v":""},null,null,null,null,"","",null,1]
["",null,{"$f":"IFERROR(VLOOKUP(B218,Machine!A217:B812,2,FALSE),\"\")","v":""},null,null,null,null,"","",null,1]
["",null,{"$f":"IFERROR(VLOOKUP(B219,Machine!A218:B813,2,FALSE),\"\")","v":""},null,null,null,null,"","",null,1]
["",null,{"$f":"IFERROR(VLOOKUP(B220,Machine!A219:B814,2,FALSE),\"\")","v":""},null,null,null,null,"","",null,1]
["",null,{"$f":"IFERROR(VLOOKUP(B221,Machine!A220:B815,2,FALSE),\"\")","v":""},null,null,null,null,"","",null,1]
["",null,{"$f":"IFERROR(VLOOKUP(B222,Machine!A221:B816,2,FALSE),\"\")","v":""},null,null,null,null,"","",null,1]
["",null,{"$f":"IFERROR(VLOOKUP(B223,Machine!A222:B817,2,FALSE),\"\")","v":""},null,null,null,null,"","",null,1]
["",null,{"$f":"IFERROR(VLOOKUP(B224,Machine!A223:B818,2,FALSE),\"\")","v":""},null,null,null,null,"","",null,1]
["",null,{"$f":"IFERROR(VLOOKUP(B225,Machine!A224:B819,2,FALSE),\"\")","v":""},null,null,null,null,"","",null,1]
["",null,{"$f":"IFERROR(VLOOKUP(B226,Machine!A225:B820,2,FALSE),\"\")","v":""},null,null,null,null,"","",null,1]
["",null,{"$f":"IFERROR(VLOOKUP(B227,Machine!A226:B821,2,FALSE),\"\")","v":""},null,null,null,null,"","",null,1]
["",null,{"$f":"IFERROR(VLOOKUP(B228,Machine!A227:B822,2,FALSE),\"\")","v":""},null,null,null,null,"","",null,1]
["",null,{"$f":"IFERROR(VLOOKUP(B229,Machine!A228:B823,2,FALSE),\"\")","v":""},null,null,null,null,"","",null,1]
["",null,{"$f":"IFERROR(VLOOKUP(B230,Machine!A229:B824,2,FALSE),\"\")","v":""},null,null,null,null,"","",null,1]
["",null,{"$f":"IFERROR(VLOOKUP(B231,Machine!A230:B825,2,FALSE),\"\")","v":""},null,null,null,null,"","",null,1]
["",null,{"$f":"IFERROR(VLOOKUP(B232,Machine!A231:B826,2,FALSE),\"\")","v":""},null,null,null,null,"","",null,1]
["",null,{"$f":"IFERROR(VLOOKUP(B233,Machine!A232:B827,2,FALSE),\"\")","v":""},null,null,null,null,"","",null,1]
["",null,{"$f":"IFERROR(VLOOKUP(B234,Machine!A233:B828,2,FALSE),\"\")","v":""},null,null,null,null,"","",null,1]
["",null,{"$f":"IFERROR(VLOOKUP(B235,Machine!A234:B829,2,FALSE),\"\")","v":""},null,null,null,null,"","",null,1]
["",null,{"$f":"IFERROR(VLOOKUP(B236,Machine!A235:B830,2,FALSE),\"\")","v":""},null,null,null,null,"","",null,1]
["",null,{"$f":"IFERROR(VLOOKUP(B237,Machine!A236:B831,2,FALSE),\"\")","v":""},null,null,null,null,"","",null,1]
["",null,{"$f":"IFERROR(VLOOKUP(B238,Machine!A237:B832,2,FALSE),\"\")","v":""},null,null,null,null,"","",null,1]
["",null,{"$f":"IFERROR(VLOOKUP(B239,Machine!A238:B833,2,FALSE),\"\")","v":""},null,null,null,null,"","",null,1]
["",null,{"$f":"IFERROR(VLOOKUP(B240,Machine!A239:B834,2,FALSE),\"\")","v":""},null,null,null,null,"","",null,1]
["",null,{"$f":"IFERROR(VLOOKUP(B241,Machine!A240:B835,2,FALSE),\"\")","v":""},null,null,null,null,"","",null,1]
["",null,{"$f":"IFERROR(VLOOKUP(B242,Machine!A241:B836,2,FALSE),\"\")","v":""},null,null,null,null,"","",null,1]
["",null,{"$f":"IFERROR(VLOOKUP(B243,Machine!A242:B837,2,FALSE),\"\")","v":""},null,null,null,null,"","",null,1]
["",null,{"$f":"IFERROR(VLOOKUP(B244,Machine!A243:B838,2,FALSE),\"\")","v":""},null,null,null,null,"","",null,1]
["",null,{"$f":"IFERROR(VLOOKUP(B245,Machine!A244:B839,2,FALSE),\"\")","v":""},null,null,null,null,"","",null,1]
["",null,{"$f":"IFERROR(VLOOKUP(B246,Machine!A245:B840,2,FALSE),\"\")","v":""},null,null,null,null,"","",null,1]
["",null,{"$f":"IFERROR(VLOOKUP(B247,Machine!A246:B841,2,FALSE),\"\")","v":""},null,null,null,null,"","",null,1]
["",null,{"$f":"IFERROR(VLOOKUP(B248,Machine!A247:B842,2,FALSE),\"\")","v":""},null,null,null,null,"","",null,1]
["",null,{"$f":"IFERROR(VLOOKUP(B249,Machine!A248:B843,2,FALSE),\"\")","v":""},null,null,null,null,"","",null,1]
["",null,{"$f":"IFERROR(VLOOKUP(B250,Machine!A249:B844,2,FALSE),\"\")","v":""},null,null,null,null,"","",null,1]
[]
[]
[]
[]
[]
[]
[]
[]
[]
[]
[]
[]
[]
[]
[]
[]
[]
[]
[]
[]
[]
[]
[]
[]
[]
[]
[]
[]
[]
[]
[]
[]
[]
[]
[]
[]
[]
[]
[]
[]
[]
[]
[]
[]
[]
[]
[]
[]
[]
[]
[]
[]
[]
[]
[]
[]
[]
[]
[]
[]
[]
[]
[]
[]
[]
[]
[]
[]
[]
[]
[]
[]
[]
[]
[]
[]
[]
[]
[]
[]
[]
[]
[]
[]
[]
[]
[]
[]
[]
[]
[]
[]
[]
[]
[]
[]
[]
[]
[]
[]
[]
[]
[]
[]
[]
[]
[]
[]
[]
[]
[]
[]
[]
[]
[]
[]
[]
[]
[]
[]
[]
[]
[]
[]
[]
[]
[]
[]
[]
[]
[]
[]
[]
[]
[]
[]
[]
[]
[]
[]
[]
[]
[]
[]
[]
[]
[]
[]
[]
[null,"Machine number","Machine Name",null,0.05,"Black ",null,null,null,null,null,"منصور محمد منصور"]
[null,1,"Crosha",null,0.06,"White",null,null,null,null,null,"علي مراد حسن"]
[null,2,"Crosha",null,7.0000000000000007E-2,"Black&White",null,null,null,null,null,"ابراهيم محمود ابراهيم"]
[null,3,"Crosha",null,0.08,"A prominent Black",null,null,null,null,null,"مسعد رمزي مسعد"]
[null,4,"Crosha",null,0.09,"A prominent White",null,null,null,null,null,"عادل عزمي شنودة"]
[null,5,"Crosha",null,0.1,null,null,null,null,null,null,"صبحي محمد محمود"]
[null,6,"Crosha",null,0.11,null,null,null,null,null,null,"السيد محمد عبد العال"]
[null,7,"Crosha",null,0.12,null,null,null,null,null,null,"عادل سيف الله السيد"]
[null,8,"Crosha",null,0.13,null,null,null,null,null,null,"خالد السيد عبد القادر"]
[null,9,"Crosha",null,0.14000000000000001,null,null,null,null,null,null,"عادل صادق بشير"]
[null,10,"Crosha",null,0.15,null,null,null,null,null,null,"روماني عطية حبشي"]
[null,11,"Crosha",null,0.16,null,null,null,null,null,null,"احمد صادق توفيق"]
[null,12,"Crosha",null,0.17,null,null,null,null,null,null,"دينا مجدي ابراهيم"]
[null,13,"Crosha",null,0.18,null,null,null,null,null,null,"علي فرج على محمد"]
[null,14,"Crosha",null,0.19,null,null,null,null,null,null,"بوسي السيد عبد المنعم"]
[null,15,"Crosha",null,0.2,null,null,null,null,null,null,"محمد محمد عبد الوهاب"]
[null,16,"Crosha",null,0.21,null,null,null,null,null,null,"سعيد الليثي جاب الله"]
[null,17,"Crosha",null,0.22,null,null,null,null,null,null,"احمد عبد الظاهر"]
[null,18,"Crosha",null,0.23,null,null,null,null,null,null,"مصطفى عبد النبي مصطفى"]
[null,19,"Crosha",null,0.24,null,null,null,null,null,null,"ابراهيم صبحي محمد السيد"]
[null,20,"Crosha",null,0.25,null,null,null,null,null,null,"خميس حسن حسنين"]
[null,21,"Crosha",null,0.26,null,null,null,null,null,null,"محمد حسني حسن"]
[null,22,"Crosha",null,0.27,null,null,null,null,null,null,"محمد عادل محمد محمد"]
[null,23,"Crosha",null,0.28000000000000003,null,null,null,null,null,null,"السيد عبد الحميد اسماعيل"]
[null,24,"Crosha",null,0.28999999999999998,null,null,null,null,null,null,"ابراهيم محمد فتوح"]
[null,25,"Crosha",null,0.3,null,null,null,null,null,null,"عمرو محمد عبد الجليل"]
[null,26,"Crosha",null,0.31,null,null,null,null,null,null,"خالد مصطفى العوضي"]
[null,27,"Crosha",null,0.32,null,null,null,null,null,null,"حمادة احمد على النجار"]
[null,28,"Crosha",null,0.33,null,null,null,null,null,null,"عاطف وليم لبيب"]
[null,29,"Crosha",null,0.34,null,null,null,null,null,null,"عادل وليم نبيل"]
[null,30,"Crosha",null,0.35,null,null,null,null,null,null,"بيشوي عزت شفيق"]
[null,31,"Crosha",null,0.36,null,null,null,null,null,null,"محمد يحيى محمود"]
[null,32,"Crosha",null,0.37,null,null,null,null,null,null,"احمد رمضان احمد"]
[null,33,"Crosha",null,0.38]
[null,34,"Crosha",null,0.39]
[null,35,"Crosha",null,0.4]
[null,36,"Crosha",null,0.41]
[null,37,"Crosha",null,0.42]
[null,38,"Crosha",null,0.43]
[null,39,"Crosha",null,0.44]
[null,40,"Crosha",null,0.45]
[null,41,"Crosha",null,0.46]
[null,42,"Crosha",null,0.47]
[null,43,"Crosha",null,0.48]
[null,44,"Crosha",null,0.49]
[null,45,"Crosha",null,0.5]
[null,46,"Crosha",null,0.51]
[null,47,"Crosha",null,0.52]
[null,48,"Crosha",null,0.53]
[null,49,"Crosha",null,0.54]
[null,50,"Crosha",null,0.55000000000000004]
[null,51,"Crosha",null,0.56000000000000005]
[null,52,"Crosha",null,0.56999999999999995]
[null,53,"Crosha",null,0.57999999999999996]
[null,54,"Crosha",null,0.59]
[null,55,"Crosha",null,0.6]
[null,56,"Crosha",null,0.61]
[null,57,"Crosha",null,0.62]
[null,58,"Crosha",null,0.63]
[null,59,"Crosha",null,0.64]
[null,60,"Crosha",null,0.65]
[null,61,"Crosha",null,0.66]
[null,62,"Crosha",null,0.67]
[null,63,"Crosha",null,0.68]
[null,64,"Crosha",null,0.69]
[null,65,"Crosha",null,0.7]
[null,66,"Crosha",null,0.71]
[null,67,"Crosha",null,0.72]
[null,68,"Crosha",null,0.73]
[null,69,"Crosha",null,0.74]
[null,70,"Crosha",null,0.75]
[null,71,"Crosha",null,0.76]
[null,72,"Crosha",null,0.77]
[null,73,"Crosha",null,0.78]
[null,74,"Crosha",null,0.79]
[null,75,"Crosha",null,0.8]
[null,76,"Crosha",null,0.81]
[null,77,"Crosha",null,0.82]
[null,78,"Crosha",null,0.83]
[null,79,"Crosha",null,0.84]
[null,80,"Crosha",null,0.85]
[null,81,"Crosha",null,0.86]
[null,82,"Crosha",null,0.87]
[null,83,"Crosha",null,0.88]
[null,84,"Crosha",null,0.89]
[null,85,"Crosha",null,0.9]
[null,86,"Crosha",null,0.91]
[null,87,"Crosha",null,0.92]
[null,88,"Crosha",null,0.93]
[null,89,"Crosha",null,0.94]
[null,90,"Crosha",null,0.95]
[null,91,"Crosha",null,0.96]
[null,92,"Crosha",null,0.97]
[null,93,"Crosha",null,0.98]
[null,94,"Crosha",null,0.99]
[null,95,"Crosha",null,1]
[null,96,"Crosha",null,1.01]
[null,97,"Crosha",null,1.02]
[null,98,"Crosha",null,1.03]
[null,99,"Crosha",null,1.04]
[null,100,"Crosha",null,1.05]
[null,101,"Jakar",null,1.06]
[null,102,"Jakar",null,1.07]
[null,103,"Jakar",null,1.08]
[null,104,"Jakar",null,1.0900000000000001]
[null,105,"Jakar",null,1.1000000000000001]
[null,106,"Jakar",null,1.1100000000000001]
[null,107,"Jakar",null,1.1200000000000001]
[null,108,"Jakar",null,1.1299999999999999]
[null,109,"Jakar",null,1.1399999999999999]
[null,110,"Jakar",null,1.1499999999999999]
[null,111,"Jakar",null,1.1599999999999999]
[null,112,"Jakar",null,1.17]
[null,113,"Jakar",null,1.18]
[null,114,"Jakar",null,1.19]
[null,115,"Jakar",null,1.2]
[null,116,"Jakar",null,1.21]
[null,117,"Jakar",null,1.22]
[null,118,"Jakar",null,1.23]
[null,119,"Jakar",null,1.24]
[null,120,"Jakar",null,1.25]
[null,121,"Jakar",null,1.26]
[null,122,"Jakar",null,1.27]
[null,123,"Jakar",null,1.28]
[null,124,"Jakar",null,1.29]
[null,125,"Jakar",null,1.3]
[null,126,"Jakar",null,1.31]
[null,127,"Jakar",null,1.32]
[null,128,"Jakar",null,1.33]
[null,129,"Jakar",null,1.34]
[null,130,"Jakar",null,1.35]
[null,131,"Jakar",null,1.36]
[null,132,"Jakar",null,1.37]
[null,133,"Jakar",null,1.38]
[null,134,"Jakar",null,1.39]
[null,135,"Jakar",null,1.4]
[null,136,"Jakar",null,1.41]
[null,137,"Jakar",null,1.42]
[null,138,"Jakar",null,1.43]
[null,139,"Jakar",null,1.44]
[null,140,"Jakar",null,1.45]
[null,141,"Jakar",null,1.46]
[null,142,"Jakar",null,1.47]
[null,143,"Jakar",null,1.48]
[null,144,"Jakar",null,1.49]
[null,145,"Jakar",null,1.5]
[null,146,"Jakar",null,1.51]
[null,147,"Jakar",null,1.52]
[null,148,"Jakar",null,1.53]
[null,149,"Jakar",null,1.54]
[null,150,"Jakar",null,1.55]
[null,151,"Jakar",null,1.56]
[null,152,"Jakar",null,1.57]
[null,153,"Jakar",null,1.58]
[null,154,"Jakar",null,1.59]
[null,155,"Jakar",null,1.6]
[null,156,"Jakar",null,1.61]
[null,157,"Jakar",null,1.62]
[null,158,"Jakar",null,1.63]
[null,159,"Jakar",null,1.64]
[null,160,"Jakar",null,1.65]
[null,161,"Jakar",null,1.66]
[null,162,"Jakar",null,1.67]
[null,163,"Jakar",null,1.68]
[null,164,"Jakar",null,1.69]
[null,165,"Jakar",null,1.7]
[null,166,"Jakar",null,1.71]
[null,167,"Jakar",null,1.72]
[null,168,"Jakar",null,1.73]
[null,169,"Jakar",null,1.74]
[null,170,"Jakar",null,1.75]
[null,171,"Jakar",null,1.76]
[null,172,"Jakar",null,1.77]
[null,173,"Jakar",null,1.78]
[null,174,"Jakar",null,1.79]
[null,175,"Jakar",null,1.8]
[null,176,"Jakar",null,1.81]
[null,177,"Jakar",null,1.82]
[null,178,"Jakar",null,1.83]
[null,179,"Jakar",null,1.84]
[null,180,"Jakar",null,1.85]
[null,181,"Jakar",null,1.86]
[null,182,"Jakar",null,1.87]
[null,183,"Jakar",null,1.88]
[null,184,"Jakar",null,1.89]
[null,185,"Jakar",null,1.9]
[null,186,"Jakar",null,1.91]
[null,187,"Jakar",null,1.92]
[null,188,"Jakar",null,1.93]
[null,189,"Jakar",null,1.94]
[null,190,"Jakar",null,1.95]
[null,191,"Jakar",null,1.96]
[null,192,"Jakar",null,1.97]
[null,193,"Jakar",null,1.98]
[null,194,"Jakar",null,1.99]
[null,195,"Jakar",null,2]
[null,196,"Jakar",null,2.0099999999999998]
[null,197,"Jakar",null,2.02]
[null,198,"Jakar",null,2.0299999999999998]
[null,199,"Jakar",null,2.04]
[null,200,"Jakar",null,2.0499999999999998]
[null,201,"Jakar",null,2.06]
[null,202,"Jakar",null,2.0699999999999998]
[null,203,"Jakar",null,2.08]
[null,204,"Jakar",null,2.09]
[null,205,"Jakar",null,2.1]
[null,206,"Jakar",null,2.11]
[null,207,"Jakar",null,2.12]
[null,208,"Jakar",null,2.13]
[null,209,"Jakar",null,2.14]
[null,210,"Jakar",null,2.15]
[null,211,"Jakar",null,2.16]
[null,212,"Jakar",null,2.17]
[null,213,"Jakar",null,2.1800000000000002]
[null,214,"Jakar",null,2.19]
[null,215,"Jakar",null,2.2000000000000002]
[null,216,"Jakar",null,2.21]
[null,217,"Jakar",null,2.2200000000000002]
[null,218,"Jakar",null,2.23]
[null,219,"Jakar",null,2.2400000000000002]
[null,220,"Jakar",null,2.25]
[null,221,"Jakar",null,2.2599999999999998]
[null,222,"Jakar",null,2.27]
[null,223,"Jakar",null,2.2799999999999998]
[null,224,"Jakar",null,2.29]
[null,225,"Jakar",null,2.2999999999999998]
[null,226,"Jakar",null,2.31]
[null,227,"Jakar",null,2.3199999999999998]
[null,228,"Jakar",null,2.33]
[null,229,"Jakar",null,2.34]
[null,230,"Jakar",null,2.35]
[null,231,"Jakar",null,2.36]
[null,232,"Jakar",null,2.37]
[null,233,"Jakar",null,2.38]
[null,234,"Jakar",null,2.39]
[null,235,"Jakar",null,2.4]
[null,236,"Jakar",null,2.41]
[null,237,"Jakar",null,2.42]
[null,238,"Jakar",null,2.4300000000000002]
[null,239,"Jakar",null,2.44]
[null,240,"Jakar",null,2.4500000000000002]
[null,241,"Jakar",null,2.46]
[null,242,"Jakar",null,2.4700000000000002]
[null,243,"Jakar",null,2.48]
[null,244,"Jakar",null,2.4900000000000002]
[null,245,"Jakar",null,2.5]
[null,246,"Jakar",null,2.5099999999999998]
[null,247,"Jakar",null,2.52]
[null,248,"Jakar",null,2.5299999999999998]
[null,249,"Jakar",null,2.54]
[null,250,"Jakar",null,2.5499999999999998]
[null,251,"Jakar",null,2.56]
[null,252,"Jakar",null,2.57]
[null,253,"Jakar",null,2.58]
[null,254,"Jakar",null,2.59]
[null,255,"Jakar",null,2.6]
[null,256,"Jakar",null,2.61]
[null,257,"Jakar",null,2.62]
[null,258,"Jakar",null,2.63]
[null,259,"Jakar",null,2.64]
[null,260,"Jakar",null,2.65]
[null,261,"Jakar",null,2.66]
[null,262,"Jakar",null,2.67]
[null,263,"Jakar",null,2.68]
[null,264,"Jakar",null,2.69]
[null,265,"Jakar",null,2.7]
[null,266,"Jakar",null,2.71]
[null,267,"Jakar",null,2.72]
[null,268,"Jakar",null,2.73]
[null,269,"Jakar",null,2.74]
[null,270,"Jakar",null,2.75]
[null,271,"Jakar",null,2.76]
[null,272,"Jakar",null,2.77]
[null,273,"Jakar",null,2.78]
[null,274,"Jakar",null,2.79]
[null,275,"Jakar",null,2.8]
[null,276,"Jakar",null,2.81]
[null,277,"Jakar",null,2.82]
[null,278,"Jakar",null,2.83]
[null,279,"Jakar",null,2.84]
[null,280,"Jakar",null,2.85]
[null,281,"Jakar",null,2.86]
[null,282,"Jakar",null,2.87]
[null,283,"Jakar",null,2.88]
[null,284,"Jakar",null,2.89]
[null,285,"Jakar",null,2.9]
[null,286,"Jakar",null,2.91]
[null,287,"Jakar",null,2.92]
[null,288,"Jakar",null,2.93]
[null,289,"Jakar",null,2.94]
[null,290,"Jakar",null,2.95]
[null,291,"Jakar",null,2.96]
[null,292,"Jakar",null,2.97]
[null,293,"Jakar",null,2.98]
[null,294,"Jakar",null,2.99]
[null,295,"Jakar",null,3]
[null,296,"Jakar",null,3.01]
[null,297,"Jakar",null,3.02]
[null,298,"Jakar",null,3.03]
[null,299,"Jakar",null,3.04]
[null,300,"Jakar",null,3.05]
[null,301,"Electric iron",null,3.06]
[null,302,"Electric iron",null,3.07]
[null,303,"Electric iron",null,3.08]
[null,304,"Electric iron",null,3.09]
[null,305,"Electric iron",null,3.1]
[null,306,"Electric iron",null,3.11]
[null,307,"Electric iron",null,3.12]
[null,308,"Electric iron",null,3.13]
[null,309,"Electric iron",null,3.14]
[null,310,"Electric iron",null,3.15]
[null,311,"Electric iron",null,3.16]
[null,312,"Electric iron",null,3.17]
[null,313,"Electric iron",null,3.18]
[null,314,"Electric iron",null,3.19]
[null,315,"Electric iron",null,3.2]
[null,null,null,null,3.21]
[null,null,null,null,3.22]
[null,null,null,null,3.23]
[null,null,null,null,3.24]
[null,null,null,null,3.25]
[null,null,null,null,3.26]
[null,null,null,null,3.27]
[null,null,null,null,3.28]
[null,null,null,null,3.29]
[null,null,null,null,3.3]
[null,null,null,null,3.31]
[null,null,null,null,3.32]
[null,null,null,null,3.33]
[null,null,null,null,3.34]
[null,null,null,null,3.35]
[null,null,null,null,3.36]
[null,null,null,null,3.37]
[null,null,null,null,3.38]
[null,null,null,null,3.39]
[null,null,null,null,3.4]
[null,null,null,null,3.41]
[null,null,null,null,3.42]
[null,null,null,null,3.43]
[null,null,null,null,3.44]
[null,null,null,null,3.45]
[null,null,null,null,3.46]
[null,null,null,null,3.47]
[null,null,null,null,3.48]
[null,null,null,null,3.49]
[null,null,null,null,3.5]
[null,null,null,null,3.51]
[null,null,null,null,3.52]
[null,null,null,null,3.53]
[null,null,null,null,3.54]
[null,null,null,null,3.55]
[null,null,null,null,3.56]
[null,null,null,null,3.57]
[null,null,null,null,3.58]
[null,null,null,null,3.59]
[null,null,null,null,3.6]
[null,null,null,null,3.61]
[null,null,null,null,3.62]
[null,null,null,null,3.63]
[null,null,null,null,3.64]
[null,null,null,null,3.65]
[null,null,null,null,3.66]
[null,null,null,null,3.67]
[null,null,null,null,3.68]
[null,null,null,null,3.69]
[null,null,null,null,3.7]
[null,null,null,null,3.71]
[null,null,null,null,3.72]
[null,null,null,null,3.73]
[null,null,null,null,3.74]
[null,null,null,null,3.75]
[null,null,null,null,3.76]
[null,null,null,null,3.77]
[null,null,null,null,3.78]
[null,null,null,null,3.79]
[null,null,null,null,3.8]
[null,null,null,null,3.81]
[null,null,null,null,3.82]
[null,null,null,null,3.83]
[null,null,null,null,3.84]
[null,null,null,null,3.85]
[null,null,null,null,3.86]
[null,null,null,null,3.87]
[null,null,null,null,3.88]
[null,null,null,null,3.89]
[null,null,null,null,3.9]
[null,null,null,null,3.91]
[null,null,null,null,3.92]
[null,null,null,null,3.93]
[null,null,null,null,3.94]
[null,null,null,null,3.95]
[null,null,null,null,3.96]
[null,null,null,null,3.97]
[null,null,null,null,3.98]
[null,null,null,null,3.99]
[null,null,null,null,4]
[null,null,null,null,4.01]
[null,null,null,null,4.0199999999999996]
[null,null,null,null,4.03]
[null,null,null,null,4.04]
[null,null,null,null,4.05]
[null,null,null,null,4.0599999999999996]
[null,null,null,null,4.07]
[null,null,null,null,4.08]
[null,null,null,null,4.09]
[null,null,null,null,4.0999999999999996]
[null,null,null,null,4.1100000000000003]
[null,null,null,null,4.12]
[null,null,null,null,4.13]
[null,null,null,null,4.1399999999999997]
[null,null,null,null,4.1500000000000004]
[null,null,null,null,4.16]
[null,null,null,null,4.17]
[null,null,null,null,4.18]
[null,null,null,null,4.1900000000000004]
[null,null,null,null,4.2]
[null,null,null,null,4.21]
[null,null,null,null,4.22]
[null,null,null,null,4.2300000000000004]
[null,null,null,null,4.24]
[null,null,null,null,4.25]
[null,null,null,null,4.26]
[null,null,null,null,4.2699999999999996]
[null,null,null,null,4.28]
[null,null,null,null,4.29]
[null,null,null,null,4.3]
[null,null,null,null,4.3099999999999996]
[null,null,null,null,4.32]
[null,null,null,null,4.33]
[null,null,null,null,4.34]
[null,null,null,null,4.3499999999999996]
[null,null,null,null,4.3600000000000003]
[null,null,null,null,4.37]
[null,null,null,null,4.38]
[null,null,null,null,4.3899999999999997]
[null,null,null,null,4.4000000000000004]
[null,null,null,null,4.41]
[null,null,null,null,4.42]
[null,null,null,null,4.43]
[null,null,null,null,4.4400000000000004]
[null,null,null,null,4.45]
[null,null,null,null,4.46]
[null,null,null,null,4.47]
[null,null,null,null,4.4800000000000004]
[null,null,null,null,4.49]
[null,null,null,null,4.5]
[null,null,null,null,4.51]
[null,null,null,null,4.5199999999999996]
[null,null,null,null,4.53]
[null,null,null,null,4.54]
[null,null,null,null,4.55]
[null,null,null,null,4.5599999999999996]
[null,null,null,null,4.57]
[null,null,null,null,4.58]
[null,null,null,null,4.59]
[null,null,null,null,4.5999999999999996]
[null,null,null,null,4.6100000000000003]
[null,null,null,null,4.62]
[null,null,null,null,4.63]
[null,null,null,null,4.6399999999999997]
[null,null,null,null,4.6500000000000004]
[null,null,null,null,4.66]
[null,null,null,null,4.67]
[null,null,null,null,4.68]
[null,null,null,null,4.6900000000000004]
[null,null,null,null,4.7]
[null,null,null,null,4.71]
[null,null,null,null,4.72]
[null,null,null,null,4.7300000000000004]
[null,null,null,null,4.74]
[null,null,null,null,4.75]
[null,null,null,null,4.76]
[null,null,null,null,4.7699999999999996]
[null,null,null,null,4.78]
[null,null,null,null,4.79]
[null,null,null,null,4.8]
[null,null,null,null,4.8099999999999996]
[null,null,null,null,4.82]
[null,null,null,null,4.83]
[null,null,null,null,4.84]
[null,null,null,null,4.8499999999999996]
[null,null,null,null,4.8600000000000003]
[null,null,null,null,4.87]
[null,null,null,null,4.88]
[null,null,null,null,4.8899999999999997]
[null,null,null,null,4.9000000000000004]
[null,null,null,null,4.91]
[null,null,null,null,4.92]
[null,null,null,null,4.93]
[null,null,null,null,4.9400000000000004]
[null,null,null,null,4.95]
[null,null,null,null,4.96]
[null,null,null,null,4.97]
[null,null,null,null,4.9800000000000004]
[null,null,null,null,4.99]
[null,null,null,null,5]
[null,null,null,null,5.01]
[null,null,null,null,5.0199999999999996]
[null,null,null,null,5.03]
[null,null,null,null,5.04]
[null,null,null,null,5.05]
[null,null,null,null,5.0599999999999996]
[null,null,null,null,5.07]
[null,null,null,null,5.08]
[null,null,null,null,5.09]
[null,null,null,null,5.0999999999999996]
[null,null,null,null,5.1100000000000003]
[null,null,null,null,5.12]
[null,null,null,null,5.13]
[null,null,null,null,5.14]
[null,null,null,null,5.15]
[null,null,null,null,5.16]
[null,null,null,null,5.17]
[null,null,null,null,5.18]
[null,null,null,null,5.19]
[null,null,null,null,5.2]
[null,null,null,null,5.21]
[null,null,null,null,5.22]
[null,null,null,null,5.23]
[null,null,null,null,5.24]
[null,null,null,null,5.25]
[null,null,null,null,5.26]
[null,null,null,null,5.27]
[null,null,null,null,5.28]
[null,null,null,null,5.29]
[null,null,null,null,5.3]
[null,null,null,null,5.31]
[null,null,null,null,5.32]
[null,null,null,null,5.33]
[null,null,null,null,5.34]
[null,null,null,null,5.35]
[null,null,null,null,5.36]
[null,null,null,null,5.37]
[null,null,null,null,5.38]
[null,null,null,null,5.39]
[null,null,null,null,5.4]
[null,null,null,null,5.41]
[null,null,null,null,5.42]
[null,null,null,null,5.43]
[null,null,null,null,5.44]
[null,null,null,null,5.45]
[null,null,null,null,5.46]
[null,null,null,null,5.47]
[null,null,null,null,5.48]
[null,null,null,null,5.49]
[null,null,null,null,5.5]
[null,null,null,null,5.51]
[null,null,null,null,5.52]
[null,null,null,null,5.53]
[null,null,null,null,5.54]
[null,null,null,null,5.55]
[null,null,null,null,5.56]
[null,null,null,null,5.57]
[null,null,null,null,5.58]
[null,null,null,null,5.59]
[null,null,null,null,5.6]
[null,null,null,null,5.61]
[null,null,null,null,5.62]
[null,null,null,null,5.63]
[null,null,null,null,5.64]
[null,null,null,null,5.65]
[null,null,null,null,5.66]
[null,null,null,null,5.67]
[null,null,null,null,5.68]
[null,null,null,null,5.69]
[null,null,null,null,5.7]
[null,null,null,null,5.71]
[null,null,null,null,5.72]
[null,null,null,null,5.73]
[null,null,null,null,5.74]
[null,null,null,null,5.75]
[null,null,null,null,5.76]
[null,null,null,null,5.77]
[null,null,null,null,5.78]
[null,null,null,null,5.79]
[null,null,null,null,5.8]
[null,null,null,null,5.81]
[null,null,null,null,5.82]
[null,null,null,null,5.83]
[null,null,null,null,5.84]
[null,null,null,null,5.85]
[null,null,null,null,5.86]
[null,null,null,null,5.87]
[null,null,null,null,5.88]
[null,null,null,null,5.89]
[null,null,null,null,5.9]
[null,null,null,null,5.91]
[null,null,null,null,5.92]
[null,null,null,null,5.93]
[null,null,null,null,5.94]
[null,null,null,null,5.95]
[null,null,null,null,5.96]
[null,null,null,null,5.97]
[null,null,null,null,5.98]
[null,null,null,null,5.99]
[null,null,null,null,6]

{"sheet":"Shift2","index":2,"n_rows":995,"n_cols":14,"rows_kept":995,"cut":false,"hidden":false,"merged":[]}
[]
["Date","Machine No.","Machine Name","Gm/ML","Size MM"," Drawing  "," KG.\\ day","ML X KG."," ML.\\ day","Color","Shift"," name of the employee","OR No.","Comment"]
[{"$f":"IF(B3=\"\",\"\",IF(A3=\"\",TODAY(),A3))","v":"2019-02-13"},300,{"$f":"IFERROR(VLOOKUP(B3,Machine!A2:B597,2,FALSE),\"\")","v":"Jakar"},31,0.08,"tttttt",66,{"$f":"IFERROR(ROUND(SUM(1000/D3),2),\"\")","v":32.26},{"$f":"IFERROR(ROUND(SUM(G3*H3),2),\"\")","v":2129.16},"Black&White",2,"عادل عزمي شنودة",2133,"uuuuuuu"]
[{"$f":"IF(B4=\"\",\"\",IF(A4=\"\",TODAY(),A4))","v":""},null,{"$f":"IFERROR(VLOOKUP(B4,Machine!A3:B598,2,FALSE),\"\")","v":""},null,null,null,null,{"$f":"IFERROR(ROUND(SUM(1000/D4),2),\"\")","v":""},{"$f":"IFERROR(ROUND(SUM(G4*H4),2),\"\")","v":""},null,2]
["",null,{"$f":"IFERROR(VLOOKUP(B5,Machine!A4:B599,2,FALSE),\"\")","v":""},null,null,null,null,"","",null,2]
["",null,{"$f":"IFERROR(VLOOKUP(B6,Machine!A5:B600,2,FALSE),\"\")","v":""},null,null,null,null,"","",null,2]
["",null,{"$f":"IFERROR(VLOOKUP(B7,Machine!A6:B601,2,FALSE),\"\")","v":""},null,null,null,null,"","",null,2]
["",null,{"$f":"IFERROR(VLOOKUP(B8,Machine!A7:B602,2,FALSE),\"\")","v":""},null,null,null,null,"","",null,2]
["",null,{"$f":"IFERROR(VLOOKUP(B9,Machine!A8:B603,2,FALSE),\"\")","v":""},null,null,null,null,"","",null,2]
["",null,{"$f":"IFERROR(VLOOKUP(B10,Machine!A9:B604,2,FALSE),\"\")","v":""},null,null,null,null,"","",null,2]
["",null,{"$f":"IFERROR(VLOOKUP(B11,Machine!A10:B605,2,FALSE),\"\")","v":""},null,null,null,null,"","",null,2]
["",null,{"$f":"IFERROR(VLOOKUP(B12,Machine!A11:B606,2,FALSE),\"\")","v":""},null,null,null,null,"","",null,2]
["",null,{"$f":"IFERROR(VLOOKUP(B13,Machine!A12:B607,2,FALSE),\"\")","v":""},null,null,null,null,"","",null,2]
["",null,{"$f":"IFERROR(VLOOKUP(B14,Machine!A13:B608,2,FALSE),\"\")","v":""},null,null,null,null,"","",null,2]
["",null,{"$f":"IFERROR(VLOOKUP(B15,Machine!A14:B609,2,FALSE),\"\")","v":""},null,null,null,null,"","",null,2]
["",null,{"$f":"IFERROR(VLOOKUP(B16,Machine!A15:B610,2,FALSE),\"\")","v":""},null,null,null,null,"","",null,2]
["",null,{"$f":"IFERROR(VLOOKUP(B17,Machine!A16:B611,2,FALSE),\"\")","v":""},null,null,null,null,"","",null,2]
["",null,{"$f":"IFERROR(VLOOKUP(B18,Machine!A17:B612,2,FALSE),\"\")","v":""},null,null,null,null,"","",null,2]
["",null,{"$f":"IFERROR(VLOOKUP(B19,Machine!A18:B613,2,FALSE),\"\")","v":""},null,null,null,null,"","",null,2]
["",null,{"$f":"IFERROR(VLOOKUP(B20,Machine!A19:B614,2,FALSE),\"\")","v":""},null,null,null,null,"","",null,2]
["",null,{"$f":"IFERROR(VLOOKUP(B21,Machine!A20:B615,2,FALSE),\"\")","v":""},null,null,null,null,"","",null,2]
["",null,{"$f":"IFERROR(VLOOKUP(B22,Machine!A21:B616,2,FALSE),\"\")","v":""},null,null,null,null,"","",null,2]
["",null,{"$f":"IFERROR(VLOOKUP(B23,Machine!A22:B617,2,FALSE),\"\")","v":""},null,null,null,null,"","",null,2]
["",null,{"$f":"IFERROR(VLOOKUP(B24,Machine!A23:B618,2,FALSE),\"\")","v":""},null,null,null,null,"","",null,2]
["",null,{"$f":"IFERROR(VLOOKUP(B25,Machine!A24:B619,2,FALSE),\"\")","v":""},null,null,null,null,"","",null,2]
["",null,{"$f":"IFERROR(VLOOKUP(B26,Machine!A25:B620,2,FALSE),\"\")","v":""},null,null,null,null,"","",null,2]
["",null,{"$f":"IFERROR(VLOOKUP(B27,Machine!A26:B621,2,FALSE),\"\")","v":""},null,null,null,null,"","",null,2]
["",null,{"$f":"IFERROR(VLOOKUP(B28,Machine!A27:B622,2,FALSE),\"\")","v":""},null,null,null,null,"","",null,2]
["",null,{"$f":"IFERROR(VLOOKUP(B29,Machine!A28:B623,2,FALSE),\"\")","v":""},null,null,null,null,"","",null,2]
["",null,{"$f":"IFERROR(VLOOKUP(B30,Machine!A29:B624,2,FALSE),\"\")","v":""},null,null,null,null,"","",null,2]
["",null,{"$f":"IFERROR(VLOOKUP(B31,Machine!A30:B625,2,FALSE),\"\")","v":""},null,null,null,null,"","",null,2]
["",null,{"$f":"IFERROR(VLOOKUP(B32,Machine!A31:B626,2,FALSE),\"\")","v":""},null,null,null,null,"","",null,2]
["",null,{"$f":"IFERROR(VLOOKUP(B33,Machine!A32:B627,2,FALSE),\"\")","v":""},null,null,null,null,"","",null,2]
["",null,{"$f":"IFERROR(VLOOKUP(B34,Machine!A33:B628,2,FALSE),\"\")","v":""},null,null,null,null,"","",null,2]
["",null,{"$f":"IFERROR(VLOOKUP(B35,Machine!A34:B629,2,FALSE),\"\")","v":""},null,null,null,null,"","",null,2]
["",null,{"$f":"IFERROR(VLOOKUP(B36,Machine!A35:B630,2,FALSE),\"\")","v":""},null,null,null,null,"","",null,2]
["",null,{"$f":"IFERROR(VLOOKUP(B37,Machine!A36:B631,2,FALSE),\"\")","v":""},null,null,null,null,"","",null,2]
["",null,{"$f":"IFERROR(VLOOKUP(B38,Machine!A37:B632,2,FALSE),\"\")","v":""},null,null,null,null,"","",null,2]
["",null,{"$f":"IFERROR(VLOOKUP(B39,Machine!A38:B633,2,FALSE),\"\")","v":""},null,null,null,null,"","",null,2]
["",null,{"$f":"IFERROR(VLOOKUP(B40,Machine!A39:B634,2,FALSE),\"\")","v":""},null,null,null,null,"","",null,2]
["",null,{"$f":"IFERROR(VLOOKUP(B41,Machine!A40:B635,2,FALSE),\"\")","v":""},null,null,null,null,"","",null,2]
["",null,{"$f":"IFERROR(VLOOKUP(B42,Machine!A41:B636,2,FALSE),\"\")","v":""},null,null,null,null,"","",null,2]
["",null,{"$f":"IFERROR(VLOOKUP(B43,Machine!A42:B637,2,FALSE),\"\")","v":""},null,null,null,null,"","",null,2]
["",null,{"$f":"IFERROR(VLOOKUP(B44,Machine!A43:B638,2,FALSE),\"\")","v":""},null,null,null,null,"","",null,2]
["",null,{"$f":"IFERROR(VLOOKUP(B45,Machine!A44:B639,2,FALSE),\"\")","v":""},null,null,null,null,"","",null,2]
["",null,{"$f":"IFERROR(VLOOKUP(B46,Machine!A45:B640,2,FALSE),\"\")","v":""},null,null,null,null,"","",null,2]
["",null,{"$f":"IFERROR(VLOOKUP(B47,Machine!A46:B641,2,FALSE),\"\")","v":""},null,null,null,null,"","",null,2]
["",null,{"$f":"IFERROR(VLOOKUP(B48,Machine!A47:B642,2,FALSE),\"\")","v":""},null,null,null,null,"","",null,2]
["",null,{"$f":"IFERROR(VLOOKUP(B49,Machine!A48:B643,2,FALSE),\"\")","v":""},null,null,null,null,"","",null,2]
["",null,{"$f":"IFERROR(VLOOKUP(B50,Machine!A49:B644,2,FALSE),\"\")","v":""},null,null,null,null,"","",null,2]
["",null,{"$f":"IFERROR(VLOOKUP(B51,Machine!A50:B645,2,FALSE),\"\")","v":""},null,null,null,null,"","",null,2]
["",null,{"$f":"IFERROR(VLOOKUP(B52,Machine!A51:B646,2,FALSE),\"\")","v":""},null,null,null,null,"","",null,2]
["",null,{"$f":"IFERROR(VLOOKUP(B53,Machine!A52:B647,2,FALSE),\"\")","v":""},null,null,null,null,"","",null,2]
["",null,{"$f":"IFERROR(VLOOKUP(B54,Machine!A53:B648,2,FALSE),\"\")","v":""},null,null,null,null,"","",null,2]
["",null,{"$f":"IFERROR(VLOOKUP(B55,Machine!A54:B649,2,FALSE),\"\")","v":""},null,null,null,null,"","",null,2]
["",null,{"$f":"IFERROR(VLOOKUP(B56,Machine!A55:B650,2,FALSE),\"\")","v":""},null,null,null,null,"","",null,2]
["",null,{"$f":"IFERROR(VLOOKUP(B57,Machine!A56:B651,2,FALSE),\"\")","v":""},null,null,null,null,"","",null,2]
["",null,{"$f":"IFERROR(VLOOKUP(B58,Machine!A57:B652,2,FALSE),\"\")","v":""},null,null,null,null,"","",null,2]
["",null,{"$f":"IFERROR(VLOOKUP(B59,Machine!A58:B653,2,FALSE),\"\")","v":""},null,null,null,null,"","",null,2]
["",null,{"$f":"IFERROR(VLOOKUP(B60,Machine!A59:B654,2,FALSE),\"\")","v":""},null,null,null,null,"","",null,2]
["",null,{"$f":"IFERROR(VLOOKUP(B61,Machine!A60:B655,2,FALSE),\"\")","v":""},null,null,null,null,"","",null,2]
["",null,{"$f":"IFERROR(VLOOKUP(B62,Machine!A61:B656,2,FALSE),\"\")","v":""},null,null,null,null,"","",null,2]
["",null,{"$f":"IFERROR(VLOOKUP(B63,Machine!A62:B657,2,FALSE),\"\")","v":""},null,null,null,null,"","",null,2]
["",null,{"$f":"IFERROR(VLOOKUP(B64,Machine!A63:B658,2,FALSE),\"\")","v":""},null,null,null,null,"","",null,2]
["",null,{"$f":"IFERROR(VLOOKUP(B65,Machine!A64:B659,2,FALSE),\"\")","v":""},null,null,null,null,"","",null,2]
["",null,{"$f":"IFERROR(VLOOKUP(B66,Machine!A65:B660,2,FALSE),\"\")","v":""},null,null,null,null,"","",null,2]
["",null,{"$f":"IFERROR(VLOOKUP(B67,Machine!A66:B661,2,FALSE),\"\")","v":""},null,null,null,null,"","",null,2]
[{"$f":"IF(B68=\"\",\"\",IF(A68=\"\",TODAY(),A68))","v":""},null,{"$f":"IFERROR(VLOOKUP(B68,Machine!A67:B662,2,FALSE),\"\")","v":""},null,null,null,null,{"$f":"IFERROR(ROUND(SUM(1000/D68),2),\"\")","v":""},{"$f":"IFERROR(ROUND(SUM(G68*H68),2),\"\")","v":""},null,2]
["",null,{"$f":"IFERROR(VLOOKUP(B69,Machine!A68:B663,2,FALSE),\"\")","v":""},null,null,null,null,"","",null,2]
["",null,{"$f":"IFERROR(VLOOKUP(B70,Machine!A69:B664,2,FALSE),\"\")","v":""},null,null,null,null,"","",null,2]
["",null,{"$f":"IFERROR(VLOOKUP(B71,Machine!A70:B665,2,FALSE),\"\")","v":""},null,null,null,null,"","",null,2]
["",null,{"$f":"IFERROR(VLOOKUP(B72,Machine!A71:B666,2,FALSE),\"\")","v":""},null,null,null,null,"","",null,2]
["",null,{"$f":"IFERROR(VLOOKUP(B73,Machine!A72:B667,2,FALSE),\"\")","v":""},null,null,null,null,"","",null,2]
["",null,{"$f":"IFERROR(VLOOKUP(B74,Machine!A73:B668,2,FALSE),\"\")","v":""},null,null,null,null,"","",null,2]
["",null,{"$f":"IFERROR(VLOOKUP(B75,Machine!A74:B669,2,FALSE),\"\")","v":""},null,null,null,null,"","",null,2]
["",null,{"$f":"IFERROR(VLOOKUP(B76,Machine!A75:B670,2,FALSE),\"\")","v":""},null,null,null,null,"","",null,2]
["",null,{"$f":"IFERROR(VLOOKUP(B77,Machine!A76:B671,2,FALSE),\"\")","v":""},null,null,null,null,"","",null,2]
["",null,{"$f":"IFERROR(VLOOKUP(B78,Machine!A77:B672,2,FALSE),\"\")","v":""},null,null,null,null,"","",null,2]
["",null,{"$f":"IFERROR(VLOOKUP(B79,Machine!A78:B673,2,FALSE),\"\")","v":""},null,null,null,null,"","",null,2]
["",null,{"$f":"IFERROR(VLOOKUP(B80,Machine!A79:B674,2,FALSE),\"\")","v":""},null,null,null,null,"","",null,2]
["",null,{"$f":"IFERROR(VLOOKUP(B81,Machine!A80:B675,2,FALSE),\"\")","v":""},null,null,null,null,"","",null,2]
["",null,{"$f":"IFERROR(VLOOKUP(B82,Machine!A81:B676,2,FALSE),\"\")","v":""},null,null,null,null,"","",null,2]
["",null,{"$f":"IFERROR(VLOOKUP(B83,Machine!A82:B677,2,FALSE),\"\")","v":""},null,null,null,null,"","",null,2]
["",null,{"$f":"IFERROR(VLOOKUP(B84,Machine!A83:B678,2,FALSE),\"\")","v":""},null,null,null,null,"","",null,2]
["",null,{"$f":"IFERROR(VLOOKUP(B85,Machine!A84:B679,2,FALSE),\"\")","v":""},null,null,null,null,"","",null,2]
["",null,{"$f":"IFERROR(VLOOKUP(B86,Machine!A85:B680,2,FALSE),\"\")","v":""},null,null,null,null,"","",null,2]
["",null,{"$f":"IFERROR(VLOOKUP(B87,Machine!A86:B681,2,FALSE),\"\")","v":""},null,null,null,null,"","",null,2]
["",null,{"$f":"IFERROR(VLOOKUP(B88,Machine!A87:B682,2,FALSE),\"\")","v":""},null,null,null,null,"","",null,2]
["",null,{"$f":"IFERROR(VLOOKUP(B89,Machine!A88:B683,2,FALSE),\"\")","v":""},null,null,null,null,"","",null,2]
["",null,{"$f":"IFERROR(VLOOKUP(B90,Machine!A89:B684,2,FALSE),\"\")","v":""},null,null,null,null,"","",null,2]
["",null,{"$f":"IFERROR(VLOOKUP(B91,Machine!A90:B685,2,FALSE),\"\")","v":""},null,null,null,null,"","",null,2]
["",null,{"$f":"IFERROR(VLOOKUP(B92,Machine!A91:B686,2,FALSE),\"\")","v":""},null,null,null,null,"","",null,2]
["",null,{"$f":"IFERROR(VLOOKUP(B93,Machine!A92:B687,2,FALSE),\"\")","v":""},null,null,null,null,"","",null,2]
["",null,{"$f":"IFERROR(VLOOKUP(B94,Machine!A93:B688,2,FALSE),\"\")","v":""},null,null,null,null,"","",null,2]
["",null,{"$f":"IFERROR(VLOOKUP(B95,Machine!A94:B689,2,FALSE),\"\")","v":""},null,null,null,null,"","",null,2]
["",null,{"$f":"IFERROR(VLOOKUP(B96,Machine!A95:B690,2,FALSE),\"\")","v":""},null,null,null,null,"","",null,2]
["",null,{"$f":"IFERROR(VLOOKUP(B97,Machine!A96:B691,2,FALSE),\"\")","v":""},null,null,null,null,"","",null,2]
["",null,{"$f":"IFERROR(VLOOKUP(B98,Machine!A97:B692,2,FALSE),\"\")","v":""},null,null,null,null,"","",null,2]
["",null,{"$f":"IFERROR(VLOOKUP(B99,Machine!A98:B693,2,FALSE),\"\")","v":""},null,null,null,null,"","",null,2]
["",null,{"$f":"IFERROR(VLOOKUP(B100,Machine!A99:B694,2,FALSE),\"\")","v":""},null,null,null,null,"","",null,2]
["",null,{"$f":"IFERROR(VLOOKUP(B101,Machine!A100:B695,2,FALSE),\"\")","v":""},null,null,null,null,"","",null,2]
["",null,{"$f":"IFERROR(VLOOKUP(B102,Machine!A101:B696,2,FALSE),\"\")","v":""},null,null,null,null,"","",null,2]
["",null,{"$f":"IFERROR(VLOOKUP(B103,Machine!A102:B697,2,FALSE),\"\")","v":""},null,null,null,null,"","",null,2]
["",null,{"$f":"IFERROR(VLOOKUP(B104,Machine!A103:B698,2,FALSE),\"\")","v":""},null,null,null,null,"","",null,2]
["",null,{"$f":"IFERROR(VLOOKUP(B105,Machine!A104:B699,2,FALSE),\"\")","v":""},null,null,null,null,"","",null,2]
["",null,{"$f":"IFERROR(VLOOKUP(B106,Machine!A105:B700,2,FALSE),\"\")","v":""},null,null,null,null,"","",null,2]
["",null,{"$f":"IFERROR(VLOOKUP(B107,Machine!A106:B701,2,FALSE),\"\")","v":""},null,null,null,null,"","",null,2]
["",null,{"$f":"IFERROR(VLOOKUP(B108,Machine!A107:B702,2,FALSE),\"\")","v":""},null,null,null,null,"","",null,2]
["",null,{"$f":"IFERROR(VLOOKUP(B109,Machine!A108:B703,2,FALSE),\"\")","v":""},null,null,null,null,"","",null,2]
["",null,{"$f":"IFERROR(VLOOKUP(B110,Machine!A109:B704,2,FALSE),\"\")","v":""},null,null,null,null,"","",null,2]
["",null,{"$f":"IFERROR(VLOOKUP(B111,Machine!A110:B705,2,FALSE),\"\")","v":""},null,null,null,null,"","",null,2]
["",null,{"$f":"IFERROR(VLOOKUP(B112,Machine!A111:B706,2,FALSE),\"\")","v":""},null,null,null,null,"","",null,2]
["",null,{"$f":"IFERROR(VLOOKUP(B113,Machine!A112:B707,2,FALSE),\"\")","v":""},null,null,null,null,"","",null,2]
["",null,{"$f":"IFERROR(VLOOKUP(B114,Machine!A113:B708,2,FALSE),\"\")","v":""},null,null,null,null,"","",null,2]
["",null,{"$f":"IFERROR(VLOOKUP(B115,Machine!A114:B709,2,FALSE),\"\")","v":""},null,null,null,null,"","",null,2]
["",null,{"$f":"IFERROR(VLOOKUP(B116,Machine!A115:B710,2,FALSE),\"\")","v":""},null,null,null,null,"","",null,2]
["",null,{"$f":"IFERROR(VLOOKUP(B117,Machine!A116:B711,2,FALSE),\"\")","v":""},null,null,null,null,"","",null,2]
["",null,{"$f":"IFERROR(VLOOKUP(B118,Machine!A117:B712,2,FALSE),\"\")","v":""},null,null,null,null,"","",null,2]
["",null,{"$f":"IFERROR(VLOOKUP(B119,Machine!A118:B713,2,FALSE),\"\")","v":""},null,null,null,null,"","",null,2]
["",null,{"$f":"IFERROR(VLOOKUP(B120,Machine!A119:B714,2,FALSE),\"\")","v":""},null,null,null,null,"","",null,2]
["",null,{"$f":"IFERROR(VLOOKUP(B121,Machine!A120:B715,2,FALSE),\"\")","v":""},null,null,null,null,"","",null,2]
["",null,{"$f":"IFERROR(VLOOKUP(B122,Machine!A121:B716,2,FALSE),\"\")","v":""},null,null,null,null,"","",null,2]
["",null,{"$f":"IFERROR(VLOOKUP(B123,Machine!A122:B717,2,FALSE),\"\")","v":""},null,null,null,null,"","",null,2]
["",null,{"$f":"IFERROR(VLOOKUP(B124,Machine!A123:B718,2,FALSE),\"\")","v":""},null,null,null,null,"","",null,2]
["",null,{"$f":"IFERROR(VLOOKUP(B125,Machine!A124:B719,2,FALSE),\"\")","v":""},null,null,null,null,"","",null,2]
["",null,{"$f":"IFERROR(VLOOKUP(B126,Machine!A125:B720,2,FALSE),\"\")","v":""},null,null,null,null,"","",null,2]
["",null,{"$f":"IFERROR(VLOOKUP(B127,Machine!A126:B721,2,FALSE),\"\")","v":""},null,null,null,null,"","",null,2]
["",null,{"$f":"IFERROR(VLOOKUP(B128,Machine!A127:B722,2,FALSE),\"\")","v":""},null,null,null,null,"","",null,2]
["",null,{"$f":"IFERROR(VLOOKUP(B129,Machine!A128:B723,2,FALSE),\"\")","v":""},null,null,null,null,"","",null,2]
["",null,{"$f":"IFERROR(VLOOKUP(B130,Machine!A129:B724,2,FALSE),\"\")","v":""},null,null,null,null,"","",null,2]
["",null,{"$f":"IFERROR(VLOOKUP(B131,Machine!A130:B725,2,FALSE),\"\")","v":""},null,null,null,null,"","",null,2]
[{"$f":"IF(B132=\"\",\"\",IF(A132=\"\",TODAY(),A132))","v":""},null,{"$f":"IFERROR(VLOOKUP(B132,Machine!A131:B726,2,FALSE),\"\")","v":""},null,null,null,null,{"$f":"IFERROR(ROUND(SUM(1000/D132),2),\"\")","v":""},{"$f":"IFERROR(ROUND(SUM(G132*H132),2),\"\")","v":""},null,2]
["",null,{"$f":"IFERROR(VLOOKUP(B133,Machine!A132:B727,2,FALSE),\"\")","v":""},null,null,null,null,"","",null,2]
["",null,{"$f":"IFERROR(VLOOKUP(B134,Machine!A133:B728,2,FALSE),\"\")","v":""},null,null,null,null,"","",null,2]
["",null,{"$f":"IFERROR(VLOOKUP(B135,Machine!A134:B729,2,FALSE),\"\")","v":""},null,null,null,null,"","",null,2]
["",null,{"$f":"IFERROR(VLOOKUP(B136,Machine!A135:B730,2,FALSE),\"\")","v":""},null,null,null,null,"","",null,2]
["",null,{"$f":"IFERROR(VLOOKUP(B137,Machine!A136:B731,2,FALSE),\"\")","v":""},null,null,null,null,"","",null,2]
["",null,{"$f":"IFERROR(VLOOKUP(B138,Machine!A137:B732,2,FALSE),\"\")","v":""},null,null,null,null,"","",null,2]
["",null,{"$f":"IFERROR(VLOOKUP(B139,Machine!A138:B733,2,FALSE),\"\")","v":""},null,null,null,null,"","",null,2]
["",null,{"$f":"IFERROR(VLOOKUP(B140,Machine!A139:B734,2,FALSE),\"\")","v":""},null,null,null,null,"","",null,2]
["",null,{"$f":"IFERROR(VLOOKUP(B141,Machine!A140:B735,2,FALSE),\"\")","v":""},null,null,null,null,"","",null,2]
["",null,{"$f":"IFERROR(VLOOKUP(B142,Machine!A141:B736,2,FALSE),\"\")","v":""},null,null,null,null,"","",null,2]
["",null,{"$f":"IFERROR(VLOOKUP(B143,Machine!A142:B737,2,FALSE),\"\")","v":""},null,null,null,null,"","",null,2]
["",null,{"$f":"IFERROR(VLOOKUP(B144,Machine!A143:B738,2,FALSE),\"\")","v":""},null,null,null,null,"","",null,2]
["",null,{"$f":"IFERROR(VLOOKUP(B145,Machine!A144:B739,2,FALSE),\"\")","v":""},null,null,null,null,"","",null,2]
["",null,{"$f":"IFERROR(VLOOKUP(B146,Machine!A145:B740,2,FALSE),\"\")","v":""},null,null,null,null,"","",null,2]
["",null,{"$f":"IFERROR(VLOOKUP(B147,Machine!A146:B741,2,FALSE),\"\")","v":""},null,null,null,null,"","",null,2]
["",null,{"$f":"IFERROR(VLOOKUP(B148,Machine!A147:B742,2,FALSE),\"\")","v":""},null,null,null,null,"","",null,2]
["",null,{"$f":"IFERROR(VLOOKUP(B149,Machine!A148:B743,2,FALSE),\"\")","v":""},null,null,null,null,"","",null,2]
["",null,{"$f":"IFERROR(VLOOKUP(B150,Machine!A149:B744,2,FALSE),\"\")","v":""},null,null,null,null,"","",null,2]
["",null,{"$f":"IFERROR(VLOOKUP(B151,Machine!A150:B745,2,FALSE),\"\")","v":""},null,null,null,null,"","",null,2]
["",null,{"$f":"IFERROR(VLOOKUP(B152,Machine!A151:B746,2,FALSE),\"\")","v":""},null,null,null,null,"","",null,2]
["",null,{"$f":"IFERROR(VLOOKUP(B153,Machine!A152:B747,2,FALSE),\"\")","v":""},null,null,null,null,"","",null,2]
["",null,{"$f":"IFERROR(VLOOKUP(B154,Machine!A153:B748,2,FALSE),\"\")","v":""},null,null,null,null,"","",null,2]
["",null,{"$f":"IFERROR(VLOOKUP(B155,Machine!A154:B749,2,FALSE),\"\")","v":""},null,null,null,null,"","",null,2]
["",null,{"$f":"IFERROR(VLOOKUP(B156,Machine!A155:B750,2,FALSE),\"\")","v":""},null,null,null,null,"","",null,2]
["",null,{"$f":"IFERROR(VLOOKUP(B157,Machine!A156:B751,2,FALSE),\"\")","v":""},null,null,null,null,"","",null,2]
["",null,{"$f":"IFERROR(VLOOKUP(B158,Machine!A157:B752,2,FALSE),\"\")","v":""},null,null,null,null,"","",null,2]
["",null,{"$f":"IFERROR(VLOOKUP(B159,Machine!A158:B753,2,FALSE),\"\")","v":""},null,null,null,null,"","",null,2]
["",null,{"$f":"IFERROR(VLOOKUP(B160,Machine!A159:B754,2,FALSE),\"\")","v":""},null,null,null,null,"","",null,2]
["",null,{"$f":"IFERROR(VLOOKUP(B161,Machine!A160:B755,2,FALSE),\"\")","v":""},null,null,null,null,"","",null,2]
["",null,{"$f":"IFERROR(VLOOKUP(B162,Machine!A161:B756,2,FALSE),\"\")","v":""},null,null,null,null,"","",null,2]
["",null,{"$f":"IFERROR(VLOOKUP(B163,Machine!A162:B757,2,FALSE),\"\")","v":""},null,null,null,null,"","",null,2]
["",null,{"$f":"IFERROR(VLOOKUP(B164,Machine!A163:B758,2,FALSE),\"\")","v":""},null,null,null,null,"","",null,2]
["",null,{"$f":"IFERROR(VLOOKUP(B165,Machine!A164:B759,2,FALSE),\"\")","v":""},null,null,null,null,"","",null,2]
["",null,{"$f":"IFERROR(VLOOKUP(B166,Machine!A165:B760,2,FALSE),\"\")","v":""},null,null,null,null,"","",null,2]
["",null,{"$f":"IFERROR(VLOOKUP(B167,Machine!A166:B761,2,FALSE),\"\")","v":""},null,null,null,null,"","",null,2]
["",null,{"$f":"IFERROR(VLOOKUP(B168,Machine!A167:B762,2,FALSE),\"\")","v":""},null,null,null,null,"","",null,2]
["",null,{"$f":"IFERROR(VLOOKUP(B169,Machine!A168:B763,2,FALSE),\"\")","v":""},null,null,null,null,"","",null,2]
["",null,{"$f":"IFERROR(VLOOKUP(B170,Machine!A169:B764,2,FALSE),\"\")","v":""},null,null,null,null,"","",null,2]
["",null,{"$f":"IFERROR(VLOOKUP(B171,Machine!A170:B765,2,FALSE),\"\")","v":""},null,null,null,null,"","",null,2]
["",null,{"$f":"IFERROR(VLOOKUP(B172,Machine!A171:B766,2,FALSE),\"\")","v":""},null,null,null,null,"","",null,2]
["",null,{"$f":"IFERROR(VLOOKUP(B173,Machine!A172:B767,2,FALSE),\"\")","v":""},null,null,null,null,"","",null,2]
["",null,{"$f":"IFERROR(VLOOKUP(B174,Machine!A173:B768,2,FALSE),\"\")","v":""},null,null,null,null,"","",null,2]
["",null,{"$f":"IFERROR(VLOOKUP(B175,Machine!A174:B769,2,FALSE),\"\")","v":""},null,null,null,null,"","",null,2]
["",null,{"$f":"IFERROR(VLOOKUP(B176,Machine!A175:B770,2,FALSE),\"\")","v":""},null,null,null,null,"","",null,2]
["",null,{"$f":"IFERROR(VLOOKUP(B177,Machine!A176:B771,2,FALSE),\"\")","v":""},null,null,null,null,"","",null,2]
["",null,{"$f":"IFERROR(VLOOKUP(B178,Machine!A177:B772,2,FALSE),\"\")","v":""},null,null,null,null,"","",null,2]
["",null,{"$f":"IFERROR(VLOOKUP(B179,Machine!A178:B773,2,FALSE),\"\")","v":""},null,null,null,null,"","",null,2]
["",null,{"$f":"IFERROR(VLOOKUP(B180,Machine!A179:B774,2,FALSE),\"\")","v":""},null,null,null,null,"","",null,2]
["",null,{"$f":"IFERROR(VLOOKUP(B181,Machine!A180:B775,2,FALSE),\"\")","v":""},null,null,null,null,"","",null,2]
["",null,{"$f":"IFERROR(VLOOKUP(B182,Machine!A181:B776,2,FALSE),\"\")","v":""},null,null,null,null,"","",null,2]
["",null,{"$f":"IFERROR(VLOOKUP(B183,Machine!A182:B777,2,FALSE),\"\")","v":""},null,null,null,null,"","",null,2]
["",null,{"$f":"IFERROR(VLOOKUP(B184,Machine!A183:B778,2,FALSE),\"\")","v":""},null,null,null,null,"","",null,2]
["",null,{"$f":"IFERROR(VLOOKUP(B185,Machine!A184:B779,2,FALSE),\"\")","v":""},null,null,null,null,"","",null,2]
["",null,{"$f":"IFERROR(VLOOKUP(B186,Machine!A185:B780,2,FALSE),\"\")","v":""},null,null,null,null,"","",null,2]
["",null,{"$f":"IFERROR(VLOOKUP(B187,Machine!A186:B781,2,FALSE),\"\")","v":""},null,null,null,null,"","",null,2]
["",null,{"$f":"IFERROR(VLOOKUP(B188,Machine!A187:B782,2,FALSE),\"\")","v":""},null,null,null,null,"","",null,2]
["",null,{"$f":"IFERROR(VLOOKUP(B189,Machine!A188:B783,2,FALSE),\"\")","v":""},null,null,null,null,"","",null,2]
["",null,{"$f":"IFERROR(VLOOKUP(B190,Machine!A189:B784,2,FALSE),\"\")","v":""},null,null,null,null,"","",null,2]
["",null,{"$f":"IFERROR(VLOOKUP(B191,Machine!A190:B785,2,FALSE),\"\")","v":""},null,null,null,null,"","",null,2]
["",null,{"$f":"IFERROR(VLOOKUP(B192,Machine!A191:B786,2,FALSE),\"\")","v":""},null,null,null,null,"","",null,2]
["",null,{"$f":"IFERROR(VLOOKUP(B193,Machine!A192:B787,2,FALSE),\"\")","v":""},null,null,null,null,"","",null,2]
["",null,{"$f":"IFERROR(VLOOKUP(B194,Machine!A193:B788,2,FALSE),\"\")","v":""},null,null,null,null,"","",null,2]
["",null,{"$f":"IFERROR(VLOOKUP(B195,Machine!A194:B789,2,FALSE),\"\")","v":""},null,null,null,null,"","",null,2]
[{"$f":"IF(B196=\"\",\"\",IF(A196=\"\",TODAY(),A196))","v":""},null,{"$f":"IFERROR(VLOOKUP(B196,Machine!A195:B790,2,FALSE),\"\")","v":""},null,null,null,null,{"$f":"IFERROR(ROUND(SUM(1000/D196),2),\"\")","v":""},{"$f":"IFERROR(ROUND(SUM(G196*H196),2),\"\")","v":""},null,2]
["",null,{"$f":"IFERROR(VLOOKUP(B197,Machine!A196:B791,2,FALSE),\"\")","v":""},null,null,null,null,"","",null,2]
["",null,{"$f":"IFERROR(VLOOKUP(B198,Machine!A197:B792,2,FALSE),\"\")","v":""},null,null,null,null,"","",null,2]
["",null,{"$f":"IFERROR(VLOOKUP(B199,Machine!A198:B793,2,FALSE),\"\")","v":""},null,null,null,null,"","",null,2]
["",null,{"$f":"IFERROR(VLOOKUP(B200,Machine!A199:B794,2,FALSE),\"\")","v":""},null,null,null,null,"","",null,2]
["",null,{"$f":"IFERROR(VLOOKUP(B201,Machine!A200:B795,2,FALSE),\"\")","v":""},null,null,null,null,"","",null,2]
["",null,{"$f":"IFERROR(VLOOKUP(B202,Machine!A201:B796,2,FALSE),\"\")","v":""},null,null,null,null,"","",null,2]
["",null,{"$f":"IFERROR(VLOOKUP(B203,Machine!A202:B797,2,FALSE),\"\")","v":""},null,null,null,null,"","",null,2]
["",null,{"$f":"IFERROR(VLOOKUP(B204,Machine!A203:B798,2,FALSE),\"\")","v":""},null,null,null,null,"","",null,2]
["",null,{"$f":"IFERROR(VLOOKUP(B205,Machine!A204:B799,2,FALSE),\"\")","v":""},null,null,null,null,"","",null,2]
["",null,{"$f":"IFERROR(VLOOKUP(B206,Machine!A205:B800,2,FALSE),\"\")","v":""},null,null,null,null,"","",null,2]
["",null,{"$f":"IFERROR(VLOOKUP(B207,Machine!A206:B801,2,FALSE),\"\")","v":""},null,null,null,null,"","",null,2]
["",null,{"$f":"IFERROR(VLOOKUP(B208,Machine!A207:B802,2,FALSE),\"\")","v":""},null,null,null,null,"","",null,2]
["",null,{"$f":"IFERROR(VLOOKUP(B209,Machine!A208:B803,2,FALSE),\"\")","v":""},null,null,null,null,"","",null,2]
["",null,{"$f":"IFERROR(VLOOKUP(B210,Machine!A209:B804,2,FALSE),\"\")","v":""},null,null,null,null,"","",null,2]
["",null,{"$f":"IFERROR(VLOOKUP(B211,Machine!A210:B805,2,FALSE),\"\")","v":""},null,null,null,null,"","",null,2]
["",null,{"$f":"IFERROR(VLOOKUP(B212,Machine!A211:B806,2,FALSE),\"\")","v":""},null,null,null,null,"","",null,2]
["",null,{"$f":"IFERROR(VLOOKUP(B213,Machine!A212:B807,2,FALSE),\"\")","v":""},null,null,null,null,"","",null,2]
["",null,{"$f":"IFERROR(VLOOKUP(B214,Machine!A213:B808,2,FALSE),\"\")","v":""},null,null,null,null,"","",null,2]
["",null,{"$f":"IFERROR(VLOOKUP(B215,Machine!A214:B809,2,FALSE),\"\")","v":""},null,null,null,null,"","",null,2]
["",null,{"$f":"IFERROR(VLOOKUP(B216,Machine!A215:B810,2,FALSE),\"\")","v":""},null,null,null,null,"","",null,2]
["",null,{"$f":"IFERROR(VLOOKUP(B217,Machine!A216:B811,2,FALSE),\"\")","v":""},null,null,null,null,"","",null,2]
["",null,{"$f":"IFERROR(VLOOKUP(B218,Machine!A217:B812,2,FALSE),\"\")","v":""},null,null,null,null,"","",null,2]
["",null,{"$f":"IFERROR(VLOOKUP(B219,Machine!A218:B813,2,FALSE),\"\")","v":""},null,null,null,null,"","",null,2]
["",null,{"$f":"IFERROR(VLOOKUP(B220,Machine!A219:B814,2,FALSE),\"\")","v":""},null,null,null,null,"","",null,2]
["",null,{"$f":"IFERROR(VLOOKUP(B221,Machine!A220:B815,2,FALSE),\"\")","v":""},null,null,null,null,"","",null,2]
["",null,{"$f":"IFERROR(VLOOKUP(B222,Machine!A221:B816,2,FALSE),\"\")","v":""},null,null,null,null,"","",null,2]
["",null,{"$f":"IFERROR(VLOOKUP(B223,Machine!A222:B817,2,FALSE),\"\")","v":""},null,null,null,null,"","",null,2]
["",null,{"$f":"IFERROR(VLOOKUP(B224,Machine!A223:B818,2,FALSE),\"\")","v":""},null,null,null,null,"","",null,2]
["",null,{"$f":"IFERROR(VLOOKUP(B225,Machine!A224:B819,2,FALSE),\"\")","v":""},null,null,null,null,"","",null,2]
["",null,{"$f":"IFERROR(VLOOKUP(B226,Machine!A225:B820,2,FALSE),\"\")","v":""},null,null,null,null,"","",null,2]
["",null,{"$f":"IFERROR(VLOOKUP(B227,Machine!A226:B821,2,FALSE),\"\")","v":""},null,null,null,null,"","",null,2]
["",null,{"$f":"IFERROR(VLOOKUP(B228,Machine!A227:B822,2,FALSE),\"\")","v":""},null,null,null,null,"","",null,2]
["",null,{"$f":"IFERROR(VLOOKUP(B229,Machine!A228:B823,2,FALSE),\"\")","v":""},null,null,null,null,"","",null,2]
["",null,{"$f":"IFERROR(VLOOKUP(B230,Machine!A229:B824,2,FALSE),\"\")","v":""},null,null,null,null,"","",null,2]
["",null,{"$f":"IFERROR(VLOOKUP(B231,Machine!A230:B825,2,FALSE),\"\")","v":""},null,null,null,null,"","",null,2]
["",null,{"$f":"IFERROR(VLOOKUP(B232,Machine!A231:B826,2,FALSE),\"\")","v":""},null,null,null,null,"","",null,2]
["",null,{"$f":"IFERROR(VLOOKUP(B233,Machine!A232:B827,2,FALSE),\"\")","v":""},null,null,null,null,"","",null,2]
["",null,{"$f":"IFERROR(VLOOKUP(B234,Machine!A233:B828,2,FALSE),\"\")","v":""},null,null,null,null,"","",null,2]
["",null,{"$f":"IFERROR(VLOOKUP(B235,Machine!A234:B829,2,FALSE),\"\")","v":""},null,null,null,null,"","",null,2]
["",null,{"$f":"IFERROR(VLOOKUP(B236,Machine!A235:B830,2,FALSE),\"\")","v":""},null,null,null,null,"","",null,2]
["",null,{"$f":"IFERROR(VLOOKUP(B237,Machine!A236:B831,2,FALSE),\"\")","v":""},null,null,null,null,"","",null,2]
["",null,{"$f":"IFERROR(VLOOKUP(B238,Machine!A237:B832,2,FALSE),\"\")","v":""},null,null,null,null,"","",null,2]
["",null,{"$f":"IFERROR(VLOOKUP(B239,Machine!A238:B833,2,FALSE),\"\")","v":""},null,null,null,null,"","",null,2]
["",null,{"$f":"IFERROR(VLOOKUP(B240,Machine!A239:B834,2,FALSE),\"\")","v":""},null,null,null,null,"","",null,2]
["",null,{"$f":"IFERROR(VLOOKUP(B241,Machine!A240:B835,2,FALSE),\"\")","v":""},null,null,null,null,"","",null,2]
["",null,{"$f":"IFERROR(VLOOKUP(B242,Machine!A241:B836,2,FALSE),\"\")","v":""},null,null,null,null,"","",null,2]
["",null,{"$f":"IFERROR(VLOOKUP(B243,Machine!A242:B837,2,FALSE),\"\")","v":""},null,null,null,null,"","",null,2]
["",null,{"$f":"IFERROR(VLOOKUP(B244,Machine!A243:B838,2,FALSE),\"\")","v":""},null,null,null,null,"","",null,2]
["",null,{"$f":"IFERROR(VLOOKUP(B245,Machine!A244:B839,2,FALSE),\"\")","v":""},null,null,null,null,"","",null,2]
["",null,{"$f":"IFERROR(VLOOKUP(B246,Machine!A245:B840,2,FALSE),\"\")","v":""},null,null,null,null,"","",null,2]
["",null,{"$f":"IFERROR(VLOOKUP(B247,Machine!A246:B841,2,FALSE),\"\")","v":""},null,null,null,null,"","",null,2]
["",null,{"$f":"IFERROR(VLOOKUP(B248,Machine!A247:B842,2,FALSE),\"\")","v":""},null,null,null,null,"","",null,2]
["",null,{"$f":"IFERROR(VLOOKUP(B249,Machine!A248:B843,2,FALSE),\"\")","v":""},null,null,null,null,"","",null,2]
["",null,{"$f":"IFERROR(VLOOKUP(B250,Machine!A249:B844,2,FALSE),\"\")","v":""},null,null,null,null,"","",null,2]
[]
[]
[]
[]
[]
[]
[]
[]
[]
[]
[]
[]
[]
[]
[]
[]
[]
[]
[]
[]
[]
[]
[]
[]
[]
[]
[]
[]
[]
[]
[]
[]
[]
[]
[]
[]
[]
[]
[]
[]
[]
[]
[]
[]
[]
[]
[]
[]
[]
[]
[]
[]
[]
[]
[]
[]
[]
[]
[]
[]
[]
[]
[]
[]
[]
[]
[]
[]
[]
[]
[]
[]
[]
[]
[]
[]
[]
[]
[]
[]
[]
[]
[]
[]
[]
[]
[]
[]
[]
[]
[]
[]
[]
[]
[]
[]
[]
[]
[]
[]
[]
[]
[]
[]
[]
[]
[]
[]
[]
[]
[]
[]
[]
[]
[]
[]
[]
[]
[]
[]
[]
[]
[]
[]
[]
[]
[]
[]
[]
[]
[]
[]
[]
[]
[]
[]
[]
[]
[]
[]
[]
[]
[]
[]
[]
[]
[]
[]
[]
[null,"Machine number","Machine Name",null,0.05,"Black ",null,null,null,null,null,"منصور محمد منصور"]
[null,1,"Crosha",null,0.06,"White",null,null,null,null,null,"علي مراد حسن"]
[null,2,"Crosha",null,7.0000000000000007E-2,"Black&White",null,null,null,null,null,"ابراهيم محمود ابراهيم"]
[null,3,"Crosha",null,0.08,"A prominent Black",null,null,null,null,null,"مسعد رمزي مسعد"]
[null,4,"Crosha",null,0.09,"A prominent White",null,null,null,null,null,"عادل عزمي شنودة"]
[null,5,"Crosha",null,0.1,null,null,null,null,null,null,"صبحي محمد محمود"]
[null,6,"Crosha",null,0.11,null,null,null,null,null,null,"السيد محمد عبد العال"]
[null,7,"Crosha",null,0.12,null,null,null,null,null,null,"عادل سيف الله السيد"]
[null,8,"Crosha",null,0.13,null,null,null,null,null,null,"خالد السيد عبد القادر"]
[null,9,"Crosha",null,0.14000000000000001,null,null,null,null,null,null,"عادل صادق بشير"]
[null,10,"Crosha",null,0.15,null,null,null,null,null,null,"روماني عطية حبشي"]
[null,11,"Crosha",null,0.16,null,null,null,null,null,null,"احمد صادق توفيق"]
[null,12,"Crosha",null,0.17,null,null,null,null,null,null,"دينا مجدي ابراهيم"]
[null,13,"Crosha",null,0.18,null,null,null,null,null,null,"علي فرج على محمد"]
[null,14,"Crosha",null,0.19,null,null,null,null,null,null,"بوسي السيد عبد المنعم"]
[null,15,"Crosha",null,0.2,null,null,null,null,null,null,"محمد محمد عبد الوهاب"]
[null,16,"Crosha",null,0.21,null,null,null,null,null,null,"سعيد الليثي جاب الله"]
[null,17,"Crosha",null,0.22,null,null,null,null,null,null,"احمد عبد الظاهر"]
[null,18,"Crosha",null,0.23,null,null,null,null,null,null,"مصطفى عبد النبي مصطفى"]
[null,19,"Crosha",null,0.24,null,null,null,null,null,null,"ابراهيم صبحي محمد السيد"]
[null,20,"Crosha",null,0.25,null,null,null,null,null,null,"خميس حسن حسنين"]
[null,21,"Crosha",null,0.26,null,null,null,null,null,null,"محمد حسني حسن"]
[null,22,"Crosha",null,0.27,null,null,null,null,null,null,"محمد عادل محمد محمد"]
[null,23,"Crosha",null,0.28000000000000003,null,null,null,null,null,null,"السيد عبد الحميد اسماعيل"]
[null,24,"Crosha",null,0.28999999999999998,null,null,null,null,null,null,"ابراهيم محمد فتوح"]
[null,25,"Crosha",null,0.3,null,null,null,null,null,null,"عمرو محمد عبد الجليل"]
[null,26,"Crosha",null,0.31,null,null,null,null,null,null,"خالد مصطفى العوضي"]
[null,27,"Crosha",null,0.32,null,null,null,null,null,null,"حمادة احمد على النجار"]
[null,28,"Crosha",null,0.33,null,null,null,null,null,null,"عاطف وليم لبيب"]
[null,29,"Crosha",null,0.34,null,null,null,null,null,null,"عادل وليم نبيل"]
[null,30,"Crosha",null,0.35,null,null,null,null,null,null,"بيشوي عزت شفيق"]
[null,31,"Crosha",null,0.36,null,null,null,null,null,null,"محمد يحيى محمود"]
[null,32,"Crosha",null,0.37,null,null,null,null,null,null,"احمد رمضان احمد"]
[null,33,"Crosha",null,0.38]
[null,34,"Crosha",null,0.39]
[null,35,"Crosha",null,0.4]
[null,36,"Crosha",null,0.41]
[null,37,"Crosha",null,0.42]
[null,38,"Crosha",null,0.43]
[null,39,"Crosha",null,0.44]
[null,40,"Crosha",null,0.45]
[null,41,"Crosha",null,0.46]
[null,42,"Crosha",null,0.47]
[null,43,"Crosha",null,0.48]
[null,44,"Crosha",null,0.49]
[null,45,"Crosha",null,0.5]
[null,46,"Crosha",null,0.51]
[null,47,"Crosha",null,0.52]
[null,48,"Crosha",null,0.53]
[null,49,"Crosha",null,0.54]
[null,50,"Crosha",null,0.55000000000000004]
[null,51,"Crosha",null,0.56000000000000005]
[null,52,"Crosha",null,0.56999999999999995]
[null,53,"Crosha",null,0.57999999999999996]
[null,54,"Crosha",null,0.59]
[null,55,"Crosha",null,0.6]
[null,56,"Crosha",null,0.61]
[null,57,"Crosha",null,0.62]
[null,58,"Crosha",null,0.63]
[null,59,"Crosha",null,0.64]
[null,60,"Crosha",null,0.65]
[null,61,"Crosha",null,0.66]
[null,62,"Crosha",null,0.67]
[null,63,"Crosha",null,0.68]
[null,64,"Crosha",null,0.69]
[null,65,"Crosha",null,0.7]
[null,66,"Crosha",null,0.71]
[null,67,"Crosha",null,0.72]
[null,68,"Crosha",null,0.73]
[null,69,"Crosha",null,0.74]
[null,70,"Crosha",null,0.75]
[null,71,"Crosha",null,0.76]
[null,72,"Crosha",null,0.77]
[null,73,"Crosha",null,0.78]
[null,74,"Crosha",null,0.79]
[null,75,"Crosha",null,0.8]
[null,76,"Crosha",null,0.81]
[null,77,"Crosha",null,0.82]
[null,78,"Crosha",null,0.83]
[null,79,"Crosha",null,0.84]
[null,80,"Crosha",null,0.85]
[null,81,"Crosha",null,0.86]
[null,82,"Crosha",null,0.87]
[null,83,"Crosha",null,0.88]
[null,84,"Crosha",null,0.89]
[null,85,"Crosha",null,0.9]
[null,86,"Crosha",null,0.91]
[null,87,"Crosha",null,0.92]
[null,88,"Crosha",null,0.93]
[null,89,"Crosha",null,0.94]
[null,90,"Crosha",null,0.95]
[null,91,"Crosha",null,0.96]
[null,92,"Crosha",null,0.97]
[null,93,"Crosha",null,0.98]
[null,94,"Crosha",null,0.99]
[null,95,"Crosha",null,1]
[null,96,"Crosha",null,1.01]
[null,97,"Crosha",null,1.02]
[null,98,"Crosha",null,1.03]
[null,99,"Crosha",null,1.04]
[null,100,"Crosha",null,1.05]
[null,101,"Jakar",null,1.06]
[null,102,"Jakar",null,1.07]
[null,103,"Jakar",null,1.08]
[null,104,"Jakar",null,1.0900000000000001]
[null,105,"Jakar",null,1.1000000000000001]
[null,106,"Jakar",null,1.1100000000000001]
[null,107,"Jakar",null,1.1200000000000001]
[null,108,"Jakar",null,1.1299999999999999]
[null,109,"Jakar",null,1.1399999999999999]
[null,110,"Jakar",null,1.1499999999999999]
[null,111,"Jakar",null,1.1599999999999999]
[null,112,"Jakar",null,1.17]
[null,113,"Jakar",null,1.18]
[null,114,"Jakar",null,1.19]
[null,115,"Jakar",null,1.2]
[null,116,"Jakar",null,1.21]
[null,117,"Jakar",null,1.22]
[null,118,"Jakar",null,1.23]
[null,119,"Jakar",null,1.24]
[null,120,"Jakar",null,1.25]
[null,121,"Jakar",null,1.26]
[null,122,"Jakar",null,1.27]
[null,123,"Jakar",null,1.28]
[null,124,"Jakar",null,1.29]
[null,125,"Jakar",null,1.3]
[null,126,"Jakar",null,1.31]
[null,127,"Jakar",null,1.32]
[null,128,"Jakar",null,1.33]
[null,129,"Jakar",null,1.34]
[null,130,"Jakar",null,1.35]
[null,131,"Jakar",null,1.36]
[null,132,"Jakar",null,1.37]
[null,133,"Jakar",null,1.38]
[null,134,"Jakar",null,1.39]
[null,135,"Jakar",null,1.4]
[null,136,"Jakar",null,1.41]
[null,137,"Jakar",null,1.42]
[null,138,"Jakar",null,1.43]
[null,139,"Jakar",null,1.44]
[null,140,"Jakar",null,1.45]
[null,141,"Jakar",null,1.46]
[null,142,"Jakar",null,1.47]
[null,143,"Jakar",null,1.48]
[null,144,"Jakar",null,1.49]
[null,145,"Jakar",null,1.5]
[null,146,"Jakar",null,1.51]
[null,147,"Jakar",null,1.52]
[null,148,"Jakar",null,1.53]
[null,149,"Jakar",null,1.54]
[null,150,"Jakar",null,1.55]
[null,151,"Jakar",null,1.56]
[null,152,"Jakar",null,1.57]
[null,153,"Jakar",null,1.58]
[null,154,"Jakar",null,1.59]
[null,155,"Jakar",null,1.6]
[null,156,"Jakar",null,1.61]
[null,157,"Jakar",null,1.62]
[null,158,"Jakar",null,1.63]
[null,159,"Jakar",null,1.64]
[null,160,"Jakar",null,1.65]
[null,161,"Jakar",null,1.66]
[null,162,"Jakar",null,1.67]
[null,163,"Jakar",null,1.68]
[null,164,"Jakar",null,1.69]
[null,165,"Jakar",null,1.7]
[null,166,"Jakar",null,1.71]
[null,167,"Jakar",null,1.72]
[null,168,"Jakar",null,1.73]
[null,169,"Jakar",null,1.74]
[null,170,"Jakar",null,1.75]
[null,171,"Jakar",null,1.76]
[null,172,"Jakar",null,1.77]
[null,173,"Jakar",null,1.78]
[null,174,"Jakar",null,1.79]
[null,175,"Jakar",null,1.8]
[null,176,"Jakar",null,1.81]
[null,177,"Jakar",null,1.82]
[null,178,"Jakar",null,1.83]
[null,179,"Jakar",null,1.84]
[null,180,"Jakar",null,1.85]
[null,181,"Jakar",null,1.86]
[null,182,"Jakar",null,1.87]
[null,183,"Jakar",null,1.88]
[null,184,"Jakar",null,1.89]
[null,185,"Jakar",null,1.9]
[null,186,"Jakar",null,1.91]
[null,187,"Jakar",null,1.92]
[null,188,"Jakar",null,1.93]
[null,189,"Jakar",null,1.94]
[null,190,"Jakar",null,1.95]
[null,191,"Jakar",null,1.96]
[null,192,"Jakar",null,1.97]
[null,193,"Jakar",null,1.98]
[null,194,"Jakar",null,1.99]
[null,195,"Jakar",null,2]
[null,196,"Jakar",null,2.0099999999999998]
[null,197,"Jakar",null,2.02]
[null,198,"Jakar",null,2.0299999999999998]
[null,199,"Jakar",null,2.04]
[null,200,"Jakar",null,2.0499999999999998]
[null,201,"Jakar",null,2.06]
[null,202,"Jakar",null,2.0699999999999998]
[null,203,"Jakar",null,2.08]
[null,204,"Jakar",null,2.09]
[null,205,"Jakar",null,2.1]
[null,206,"Jakar",null,2.11]
[null,207,"Jakar",null,2.12]
[null,208,"Jakar",null,2.13]
[null,209,"Jakar",null,2.14]
[null,210,"Jakar",null,2.15]
[null,211,"Jakar",null,2.16]
[null,212,"Jakar",null,2.17]
[null,213,"Jakar",null,2.1800000000000002]
[null,214,"Jakar",null,2.19]
[null,215,"Jakar",null,2.2000000000000002]
[null,216,"Jakar",null,2.21]
[null,217,"Jakar",null,2.2200000000000002]
[null,218,"Jakar",null,2.23]
[null,219,"Jakar",null,2.2400000000000002]
[null,220,"Jakar",null,2.25]
[null,221,"Jakar",null,2.2599999999999998]
[null,222,"Jakar",null,2.27]
[null,223,"Jakar",null,2.2799999999999998]
[null,224,"Jakar",null,2.29]
[null,225,"Jakar",null,2.2999999999999998]
[null,226,"Jakar",null,2.31]
[null,227,"Jakar",null,2.3199999999999998]
[null,228,"Jakar",null,2.33]
[null,229,"Jakar",null,2.34]
[null,230,"Jakar",null,2.35]
[null,231,"Jakar",null,2.36]
[null,232,"Jakar",null,2.37]
[null,233,"Jakar",null,2.38]
[null,234,"Jakar",null,2.39]
[null,235,"Jakar",null,2.4]
[null,236,"Jakar",null,2.41]
[null,237,"Jakar",null,2.42]
[null,238,"Jakar",null,2.4300000000000002]
[null,239,"Jakar",null,2.44]
[null,240,"Jakar",null,2.4500000000000002]
[null,241,"Jakar",null,2.46]
[null,242,"Jakar",null,2.4700000000000002]
[null,243,"Jakar",null,2.48]
[null,244,"Jakar",null,2.4900000000000002]
[null,245,"Jakar",null,2.5]
[null,246,"Jakar",null,2.5099999999999998]
[null,247,"Jakar",null,2.52]
[null,248,"Jakar",null,2.5299999999999998]
[null,249,"Jakar",null,2.54]
[null,250,"Jakar",null,2.5499999999999998]
[null,251,"Jakar",null,2.56]
[null,252,"Jakar",null,2.57]
[null,253,"Jakar",null,2.58]
[null,254,"Jakar",null,2.59]
[null,255,"Jakar",null,2.6]
[null,256,"Jakar",null,2.61]
[null,257,"Jakar",null,2.62]
[null,258,"Jakar",null,2.63]
[null,259,"Jakar",null,2.64]
[null,260,"Jakar",null,2.65]
[null,261,"Jakar",null,2.66]
[null,262,"Jakar",null,2.67]
[null,263,"Jakar",null,2.68]
[null,264,"Jakar",null,2.69]
[null,265,"Jakar",null,2.7]
[null,266,"Jakar",null,2.71]
[null,267,"Jakar",null,2.72]
[null,268,"Jakar",null,2.73]
[null,269,"Jakar",null,2.74]
[null,270,"Jakar",null,2.75]
[null,271,"Jakar",null,2.76]
[null,272,"Jakar",null,2.77]
[null,273,"Jakar",null,2.78]
[null,274,"Jakar",null,2.79]
[null,275,"Jakar",null,2.8]
[null,276,"Jakar",null,2.81]
[null,277,"Jakar",null,2.82]
[null,278,"Jakar",null,2.83]
[null,279,"Jakar",null,2.84]
[null,280,"Jakar",null,2.85]
[null,281,"Jakar",null,2.86]
[null,282,"Jakar",null,2.87]
[null,283,"Jakar",null,2.88]
[null,284,"Jakar",null,2.89]
[null,285,"Jakar",null,2.9]
[null,286,"Jakar",null,2.91]
[null,287,"Jakar",null,2.92]
[null,288,"Jakar",null,2.93]
[null,289,"Jakar",null,2.94]
[null,290,"Jakar",null,2.95]
[null,291,"Jakar",null,2.96]
[null,292,"Jakar",null,2.97]
[null,293,"Jakar",null,2.98]
[null,294,"Jakar",null,2.99]
[null,295,"Jakar",null,3]
[null,296,"Jakar",null,3.01]
[null,297,"Jakar",null,3.02]
[null,298,"Jakar",null,3.03]
[null,299,"Jakar",null,3.04]
[null,300,"Jakar",null,3.05]
[null,301,"Electric iron",null,3.06]
[null,302,"Electric iron",null,3.07]
[null,303,"Electric iron",null,3.08]
[null,304,"Electric iron",null,3.09]
[null,305,"Electric iron",null,3.1]
[null,306,"Electric iron",null,3.11]
[null,307,"Electric iron",null,3.12]
[null,308,"Electric iron",null,3.13]
[null,309,"Electric iron",null,3.14]
[null,310,"Electric iron",null,3.15]
[null,311,"Electric iron",null,3.16]
[null,312,"Electric iron",null,3.17]
[null,313,"Electric iron",null,3.18]
[null,314,"Electric iron",null,3.19]
[null,315,"Electric iron",null,3.2]
[null,null,null,null,3.21]
[null,null,null,null,3.22]
[null,null,null,null,3.23]
[null,null,null,null,3.24]
[null,null,null,null,3.25]
[null,null,null,null,3.26]
[null,null,null,null,3.27]
[null,null,null,null,3.28]
[null,null,null,null,3.29]
[null,null,null,null,3.3]
[null,null,null,null,3.31]
[null,null,null,null,3.32]
[null,null,null,null,3.33]
[null,null,null,null,3.34]
[null,null,null,null,3.35]
[null,null,null,null,3.36]
[null,null,null,null,3.37]
[null,null,null,null,3.38]
[null,null,null,null,3.39]
[null,null,null,null,3.4]
[null,null,null,null,3.41]
[null,null,null,null,3.42]
[null,null,null,null,3.43]
[null,null,null,null,3.44]
[null,null,null,null,3.45]
[null,null,null,null,3.46]
[null,null,null,null,3.47]
[null,null,null,null,3.48]
[null,null,null,null,3.49]
[null,null,null,null,3.5]
[null,null,null,null,3.51]
[null,null,null,null,3.52]
[null,null,null,null,3.53]
[null,null,null,null,3.54]
[null,null,null,null,3.55]
[null,null,null,null,3.56]
[null,null,null,null,3.57]
[null,null,null,null,3.58]
[null,null,null,null,3.59]
[null,null,null,null,3.6]
[null,null,null,null,3.61]
[null,null,null,null,3.62]
[null,null,null,null,3.63]
[null,null,null,null,3.64]
[null,null,null,null,3.65]
[null,null,null,null,3.66]
[null,null,null,null,3.67]
[null,null,null,null,3.68]
[null,null,null,null,3.69]
[null,null,null,null,3.7]
[null,null,null,null,3.71]
[null,null,null,null,3.72]
[null,null,null,null,3.73]
[null,null,null,null,3.74]
[null,null,null,null,3.75]
[null,null,null,null,3.76]
[null,null,null,null,3.77]
[null,null,null,null,3.78]
[null,null,null,null,3.79]
[null,null,null,null,3.8]
[null,null,null,null,3.81]
[null,null,null,null,3.82]
[null,null,null,null,3.83]
[null,null,null,null,3.84]
[null,null,null,null,3.85]
[null,null,null,null,3.86]
[null,null,null,null,3.87]
[null,null,null,null,3.88]
[null,null,null,null,3.89]
[null,null,null,null,3.9]
[null,null,null,null,3.91]
[null,null,null,null,3.92]
[null,null,null,null,3.93]
[null,null,null,null,3.94]
[null,null,null,null,3.95]
[null,null,null,null,3.96]
[null,null,null,null,3.97]
[null,null,null,null,3.98]
[null,null,null,null,3.99]
[null,null,null,null,4]
[null,null,null,null,4.01]
[null,null,null,null,4.0199999999999996]
[null,null,null,null,4.03]
[null,null,null,null,4.04]
[null,null,null,null,4.05]
[null,null,null,null,4.0599999999999996]
[null,null,null,null,4.07]
[null,null,null,null,4.08]
[null,null,null,null,4.09]
[null,null,null,null,4.0999999999999996]
[null,null,null,null,4.1100000000000003]
[null,null,null,null,4.12]
[null,null,null,null,4.13]
[null,null,null,null,4.1399999999999997]
[null,null,null,null,4.1500000000000004]
[null,null,null,null,4.16]
[null,null,null,null,4.17]
[null,null,null,null,4.18]
[null,null,null,null,4.1900000000000004]
[null,null,null,null,4.2]
[null,null,null,null,4.21]
[null,null,null,null,4.22]
[null,null,null,null,4.2300000000000004]
[null,null,null,null,4.24]
[null,null,null,null,4.25]
[null,null,null,null,4.26]
[null,null,null,null,4.2699999999999996]
[null,null,null,null,4.28]
[null,null,null,null,4.29]
[null,null,null,null,4.3]
[null,null,null,null,4.3099999999999996]
[null,null,null,null,4.32]
[null,null,null,null,4.33]
[null,null,null,null,4.34]
[null,null,null,null,4.3499999999999996]
[null,null,null,null,4.3600000000000003]
[null,null,null,null,4.37]
[null,null,null,null,4.38]
[null,null,null,null,4.3899999999999997]
[null,null,null,null,4.4000000000000004]
[null,null,null,null,4.41]
[null,null,null,null,4.42]
[null,null,null,null,4.43]
[null,null,null,null,4.4400000000000004]
[null,null,null,null,4.45]
[null,null,null,null,4.46]
[null,null,null,null,4.47]
[null,null,null,null,4.4800000000000004]
[null,null,null,null,4.49]
[null,null,null,null,4.5]
[null,null,null,null,4.51]
[null,null,null,null,4.5199999999999996]
[null,null,null,null,4.53]
[null,null,null,null,4.54]
[null,null,null,null,4.55]
[null,null,null,null,4.5599999999999996]
[null,null,null,null,4.57]
[null,null,null,null,4.58]
[null,null,null,null,4.59]
[null,null,null,null,4.5999999999999996]
[null,null,null,null,4.6100000000000003]
[null,null,null,null,4.62]
[null,null,null,null,4.63]
[null,null,null,null,4.6399999999999997]
[null,null,null,null,4.6500000000000004]
[null,null,null,null,4.66]
[null,null,null,null,4.67]
[null,null,null,null,4.68]
[null,null,null,null,4.6900000000000004]
[null,null,null,null,4.7]
[null,null,null,null,4.71]
[null,null,null,null,4.72]
[null,null,null,null,4.7300000000000004]
[null,null,null,null,4.74]
[null,null,null,null,4.75]
[null,null,null,null,4.76]
[null,null,null,null,4.7699999999999996]
[null,null,null,null,4.78]
[null,null,null,null,4.79]
[null,null,null,null,4.8]
[null,null,null,null,4.8099999999999996]
[null,null,null,null,4.82]
[null,null,null,null,4.83]
[null,null,null,null,4.84]
[null,null,null,null,4.8499999999999996]
[null,null,null,null,4.8600000000000003]
[null,null,null,null,4.87]
[null,null,null,null,4.88]
[null,null,null,null,4.8899999999999997]
[null,null,null,null,4.9000000000000004]
[null,null,null,null,4.91]
[null,null,null,null,4.92]
[null,null,null,null,4.93]
[null,null,null,null,4.9400000000000004]
[null,null,null,null,4.95]
[null,null,null,null,4.96]
[null,null,null,null,4.97]
[null,null,null,null,4.9800000000000004]
[null,null,null,null,4.99]
[null,null,null,null,5]
[null,null,null,null,5.01]
[null,null,null,null,5.0199999999999996]
[null,null,null,null,5.03]
[null,null,null,null,5.04]
[null,null,null,null,5.05]
[null,null,null,null,5.0599999999999996]
[null,null,null,null,5.07]
[null,null,null,null,5.08]
[null,null,null,null,5.09]
[null,null,null,null,5.0999999999999996]
[null,null,null,null,5.1100000000000003]
[null,null,null,null,5.12]
[null,null,null,null,5.13]
[null,null,null,null,5.14]
[null,null,null,null,5.15]
[null,null,null,null,5.16]
[null,null,null,null,5.17]
[null,null,null,null,5.18]
[null,null,null,null,5.19]
[null,null,null,null,5.2]
[null,null,null,null,5.21]
[null,null,null,null,5.22]
[null,null,null,null,5.23]
[null,null,null,null,5.24]
[null,null,null,null,5.25]
[null,null,null,null,5.26]
[null,null,null,null,5.27]
[null,null,null,null,5.28]
[null,null,null,null,5.29]
[null,null,null,null,5.3]
[null,null,null,null,5.31]
[null,null,null,null,5.32]
[null,null,null,null,5.33]
[null,null,null,null,5.34]
[null,null,null,null,5.35]
[null,null,null,null,5.36]
[null,null,null,null,5.37]
[null,null,null,null,5.38]
[null,null,null,null,5.39]
[null,null,null,null,5.4]
[null,null,null,null,5.41]
[null,null,null,null,5.42]
[null,null,null,null,5.43]
[null,null,null,null,5.44]
[null,null,null,null,5.45]
[null,null,null,null,5.46]
[null,null,null,null,5.47]
[null,null,null,null,5.48]
[null,null,null,null,5.49]
[null,null,null,null,5.5]
[null,null,null,null,5.51]
[null,null,null,null,5.52]
[null,null,null,null,5.53]
[null,null,null,null,5.54]
[null,null,null,null,5.55]
[null,null,null,null,5.56]
[null,null,null,null,5.57]
[null,null,null,null,5.58]
[null,null,null,null,5.59]
[null,null,null,null,5.6]
[null,null,null,null,5.61]
[null,null,null,null,5.62]
[null,null,null,null,5.63]
[null,null,null,null,5.64]
[null,null,null,null,5.65]
[null,null,null,null,5.66]
[null,null,null,null,5.67]
[null,null,null,null,5.68]
[null,null,null,null,5.69]
[null,null,null,null,5.7]
[null,null,null,null,5.71]
[null,null,null,null,5.72]
[null,null,null,null,5.73]
[null,null,null,null,5.74]
[null,null,null,null,5.75]
[null,null,null,null,5.76]
[null,null,null,null,5.77]
[null,null,null,null,5.78]
[null,null,null,null,5.79]
[null,null,null,null,5.8]
[null,null,null,null,5.81]
[null,null,null,null,5.82]
[null,null,null,null,5.83]
[null,null,null,null,5.84]
[null,null,null,null,5.85]
[null,null,null,null,5.86]
[null,null,null,null,5.87]
[null,null,null,null,5.88]
[null,null,null,null,5.89]
[null,null,null,null,5.9]
[null,null,null,null,5.91]
[null,null,null,null,5.92]
[null,null,null,null,5.93]
[null,null,null,null,5.94]
[null,null,null,null,5.95]
[null,null,null,null,5.96]
[null,null,null,null,5.97]
[null,null,null,null,5.98]
[null,null,null,null,5.99]
[null,null,null,null,6]

{"sheet":"Shift3","index":3,"n_rows":995,"n_cols":14,"rows_kept":995,"cut":false,"hidden":false,"merged":[]}
[]
["Date","Machine No.","Machine Name","Gm/ML","Size MM"," Drawing  "," KG.\\ day","ML X KG."," ML.\\ day","Color","Shift"," name of the employee","OR No.","Comment"]
[{"$f":"IF(B3=\"\",\"\",IF(A3=\"\",TODAY(),A3))","v":"2019-02-13"},260,{"$f":"IFERROR(VLOOKUP(B3,Machine!A2:B597,2,FALSE),\"\")","v":"Jakar"},44,0.11,"hhhhh",88,{"$f":"IFERROR(ROUND(SUM(1000/D3),2),\"\")","v":22.73},{"$f":"IFERROR(ROUND(SUM(G3*H3),2),\"\")","v":2000.24},"A prominent White",3,"علي مراد حسن",5678,"vvnbvnb"]
[{"$f":"IF(B4=\"\",\"\",IF(A4=\"\",TODAY(),A4))","v":""},null,{"$f":"IFERROR(VLOOKUP(B4,Machine!A3:B598,2,FALSE),\"\")","v":""},null,null,null,null,{"$f":"IFERROR(ROUND(SUM(1000/D4),2),\"\")","v":""},{"$f":"IFERROR(ROUND(SUM(G4*H4),2),\"\")","v":""},null,3]
["",null,{"$f":"IFERROR(VLOOKUP(B5,Machine!A4:B599,2,FALSE),\"\")","v":""},null,null,null,null,"","",null,3]
["",null,{"$f":"IFERROR(VLOOKUP(B6,Machine!A5:B600,2,FALSE),\"\")","v":""},null,null,null,null,"","",null,3]
["",null,{"$f":"IFERROR(VLOOKUP(B7,Machine!A6:B601,2,FALSE),\"\")","v":""},null,null,null,null,"","",null,3]
["",null,{"$f":"IFERROR(VLOOKUP(B8,Machine!A7:B602,2,FALSE),\"\")","v":""},null,null,null,null,"","",null,3]
["",null,{"$f":"IFERROR(VLOOKUP(B9,Machine!A8:B603,2,FALSE),\"\")","v":""},null,null,null,null,"","",null,3]
["",null,{"$f":"IFERROR(VLOOKUP(B10,Machine!A9:B604,2,FALSE),\"\")","v":""},null,null,null,null,"","",null,3]
["",null,{"$f":"IFERROR(VLOOKUP(B11,Machine!A10:B605,2,FALSE),\"\")","v":""},null,null,null,null,"","",null,3]
["",null,{"$f":"IFERROR(VLOOKUP(B12,Machine!A11:B606,2,FALSE),\"\")","v":""},null,null,null,null,"","",null,3]
["",null,{"$f":"IFERROR(VLOOKUP(B13,Machine!A12:B607,2,FALSE),\"\")","v":""},null,null,null,null,"","",null,3]
["",null,{"$f":"IFERROR(VLOOKUP(B14,Machine!A13:B608,2,FALSE),\"\")","v":""},null,null,null,null,"","",null,3]
["",null,{"$f":"IFERROR(VLOOKUP(B15,Machine!A14:B609,2,FALSE),\"\")","v":""},null,null,null,null,"","",null,3]
["",null,{"$f":"IFERROR(VLOOKUP(B16,Machine!A15:B610,2,FALSE),\"\")","v":""},null,null,null,null,"","",null,3]
["",null,{"$f":"IFERROR(VLOOKUP(B17,Machine!A16:B611,2,FALSE),\"\")","v":""},null,null,null,null,"","",null,3]
["",null,{"$f":"IFERROR(VLOOKUP(B18,Machine!A17:B612,2,FALSE),\"\")","v":""},null,null,null,null,"","",null,3]
["",null,{"$f":"IFERROR(VLOOKUP(B19,Machine!A18:B613,2,FALSE),\"\")","v":""},null,null,null,null,"","",null,3]
["",null,{"$f":"IFERROR(VLOOKUP(B20,Machine!A19:B614,2,FALSE),\"\")","v":""},null,null,null,null,"","",null,3]
["",null,{"$f":"IFERROR(VLOOKUP(B21,Machine!A20:B615,2,FALSE),\"\")","v":""},null,null,null,null,"","",null,3]
["",null,{"$f":"IFERROR(VLOOKUP(B22,Machine!A21:B616,2,FALSE),\"\")","v":""},null,null,null,null,"","",null,3]
["",null,{"$f":"IFERROR(VLOOKUP(B23,Machine!A22:B617,2,FALSE),\"\")","v":""},null,null,null,null,"","",null,3]
["",null,{"$f":"IFERROR(VLOOKUP(B24,Machine!A23:B618,2,FALSE),\"\")","v":""},null,null,null,null,"","",null,3]
["",null,{"$f":"IFERROR(VLOOKUP(B25,Machine!A24:B619,2,FALSE),\"\")","v":""},null,null,null,null,"","",null,3]
["",null,{"$f":"IFERROR(VLOOKUP(B26,Machine!A25:B620,2,FALSE),\"\")","v":""},null,null,null,null,"","",null,3]
["",null,{"$f":"IFERROR(VLOOKUP(B27,Machine!A26:B621,2,FALSE),\"\")","v":""},null,null,null,null,"","",null,3]
["",null,{"$f":"IFERROR(VLOOKUP(B28,Machine!A27:B622,2,FALSE),\"\")","v":""},null,null,null,null,"","",null,3]
["",null,{"$f":"IFERROR(VLOOKUP(B29,Machine!A28:B623,2,FALSE),\"\")","v":""},null,null,null,null,"","",null,3]
["",null,{"$f":"IFERROR(VLOOKUP(B30,Machine!A29:B624,2,FALSE),\"\")","v":""},null,null,null,null,"","",null,3]
["",null,{"$f":"IFERROR(VLOOKUP(B31,Machine!A30:B625,2,FALSE),\"\")","v":""},null,null,null,null,"","",null,3]
["",null,{"$f":"IFERROR(VLOOKUP(B32,Machine!A31:B626,2,FALSE),\"\")","v":""},null,null,null,null,"","",null,3]
["",null,{"$f":"IFERROR(VLOOKUP(B33,Machine!A32:B627,2,FALSE),\"\")","v":""},null,null,null,null,"","",null,3]
["",null,{"$f":"IFERROR(VLOOKUP(B34,Machine!A33:B628,2,FALSE),\"\")","v":""},null,null,null,null,"","",null,3]
["",null,{"$f":"IFERROR(VLOOKUP(B35,Machine!A34:B629,2,FALSE),\"\")","v":""},null,null,null,null,"","",null,3]
["",null,{"$f":"IFERROR(VLOOKUP(B36,Machine!A35:B630,2,FALSE),\"\")","v":""},null,null,null,null,"","",null,3]
["",null,{"$f":"IFERROR(VLOOKUP(B37,Machine!A36:B631,2,FALSE),\"\")","v":""},null,null,null,null,"","",null,3]
["",null,{"$f":"IFERROR(VLOOKUP(B38,Machine!A37:B632,2,FALSE),\"\")","v":""},null,null,null,null,"","",null,3]
["",null,{"$f":"IFERROR(VLOOKUP(B39,Machine!A38:B633,2,FALSE),\"\")","v":""},null,null,null,null,"","",null,3]
["",null,{"$f":"IFERROR(VLOOKUP(B40,Machine!A39:B634,2,FALSE),\"\")","v":""},null,null,null,null,"","",null,3]
["",null,{"$f":"IFERROR(VLOOKUP(B41,Machine!A40:B635,2,FALSE),\"\")","v":""},null,null,null,null,"","",null,3]
["",null,{"$f":"IFERROR(VLOOKUP(B42,Machine!A41:B636,2,FALSE),\"\")","v":""},null,null,null,null,"","",null,3]
["",null,{"$f":"IFERROR(VLOOKUP(B43,Machine!A42:B637,2,FALSE),\"\")","v":""},null,null,null,null,"","",null,3]
["",null,{"$f":"IFERROR(VLOOKUP(B44,Machine!A43:B638,2,FALSE),\"\")","v":""},null,null,null,null,"","",null,3]
["",null,{"$f":"IFERROR(VLOOKUP(B45,Machine!A44:B639,2,FALSE),\"\")","v":""},null,null,null,null,"","",null,3]
["",null,{"$f":"IFERROR(VLOOKUP(B46,Machine!A45:B640,2,FALSE),\"\")","v":""},null,null,null,null,"","",null,3]
["",null,{"$f":"IFERROR(VLOOKUP(B47,Machine!A46:B641,2,FALSE),\"\")","v":""},null,null,null,null,"","",null,3]
["",null,{"$f":"IFERROR(VLOOKUP(B48,Machine!A47:B642,2,FALSE),\"\")","v":""},null,null,null,null,"","",null,3]
["",null,{"$f":"IFERROR(VLOOKUP(B49,Machine!A48:B643,2,FALSE),\"\")","v":""},null,null,null,null,"","",null,3]
["",null,{"$f":"IFERROR(VLOOKUP(B50,Machine!A49:B644,2,FALSE),\"\")","v":""},null,null,null,null,"","",null,3]
["",null,{"$f":"IFERROR(VLOOKUP(B51,Machine!A50:B645,2,FALSE),\"\")","v":""},null,null,null,null,"","",null,3]
["",null,{"$f":"IFERROR(VLOOKUP(B52,Machine!A51:B646,2,FALSE),\"\")","v":""},null,null,null,null,"","",null,3]
["",null,{"$f":"IFERROR(VLOOKUP(B53,Machine!A52:B647,2,FALSE),\"\")","v":""},null,null,null,null,"","",null,3]
["",null,{"$f":"IFERROR(VLOOKUP(B54,Machine!A53:B648,2,FALSE),\"\")","v":""},null,null,null,null,"","",null,3]
["",null,{"$f":"IFERROR(VLOOKUP(B55,Machine!A54:B649,2,FALSE),\"\")","v":""},null,null,null,null,"","",null,3]
["",null,{"$f":"IFERROR(VLOOKUP(B56,Machine!A55:B650,2,FALSE),\"\")","v":""},null,null,null,null,"","",null,3]
["",null,{"$f":"IFERROR(VLOOKUP(B57,Machine!A56:B651,2,FALSE),\"\")","v":""},null,null,null,null,"","",null,3]
["",null,{"$f":"IFERROR(VLOOKUP(B58,Machine!A57:B652,2,FALSE),\"\")","v":""},null,null,null,null,"","",null,3]
["",null,{"$f":"IFERROR(VLOOKUP(B59,Machine!A58:B653,2,FALSE),\"\")","v":""},null,null,null,null,"","",null,3]
["",null,{"$f":"IFERROR(VLOOKUP(B60,Machine!A59:B654,2,FALSE),\"\")","v":""},null,null,null,null,"","",null,3]
["",null,{"$f":"IFERROR(VLOOKUP(B61,Machine!A60:B655,2,FALSE),\"\")","v":""},null,null,null,null,"","",null,3]
["",null,{"$f":"IFERROR(VLOOKUP(B62,Machine!A61:B656,2,FALSE),\"\")","v":""},null,null,null,null,"","",null,3]
["",null,{"$f":"IFERROR(VLOOKUP(B63,Machine!A62:B657,2,FALSE),\"\")","v":""},null,null,null,null,"","",null,3]
["",null,{"$f":"IFERROR(VLOOKUP(B64,Machine!A63:B658,2,FALSE),\"\")","v":""},null,null,null,null,"","",null,3]
["",null,{"$f":"IFERROR(VLOOKUP(B65,Machine!A64:B659,2,FALSE),\"\")","v":""},null,null,null,null,"","",null,3]
["",null,{"$f":"IFERROR(VLOOKUP(B66,Machine!A65:B660,2,FALSE),\"\")","v":""},null,null,null,null,"","",null,3]
["",null,{"$f":"IFERROR(VLOOKUP(B67,Machine!A66:B661,2,FALSE),\"\")","v":""},null,null,null,null,"","",null,3]
[{"$f":"IF(B68=\"\",\"\",IF(A68=\"\",TODAY(),A68))","v":""},null,{"$f":"IFERROR(VLOOKUP(B68,Machine!A67:B662,2,FALSE),\"\")","v":""},null,null,null,null,{"$f":"IFERROR(ROUND(SUM(1000/D68),2),\"\")","v":""},{"$f":"IFERROR(ROUND(SUM(G68*H68),2),\"\")","v":""},null,3]
["",null,{"$f":"IFERROR(VLOOKUP(B69,Machine!A68:B663,2,FALSE),\"\")","v":""},null,null,null,null,"","",null,3]
["",null,{"$f":"IFERROR(VLOOKUP(B70,Machine!A69:B664,2,FALSE),\"\")","v":""},null,null,null,null,"","",null,3]
["",null,{"$f":"IFERROR(VLOOKUP(B71,Machine!A70:B665,2,FALSE),\"\")","v":""},null,null,null,null,"","",null,3]
["",null,{"$f":"IFERROR(VLOOKUP(B72,Machine!A71:B666,2,FALSE),\"\")","v":""},null,null,null,null,"","",null,3]
["",null,{"$f":"IFERROR(VLOOKUP(B73,Machine!A72:B667,2,FALSE),\"\")","v":""},null,null,null,null,"","",null,3]
["",null,{"$f":"IFERROR(VLOOKUP(B74,Machine!A73:B668,2,FALSE),\"\")","v":""},null,null,null,null,"","",null,3]
["",null,{"$f":"IFERROR(VLOOKUP(B75,Machine!A74:B669,2,FALSE),\"\")","v":""},null,null,null,null,"","",null,3]
["",null,{"$f":"IFERROR(VLOOKUP(B76,Machine!A75:B670,2,FALSE),\"\")","v":""},null,null,null,null,"","",null,3]
["",null,{"$f":"IFERROR(VLOOKUP(B77,Machine!A76:B671,2,FALSE),\"\")","v":""},null,null,null,null,"","",null,3]
["",null,{"$f":"IFERROR(VLOOKUP(B78,Machine!A77:B672,2,FALSE),\"\")","v":""},null,null,null,null,"","",null,3]
["",null,{"$f":"IFERROR(VLOOKUP(B79,Machine!A78:B673,2,FALSE),\"\")","v":""},null,null,null,null,"","",null,3]
["",null,{"$f":"IFERROR(VLOOKUP(B80,Machine!A79:B674,2,FALSE),\"\")","v":""},null,null,null,null,"","",null,3]
["",null,{"$f":"IFERROR(VLOOKUP(B81,Machine!A80:B675,2,FALSE),\"\")","v":""},null,null,null,null,"","",null,3]
["",null,{"$f":"IFERROR(VLOOKUP(B82,Machine!A81:B676,2,FALSE),\"\")","v":""},null,null,null,null,"","",null,3]
["",null,{"$f":"IFERROR(VLOOKUP(B83,Machine!A82:B677,2,FALSE),\"\")","v":""},null,null,null,null,"","",null,3]
["",null,{"$f":"IFERROR(VLOOKUP(B84,Machine!A83:B678,2,FALSE),\"\")","v":""},null,null,null,null,"","",null,3]
["",null,{"$f":"IFERROR(VLOOKUP(B85,Machine!A84:B679,2,FALSE),\"\")","v":""},null,null,null,null,"","",null,3]
["",null,{"$f":"IFERROR(VLOOKUP(B86,Machine!A85:B680,2,FALSE),\"\")","v":""},null,null,null,null,"","",null,3]
["",null,{"$f":"IFERROR(VLOOKUP(B87,Machine!A86:B681,2,FALSE),\"\")","v":""},null,null,null,null,"","",null,3]
["",null,{"$f":"IFERROR(VLOOKUP(B88,Machine!A87:B682,2,FALSE),\"\")","v":""},null,null,null,null,"","",null,3]
["",null,{"$f":"IFERROR(VLOOKUP(B89,Machine!A88:B683,2,FALSE),\"\")","v":""},null,null,null,null,"","",null,3]
["",null,{"$f":"IFERROR(VLOOKUP(B90,Machine!A89:B684,2,FALSE),\"\")","v":""},null,null,null,null,"","",null,3]
["",null,{"$f":"IFERROR(VLOOKUP(B91,Machine!A90:B685,2,FALSE),\"\")","v":""},null,null,null,null,"","",null,3]
["",null,{"$f":"IFERROR(VLOOKUP(B92,Machine!A91:B686,2,FALSE),\"\")","v":""},null,null,null,null,"","",null,3]
["",null,{"$f":"IFERROR(VLOOKUP(B93,Machine!A92:B687,2,FALSE),\"\")","v":""},null,null,null,null,"","",null,3]
["",null,{"$f":"IFERROR(VLOOKUP(B94,Machine!A93:B688,2,FALSE),\"\")","v":""},null,null,null,null,"","",null,3]
["",null,{"$f":"IFERROR(VLOOKUP(B95,Machine!A94:B689,2,FALSE),\"\")","v":""},null,null,null,null,"","",null,3]
["",null,{"$f":"IFERROR(VLOOKUP(B96,Machine!A95:B690,2,FALSE),\"\")","v":""},null,null,null,null,"","",null,3]
["",null,{"$f":"IFERROR(VLOOKUP(B97,Machine!A96:B691,2,FALSE),\"\")","v":""},null,null,null,null,"","",null,3]
["",null,{"$f":"IFERROR(VLOOKUP(B98,Machine!A97:B692,2,FALSE),\"\")","v":""},null,null,null,null,"","",null,3]
["",null,{"$f":"IFERROR(VLOOKUP(B99,Machine!A98:B693,2,FALSE),\"\")","v":""},null,null,null,null,"","",null,3]
["",null,{"$f":"IFERROR(VLOOKUP(B100,Machine!A99:B694,2,FALSE),\"\")","v":""},null,null,null,null,"","",null,3]
["",null,{"$f":"IFERROR(VLOOKUP(B101,Machine!A100:B695,2,FALSE),\"\")","v":""},null,null,null,null,"","",null,3]
["",null,{"$f":"IFERROR(VLOOKUP(B102,Machine!A101:B696,2,FALSE),\"\")","v":""},null,null,null,null,"","",null,3]
["",null,{"$f":"IFERROR(VLOOKUP(B103,Machine!A102:B697,2,FALSE),\"\")","v":""},null,null,null,null,"","",null,3]
["",null,{"$f":"IFERROR(VLOOKUP(B104,Machine!A103:B698,2,FALSE),\"\")","v":""},null,null,null,null,"","",null,3]
["",null,{"$f":"IFERROR(VLOOKUP(B105,Machine!A104:B699,2,FALSE),\"\")","v":""},null,null,null,null,"","",null,3]
["",null,{"$f":"IFERROR(VLOOKUP(B106,Machine!A105:B700,2,FALSE),\"\")","v":""},null,null,null,null,"","",null,3]
["",null,{"$f":"IFERROR(VLOOKUP(B107,Machine!A106:B701,2,FALSE),\"\")","v":""},null,null,null,null,"","",null,3]
["",null,{"$f":"IFERROR(VLOOKUP(B108,Machine!A107:B702,2,FALSE),\"\")","v":""},null,null,null,null,"","",null,3]
["",null,{"$f":"IFERROR(VLOOKUP(B109,Machine!A108:B703,2,FALSE),\"\")","v":""},null,null,null,null,"","",null,3]
["",null,{"$f":"IFERROR(VLOOKUP(B110,Machine!A109:B704,2,FALSE),\"\")","v":""},null,null,null,null,"","",null,3]
["",null,{"$f":"IFERROR(VLOOKUP(B111,Machine!A110:B705,2,FALSE),\"\")","v":""},null,null,null,null,"","",null,3]
["",null,{"$f":"IFERROR(VLOOKUP(B112,Machine!A111:B706,2,FALSE),\"\")","v":""},null,null,null,null,"","",null,3]
["",null,{"$f":"IFERROR(VLOOKUP(B113,Machine!A112:B707,2,FALSE),\"\")","v":""},null,null,null,null,"","",null,3]
["",null,{"$f":"IFERROR(VLOOKUP(B114,Machine!A113:B708,2,FALSE),\"\")","v":""},null,null,null,null,"","",null,3]
["",null,{"$f":"IFERROR(VLOOKUP(B115,Machine!A114:B709,2,FALSE),\"\")","v":""},null,null,null,null,"","",null,3]
["",null,{"$f":"IFERROR(VLOOKUP(B116,Machine!A115:B710,2,FALSE),\"\")","v":""},null,null,null,null,"","",null,3]
["",null,{"$f":"IFERROR(VLOOKUP(B117,Machine!A116:B711,2,FALSE),\"\")","v":""},null,null,null,null,"","",null,3]
["",null,{"$f":"IFERROR(VLOOKUP(B118,Machine!A117:B712,2,FALSE),\"\")","v":""},null,null,null,null,"","",null,3]
["",null,{"$f":"IFERROR(VLOOKUP(B119,Machine!A118:B713,2,FALSE),\"\")","v":""},null,null,null,null,"","",null,3]
["",null,{"$f":"IFERROR(VLOOKUP(B120,Machine!A119:B714,2,FALSE),\"\")","v":""},null,null,null,null,"","",null,3]
["",null,{"$f":"IFERROR(VLOOKUP(B121,Machine!A120:B715,2,FALSE),\"\")","v":""},null,null,null,null,"","",null,3]
["",null,{"$f":"IFERROR(VLOOKUP(B122,Machine!A121:B716,2,FALSE),\"\")","v":""},null,null,null,null,"","",null,3]
["",null,{"$f":"IFERROR(VLOOKUP(B123,Machine!A122:B717,2,FALSE),\"\")","v":""},null,null,null,null,"","",null,3]
["",null,{"$f":"IFERROR(VLOOKUP(B124,Machine!A123:B718,2,FALSE),\"\")","v":""},null,null,null,null,"","",null,3]
["",null,{"$f":"IFERROR(VLOOKUP(B125,Machine!A124:B719,2,FALSE),\"\")","v":""},null,null,null,null,"","",null,3]
["",null,{"$f":"IFERROR(VLOOKUP(B126,Machine!A125:B720,2,FALSE),\"\")","v":""},null,null,null,null,"","",null,3]
["",null,{"$f":"IFERROR(VLOOKUP(B127,Machine!A126:B721,2,FALSE),\"\")","v":""},null,null,null,null,"","",null,3]
["",null,{"$f":"IFERROR(VLOOKUP(B128,Machine!A127:B722,2,FALSE),\"\")","v":""},null,null,null,null,"","",null,3]
["",null,{"$f":"IFERROR(VLOOKUP(B129,Machine!A128:B723,2,FALSE),\"\")","v":""},null,null,null,null,"","",null,3]
["",null,{"$f":"IFERROR(VLOOKUP(B130,Machine!A129:B724,2,FALSE),\"\")","v":""},null,null,null,null,"","",null,3]
["",null,{"$f":"IFERROR(VLOOKUP(B131,Machine!A130:B725,2,FALSE),\"\")","v":""},null,null,null,null,"","",null,3]
[{"$f":"IF(B132=\"\",\"\",IF(A132=\"\",TODAY(),A132))","v":""},null,{"$f":"IFERROR(VLOOKUP(B132,Machine!A131:B726,2,FALSE),\"\")","v":""},null,null,null,null,{"$f":"IFERROR(ROUND(SUM(1000/D132),2),\"\")","v":""},{"$f":"IFERROR(ROUND(SUM(G132*H132),2),\"\")","v":""},null,3]
["",null,{"$f":"IFERROR(VLOOKUP(B133,Machine!A132:B727,2,FALSE),\"\")","v":""},null,null,null,null,"","",null,3]
["",null,{"$f":"IFERROR(VLOOKUP(B134,Machine!A133:B728,2,FALSE),\"\")","v":""},null,null,null,null,"","",null,3]
["",null,{"$f":"IFERROR(VLOOKUP(B135,Machine!A134:B729,2,FALSE),\"\")","v":""},null,null,null,null,"","",null,3]
["",null,{"$f":"IFERROR(VLOOKUP(B136,Machine!A135:B730,2,FALSE),\"\")","v":""},null,null,null,null,"","",null,3]
["",null,{"$f":"IFERROR(VLOOKUP(B137,Machine!A136:B731,2,FALSE),\"\")","v":""},null,null,null,null,"","",null,3]
["",null,{"$f":"IFERROR(VLOOKUP(B138,Machine!A137:B732,2,FALSE),\"\")","v":""},null,null,null,null,"","",null,3]
["",null,{"$f":"IFERROR(VLOOKUP(B139,Machine!A138:B733,2,FALSE),\"\")","v":""},null,null,null,null,"","",null,3]
["",null,{"$f":"IFERROR(VLOOKUP(B140,Machine!A139:B734,2,FALSE),\"\")","v":""},null,null,null,null,"","",null,3]
["",null,{"$f":"IFERROR(VLOOKUP(B141,Machine!A140:B735,2,FALSE),\"\")","v":""},null,null,null,null,"","",null,3]
["",null,{"$f":"IFERROR(VLOOKUP(B142,Machine!A141:B736,2,FALSE),\"\")","v":""},null,null,null,null,"","",null,3]
["",null,{"$f":"IFERROR(VLOOKUP(B143,Machine!A142:B737,2,FALSE),\"\")","v":""},null,null,null,null,"","",null,3]
["",null,{"$f":"IFERROR(VLOOKUP(B144,Machine!A143:B738,2,FALSE),\"\")","v":""},null,null,null,null,"","",null,3]
["",null,{"$f":"IFERROR(VLOOKUP(B145,Machine!A144:B739,2,FALSE),\"\")","v":""},null,null,null,null,"","",null,3]
["",null,{"$f":"IFERROR(VLOOKUP(B146,Machine!A145:B740,2,FALSE),\"\")","v":""},null,null,null,null,"","",null,3]
["",null,{"$f":"IFERROR(VLOOKUP(B147,Machine!A146:B741,2,FALSE),\"\")","v":""},null,null,null,null,"","",null,3]
["",null,{"$f":"IFERROR(VLOOKUP(B148,Machine!A147:B742,2,FALSE),\"\")","v":""},null,null,null,null,"","",null,3]
["",null,{"$f":"IFERROR(VLOOKUP(B149,Machine!A148:B743,2,FALSE),\"\")","v":""},null,null,null,null,"","",null,3]
["",null,{"$f":"IFERROR(VLOOKUP(B150,Machine!A149:B744,2,FALSE),\"\")","v":""},null,null,null,null,"","",null,3]
["",null,{"$f":"IFERROR(VLOOKUP(B151,Machine!A150:B745,2,FALSE),\"\")","v":""},null,null,null,null,"","",null,3]
["",null,{"$f":"IFERROR(VLOOKUP(B152,Machine!A151:B746,2,FALSE),\"\")","v":""},null,null,null,null,"","",null,3]
["",null,{"$f":"IFERROR(VLOOKUP(B153,Machine!A152:B747,2,FALSE),\"\")","v":""},null,null,null,null,"","",null,3]
["",null,{"$f":"IFERROR(VLOOKUP(B154,Machine!A153:B748,2,FALSE),\"\")","v":""},null,null,null,null,"","",null,3]
["",null,{"$f":"IFERROR(VLOOKUP(B155,Machine!A154:B749,2,FALSE),\"\")","v":""},null,null,null,null,"","",null,3]
["",null,{"$f":"IFERROR(VLOOKUP(B156,Machine!A155:B750,2,FALSE),\"\")","v":""},null,null,null,null,"","",null,3]
["",null,{"$f":"IFERROR(VLOOKUP(B157,Machine!A156:B751,2,FALSE),\"\")","v":""},null,null,null,null,"","",null,3]
["",null,{"$f":"IFERROR(VLOOKUP(B158,Machine!A157:B752,2,FALSE),\"\")","v":""},null,null,null,null,"","",null,3]
["",null,{"$f":"IFERROR(VLOOKUP(B159,Machine!A158:B753,2,FALSE),\"\")","v":""},null,null,null,null,"","",null,3]
["",null,{"$f":"IFERROR(VLOOKUP(B160,Machine!A159:B754,2,FALSE),\"\")","v":""},null,null,null,null,"","",null,3]
["",null,{"$f":"IFERROR(VLOOKUP(B161,Machine!A160:B755,2,FALSE),\"\")","v":""},null,null,null,null,"","",null,3]
["",null,{"$f":"IFERROR(VLOOKUP(B162,Machine!A161:B756,2,FALSE),\"\")","v":""},null,null,null,null,"","",null,3]
["",null,{"$f":"IFERROR(VLOOKUP(B163,Machine!A162:B757,2,FALSE),\"\")","v":""},null,null,null,null,"","",null,3]
["",null,{"$f":"IFERROR(VLOOKUP(B164,Machine!A163:B758,2,FALSE),\"\")","v":""},null,null,null,null,"","",null,3]
["",null,{"$f":"IFERROR(VLOOKUP(B165,Machine!A164:B759,2,FALSE),\"\")","v":""},null,null,null,null,"","",null,3]
["",null,{"$f":"IFERROR(VLOOKUP(B166,Machine!A165:B760,2,FALSE),\"\")","v":""},null,null,null,null,"","",null,3]
["",null,{"$f":"IFERROR(VLOOKUP(B167,Machine!A166:B761,2,FALSE),\"\")","v":""},null,null,null,null,"","",null,3]
["",null,{"$f":"IFERROR(VLOOKUP(B168,Machine!A167:B762,2,FALSE),\"\")","v":""},null,null,null,null,"","",null,3]
["",null,{"$f":"IFERROR(VLOOKUP(B169,Machine!A168:B763,2,FALSE),\"\")","v":""},null,null,null,null,"","",null,3]
["",null,{"$f":"IFERROR(VLOOKUP(B170,Machine!A169:B764,2,FALSE),\"\")","v":""},null,null,null,null,"","",null,3]
["",null,{"$f":"IFERROR(VLOOKUP(B171,Machine!A170:B765,2,FALSE),\"\")","v":""},null,null,null,null,"","",null,3]
["",null,{"$f":"IFERROR(VLOOKUP(B172,Machine!A171:B766,2,FALSE),\"\")","v":""},null,null,null,null,"","",null,3]
["",null,{"$f":"IFERROR(VLOOKUP(B173,Machine!A172:B767,2,FALSE),\"\")","v":""},null,null,null,null,"","",null,3]
["",null,{"$f":"IFERROR(VLOOKUP(B174,Machine!A173:B768,2,FALSE),\"\")","v":""},null,null,null,null,"","",null,3]
["",null,{"$f":"IFERROR(VLOOKUP(B175,Machine!A174:B769,2,FALSE),\"\")","v":""},null,null,null,null,"","",null,3]
["",null,{"$f":"IFERROR(VLOOKUP(B176,Machine!A175:B770,2,FALSE),\"\")","v":""},null,null,null,null,"","",null,3]
["",null,{"$f":"IFERROR(VLOOKUP(B177,Machine!A176:B771,2,FALSE),\"\")","v":""},null,null,null,null,"","",null,3]
["",null,{"$f":"IFERROR(VLOOKUP(B178,Machine!A177:B772,2,FALSE),\"\")","v":""},null,null,null,null,"","",null,3]
["",null,{"$f":"IFERROR(VLOOKUP(B179,Machine!A178:B773,2,FALSE),\"\")","v":""},null,null,null,null,"","",null,3]
["",null,{"$f":"IFERROR(VLOOKUP(B180,Machine!A179:B774,2,FALSE),\"\")","v":""},null,null,null,null,"","",null,3]
["",null,{"$f":"IFERROR(VLOOKUP(B181,Machine!A180:B775,2,FALSE),\"\")","v":""},null,null,null,null,"","",null,3]
["",null,{"$f":"IFERROR(VLOOKUP(B182,Machine!A181:B776,2,FALSE),\"\")","v":""},null,null,null,null,"","",null,3]
["",null,{"$f":"IFERROR(VLOOKUP(B183,Machine!A182:B777,2,FALSE),\"\")","v":""},null,null,null,null,"","",null,3]
["",null,{"$f":"IFERROR(VLOOKUP(B184,Machine!A183:B778,2,FALSE),\"\")","v":""},null,null,null,null,"","",null,3]
["",null,{"$f":"IFERROR(VLOOKUP(B185,Machine!A184:B779,2,FALSE),\"\")","v":""},null,null,null,null,"","",null,3]
["",null,{"$f":"IFERROR(VLOOKUP(B186,Machine!A185:B780,2,FALSE),\"\")","v":""},null,null,null,null,"","",null,3]
["",null,{"$f":"IFERROR(VLOOKUP(B187,Machine!A186:B781,2,FALSE),\"\")","v":""},null,null,null,null,"","",null,3]
["",null,{"$f":"IFERROR(VLOOKUP(B188,Machine!A187:B782,2,FALSE),\"\")","v":""},null,null,null,null,"","",null,3]
["",null,{"$f":"IFERROR(VLOOKUP(B189,Machine!A188:B783,2,FALSE),\"\")","v":""},null,null,null,null,"","",null,3]
["",null,{"$f":"IFERROR(VLOOKUP(B190,Machine!A189:B784,2,FALSE),\"\")","v":""},null,null,null,null,"","",null,3]
["",null,{"$f":"IFERROR(VLOOKUP(B191,Machine!A190:B785,2,FALSE),\"\")","v":""},null,null,null,null,"","",null,3]
["",null,{"$f":"IFERROR(VLOOKUP(B192,Machine!A191:B786,2,FALSE),\"\")","v":""},null,null,null,null,"","",null,3]
["",null,{"$f":"IFERROR(VLOOKUP(B193,Machine!A192:B787,2,FALSE),\"\")","v":""},null,null,null,null,"","",null,3]
["",null,{"$f":"IFERROR(VLOOKUP(B194,Machine!A193:B788,2,FALSE),\"\")","v":""},null,null,null,null,"","",null,3]
["",null,{"$f":"IFERROR(VLOOKUP(B195,Machine!A194:B789,2,FALSE),\"\")","v":""},null,null,null,null,"","",null,3]
[{"$f":"IF(B196=\"\",\"\",IF(A196=\"\",TODAY(),A196))","v":""},null,{"$f":"IFERROR(VLOOKUP(B196,Machine!A195:B790,2,FALSE),\"\")","v":""},null,null,null,null,{"$f":"IFERROR(ROUND(SUM(1000/D196),2),\"\")","v":""},{"$f":"IFERROR(ROUND(SUM(G196*H196),2),\"\")","v":""},null,3]
["",null,{"$f":"IFERROR(VLOOKUP(B197,Machine!A196:B791,2,FALSE),\"\")","v":""},null,null,null,null,"","",null,3]
["",null,{"$f":"IFERROR(VLOOKUP(B198,Machine!A197:B792,2,FALSE),\"\")","v":""},null,null,null,null,"","",null,3]
["",null,{"$f":"IFERROR(VLOOKUP(B199,Machine!A198:B793,2,FALSE),\"\")","v":""},null,null,null,null,"","",null,3]
["",null,{"$f":"IFERROR(VLOOKUP(B200,Machine!A199:B794,2,FALSE),\"\")","v":""},null,null,null,null,"","",null,3]
["",null,{"$f":"IFERROR(VLOOKUP(B201,Machine!A200:B795,2,FALSE),\"\")","v":""},null,null,null,null,"","",null,3]
["",null,{"$f":"IFERROR(VLOOKUP(B202,Machine!A201:B796,2,FALSE),\"\")","v":""},null,null,null,null,"","",null,3]
["",null,{"$f":"IFERROR(VLOOKUP(B203,Machine!A202:B797,2,FALSE),\"\")","v":""},null,null,null,null,"","",null,3]
["",null,{"$f":"IFERROR(VLOOKUP(B204,Machine!A203:B798,2,FALSE),\"\")","v":""},null,null,null,null,"","",null,3]
["",null,{"$f":"IFERROR(VLOOKUP(B205,Machine!A204:B799,2,FALSE),\"\")","v":""},null,null,null,null,"","",null,3]
["",null,{"$f":"IFERROR(VLOOKUP(B206,Machine!A205:B800,2,FALSE),\"\")","v":""},null,null,null,null,"","",null,3]
["",null,{"$f":"IFERROR(VLOOKUP(B207,Machine!A206:B801,2,FALSE),\"\")","v":""},null,null,null,null,"","",null,3]
["",null,{"$f":"IFERROR(VLOOKUP(B208,Machine!A207:B802,2,FALSE),\"\")","v":""},null,null,null,null,"","",null,3]
["",null,{"$f":"IFERROR(VLOOKUP(B209,Machine!A208:B803,2,FALSE),\"\")","v":""},null,null,null,null,"","",null,3]
["",null,{"$f":"IFERROR(VLOOKUP(B210,Machine!A209:B804,2,FALSE),\"\")","v":""},null,null,null,null,"","",null,3]
["",null,{"$f":"IFERROR(VLOOKUP(B211,Machine!A210:B805,2,FALSE),\"\")","v":""},null,null,null,null,"","",null,3]
["",null,{"$f":"IFERROR(VLOOKUP(B212,Machine!A211:B806,2,FALSE),\"\")","v":""},null,null,null,null,"","",null,3]
["",null,{"$f":"IFERROR(VLOOKUP(B213,Machine!A212:B807,2,FALSE),\"\")","v":""},null,null,null,null,"","",null,3]
["",null,{"$f":"IFERROR(VLOOKUP(B214,Machine!A213:B808,2,FALSE),\"\")","v":""},null,null,null,null,"","",null,3]
["",null,{"$f":"IFERROR(VLOOKUP(B215,Machine!A214:B809,2,FALSE),\"\")","v":""},null,null,null,null,"","",null,3]
["",null,{"$f":"IFERROR(VLOOKUP(B216,Machine!A215:B810,2,FALSE),\"\")","v":""},null,null,null,null,"","",null,3]
["",null,{"$f":"IFERROR(VLOOKUP(B217,Machine!A216:B811,2,FALSE),\"\")","v":""},null,null,null,null,"","",null,3]
["",null,{"$f":"IFERROR(VLOOKUP(B218,Machine!A217:B812,2,FALSE),\"\")","v":""},null,null,null,null,"","",null,3]
["",null,{"$f":"IFERROR(VLOOKUP(B219,Machine!A218:B813,2,FALSE),\"\")","v":""},null,null,null,null,"","",null,3]
["",null,{"$f":"IFERROR(VLOOKUP(B220,Machine!A219:B814,2,FALSE),\"\")","v":""},null,null,null,null,"","",null,3]
["",null,{"$f":"IFERROR(VLOOKUP(B221,Machine!A220:B815,2,FALSE),\"\")","v":""},null,null,null,null,"","",null,3]
["",null,{"$f":"IFERROR(VLOOKUP(B222,Machine!A221:B816,2,FALSE),\"\")","v":""},null,null,null,null,"","",null,3]
["",null,{"$f":"IFERROR(VLOOKUP(B223,Machine!A222:B817,2,FALSE),\"\")","v":""},null,null,null,null,"","",null,3]
["",null,{"$f":"IFERROR(VLOOKUP(B224,Machine!A223:B818,2,FALSE),\"\")","v":""},null,null,null,null,"","",null,3]
["",null,{"$f":"IFERROR(VLOOKUP(B225,Machine!A224:B819,2,FALSE),\"\")","v":""},null,null,null,null,"","",null,3]
["",null,{"$f":"IFERROR(VLOOKUP(B226,Machine!A225:B820,2,FALSE),\"\")","v":""},null,null,null,null,"","",null,3]
["",null,{"$f":"IFERROR(VLOOKUP(B227,Machine!A226:B821,2,FALSE),\"\")","v":""},null,null,null,null,"","",null,3]
["",null,{"$f":"IFERROR(VLOOKUP(B228,Machine!A227:B822,2,FALSE),\"\")","v":""},null,null,null,null,"","",null,3]
["",null,{"$f":"IFERROR(VLOOKUP(B229,Machine!A228:B823,2,FALSE),\"\")","v":""},null,null,null,null,"","",null,3]
["",null,{"$f":"IFERROR(VLOOKUP(B230,Machine!A229:B824,2,FALSE),\"\")","v":""},null,null,null,null,"","",null,3]
["",null,{"$f":"IFERROR(VLOOKUP(B231,Machine!A230:B825,2,FALSE),\"\")","v":""},null,null,null,null,"","",null,3]
["",null,{"$f":"IFERROR(VLOOKUP(B232,Machine!A231:B826,2,FALSE),\"\")","v":""},null,null,null,null,"","",null,3]
["",null,{"$f":"IFERROR(VLOOKUP(B233,Machine!A232:B827,2,FALSE),\"\")","v":""},null,null,null,null,"","",null,3]
["",null,{"$f":"IFERROR(VLOOKUP(B234,Machine!A233:B828,2,FALSE),\"\")","v":""},null,null,null,null,"","",null,3]
["",null,{"$f":"IFERROR(VLOOKUP(B235,Machine!A234:B829,2,FALSE),\"\")","v":""},null,null,null,null,"","",null,3]
["",null,{"$f":"IFERROR(VLOOKUP(B236,Machine!A235:B830,2,FALSE),\"\")","v":""},null,null,null,null,"","",null,3]
["",null,{"$f":"IFERROR(VLOOKUP(B237,Machine!A236:B831,2,FALSE),\"\")","v":""},null,null,null,null,"","",null,3]
["",null,{"$f":"IFERROR(VLOOKUP(B238,Machine!A237:B832,2,FALSE),\"\")","v":""},null,null,null,null,"","",null,3]
["",null,{"$f":"IFERROR(VLOOKUP(B239,Machine!A238:B833,2,FALSE),\"\")","v":""},null,null,null,null,"","",null,3]
["",null,{"$f":"IFERROR(VLOOKUP(B240,Machine!A239:B834,2,FALSE),\"\")","v":""},null,null,null,null,"","",null,3]
["",null,{"$f":"IFERROR(VLOOKUP(B241,Machine!A240:B835,2,FALSE),\"\")","v":""},null,null,null,null,"","",null,3]
["",null,{"$f":"IFERROR(VLOOKUP(B242,Machine!A241:B836,2,FALSE),\"\")","v":""},null,null,null,null,"","",null,3]
["",null,{"$f":"IFERROR(VLOOKUP(B243,Machine!A242:B837,2,FALSE),\"\")","v":""},null,null,null,null,"","",null,3]
["",null,{"$f":"IFERROR(VLOOKUP(B244,Machine!A243:B838,2,FALSE),\"\")","v":""},null,null,null,null,"","",null,3]
["",null,{"$f":"IFERROR(VLOOKUP(B245,Machine!A244:B839,2,FALSE),\"\")","v":""},null,null,null,null,"","",null,3]
["",null,{"$f":"IFERROR(VLOOKUP(B246,Machine!A245:B840,2,FALSE),\"\")","v":""},null,null,null,null,"","",null,3]
["",null,{"$f":"IFERROR(VLOOKUP(B247,Machine!A246:B841,2,FALSE),\"\")","v":""},null,null,null,null,"","",null,3]
["",null,{"$f":"IFERROR(VLOOKUP(B248,Machine!A247:B842,2,FALSE),\"\")","v":""},null,null,null,null,"","",null,3]
["",null,{"$f":"IFERROR(VLOOKUP(B249,Machine!A248:B843,2,FALSE),\"\")","v":""},null,null,null,null,"","",null,3]
["",null,{"$f":"IFERROR(VLOOKUP(B250,Machine!A249:B844,2,FALSE),\"\")","v":""},null,null,null,null,"","",null,3]
[]
[]
[]
[]
[]
[]
[]
[]
[]
[]
[]
[]
[]
[]
[]
[]
[]
[]
[]
[]
[]
[]
[]
[]
[]
[]
[]
[]
[]
[]
[]
[]
[]
[]
[]
[]
[]
[]
[]
[]
[]
[]
[]
[]
[]
[]
[]
[]
[]
[]
[]
[]
[]
[]
[]
[]
[]
[]
[]
[]
[]
[]
[]
[]
[]
[]
[]
[]
[]
[]
[]
[]
[]
[]
[]
[]
[]
[]
[]
[]
[]
[]
[]
[]
[]
[]
[]
[]
[]
[]
[]
[]
[]
[]
[]
[]
[]
[]
[]
[]
[]
[]
[]
[]
[]
[]
[]
[]
[]
[]
[]
[]
[]
[]
[]
[]
[]
[]
[]
[]
[]
[]
[]
[]
[]
[]
[]
[]
[]
[]
[]
[]
[]
[]
[]
[]
[]
[]
[]
[]
[]
[]
[]
[]
[]
[]
[]
[]
[]
[null,"Machine number","Machine Name",null,0.05,"Black ",null,null,null,null,null,"منصور محمد منصور"]
[null,1,"Crosha",null,0.06,"White",null,null,null,null,null,"علي مراد حسن"]
[null,2,"Crosha",null,7.0000000000000007E-2,"Black&White",null,null,null,null,null,"ابراهيم محمود ابراهيم"]
[null,3,"Crosha",null,0.08,"A prominent Black",null,null,null,null,null,"مسعد رمزي مسعد"]
[null,4,"Crosha",null,0.09,"A prominent White",null,null,null,null,null,"عادل عزمي شنودة"]
[null,5,"Crosha",null,0.1,null,null,null,null,null,null,"صبحي محمد محمود"]
[null,6,"Crosha",null,0.11,null,null,null,null,null,null,"السيد محمد عبد العال"]
[null,7,"Crosha",null,0.12,null,null,null,null,null,null,"عادل سيف الله السيد"]
[null,8,"Crosha",null,0.13,null,null,null,null,null,null,"خالد السيد عبد القادر"]
[null,9,"Crosha",null,0.14000000000000001,null,null,null,null,null,null,"عادل صادق بشير"]
[null,10,"Crosha",null,0.15,null,null,null,null,null,null,"روماني عطية حبشي"]
[null,11,"Crosha",null,0.16,null,null,null,null,null,null,"احمد صادق توفيق"]
[null,12,"Crosha",null,0.17,null,null,null,null,null,null,"دينا مجدي ابراهيم"]
[null,13,"Crosha",null,0.18,null,null,null,null,null,null,"علي فرج على محمد"]
[null,14,"Crosha",null,0.19,null,null,null,null,null,null,"بوسي السيد عبد المنعم"]
[null,15,"Crosha",null,0.2,null,null,null,null,null,null,"محمد محمد عبد الوهاب"]
[null,16,"Crosha",null,0.21,null,null,null,null,null,null,"سعيد الليثي جاب الله"]
[null,17,"Crosha",null,0.22,null,null,null,null,null,null,"احمد عبد الظاهر"]
[null,18,"Crosha",null,0.23,null,null,null,null,null,null,"مصطفى عبد النبي مصطفى"]
[null,19,"Crosha",null,0.24,null,null,null,null,null,null,"ابراهيم صبحي محمد السيد"]
[null,20,"Crosha",null,0.25,null,null,null,null,null,null,"خميس حسن حسنين"]
[null,21,"Crosha",null,0.26,null,null,null,null,null,null,"محمد حسني حسن"]
[null,22,"Crosha",null,0.27,null,null,null,null,null,null,"محمد عادل محمد محمد"]
[null,23,"Crosha",null,0.28000000000000003,null,null,null,null,null,null,"السيد عبد الحميد اسماعيل"]
[null,24,"Crosha",null,0.28999999999999998,null,null,null,null,null,null,"ابراهيم محمد فتوح"]
[null,25,"Crosha",null,0.3,null,null,null,null,null,null,"عمرو محمد عبد الجليل"]
[null,26,"Crosha",null,0.31,null,null,null,null,null,null,"خالد مصطفى العوضي"]
[null,27,"Crosha",null,0.32,null,null,null,null,null,null,"حمادة احمد على النجار"]
[null,28,"Crosha",null,0.33,null,null,null,null,null,null,"عاطف وليم لبيب"]
[null,29,"Crosha",null,0.34,null,null,null,null,null,null,"عادل وليم نبيل"]
[null,30,"Crosha",null,0.35,null,null,null,null,null,null,"بيشوي عزت شفيق"]
[null,31,"Crosha",null,0.36,null,null,null,null,null,null,"محمد يحيى محمود"]
[null,32,"Crosha",null,0.37,null,null,null,null,null,null,"احمد رمضان احمد"]
[null,33,"Crosha",null,0.38]
[null,34,"Crosha",null,0.39]
[null,35,"Crosha",null,0.4]
[null,36,"Crosha",null,0.41]
[null,37,"Crosha",null,0.42]
[null,38,"Crosha",null,0.43]
[null,39,"Crosha",null,0.44]
[null,40,"Crosha",null,0.45]
[null,41,"Crosha",null,0.46]
[null,42,"Crosha",null,0.47]
[null,43,"Crosha",null,0.48]
[null,44,"Crosha",null,0.49]
[null,45,"Crosha",null,0.5]
[null,46,"Crosha",null,0.51]
[null,47,"Crosha",null,0.52]
[null,48,"Crosha",null,0.53]
[null,49,"Crosha",null,0.54]
[null,50,"Crosha",null,0.55000000000000004]
[null,51,"Crosha",null,0.56000000000000005]
[null,52,"Crosha",null,0.56999999999999995]
[null,53,"Crosha",null,0.57999999999999996]
[null,54,"Crosha",null,0.59]
[null,55,"Crosha",null,0.6]
[null,56,"Crosha",null,0.61]
[null,57,"Crosha",null,0.62]
[null,58,"Crosha",null,0.63]
[null,59,"Crosha",null,0.64]
[null,60,"Crosha",null,0.65]
[null,61,"Crosha",null,0.66]
[null,62,"Crosha",null,0.67]
[null,63,"Crosha",null,0.68]
[null,64,"Crosha",null,0.69]
[null,65,"Crosha",null,0.7]
[null,66,"Crosha",null,0.71]
[null,67,"Crosha",null,0.72]
[null,68,"Crosha",null,0.73]
[null,69,"Crosha",null,0.74]
[null,70,"Crosha",null,0.75]
[null,71,"Crosha",null,0.76]
[null,72,"Crosha",null,0.77]
[null,73,"Crosha",null,0.78]
[null,74,"Crosha",null,0.79]
[null,75,"Crosha",null,0.8]
[null,76,"Crosha",null,0.81]
[null,77,"Crosha",null,0.82]
[null,78,"Crosha",null,0.83]
[null,79,"Crosha",null,0.84]
[null,80,"Crosha",null,0.85]
[null,81,"Crosha",null,0.86]
[null,82,"Crosha",null,0.87]
[null,83,"Crosha",null,0.88]
[null,84,"Crosha",null,0.89]
[null,85,"Crosha",null,0.9]
[null,86,"Crosha",null,0.91]
[null,87,"Crosha",null,0.92]
[null,88,"Crosha",null,0.93]
[null,89,"Crosha",null,0.94]
[null,90,"Crosha",null,0.95]
[null,91,"Crosha",null,0.96]
[null,92,"Crosha",null,0.97]
[null,93,"Crosha",null,0.98]
[null,94,"Crosha",null,0.99]
[null,95,"Crosha",null,1]
[null,96,"Crosha",null,1.01]
[null,97,"Crosha",null,1.02]
[null,98,"Crosha",null,1.03]
[null,99,"Crosha",null,1.04]
[null,100,"Crosha",null,1.05]
[null,101,"Jakar",null,1.06]
[null,102,"Jakar",null,1.07]
[null,103,"Jakar",null,1.08]
[null,104,"Jakar",null,1.0900000000000001]
[null,105,"Jakar",null,1.1000000000000001]
[null,106,"Jakar",null,1.1100000000000001]
[null,107,"Jakar",null,1.1200000000000001]
[null,108,"Jakar",null,1.1299999999999999]
[null,109,"Jakar",null,1.1399999999999999]
[null,110,"Jakar",null,1.1499999999999999]
[null,111,"Jakar",null,1.1599999999999999]
[null,112,"Jakar",null,1.17]
[null,113,"Jakar",null,1.18]
[null,114,"Jakar",null,1.19]
[null,115,"Jakar",null,1.2]
[null,116,"Jakar",null,1.21]
[null,117,"Jakar",null,1.22]
[null,118,"Jakar",null,1.23]
[null,119,"Jakar",null,1.24]
[null,120,"Jakar",null,1.25]
[null,121,"Jakar",null,1.26]
[null,122,"Jakar",null,1.27]
[null,123,"Jakar",null,1.28]
[null,124,"Jakar",null,1.29]
[null,125,"Jakar",null,1.3]
[null,126,"Jakar",null,1.31]
[null,127,"Jakar",null,1.32]
[null,128,"Jakar",null,1.33]
[null,129,"Jakar",null,1.34]
[null,130,"Jakar",null,1.35]
[null,131,"Jakar",null,1.36]
[null,132,"Jakar",null,1.37]
[null,133,"Jakar",null,1.38]
[null,134,"Jakar",null,1.39]
[null,135,"Jakar",null,1.4]
[null,136,"Jakar",null,1.41]
[null,137,"Jakar",null,1.42]
[null,138,"Jakar",null,1.43]
[null,139,"Jakar",null,1.44]
[null,140,"Jakar",null,1.45]
[null,141,"Jakar",null,1.46]
[null,142,"Jakar",null,1.47]
[null,143,"Jakar",null,1.48]
[null,144,"Jakar",null,1.49]
[null,145,"Jakar",null,1.5]
[null,146,"Jakar",null,1.51]
[null,147,"Jakar",null,1.52]
[null,148,"Jakar",null,1.53]
[null,149,"Jakar",null,1.54]
[null,150,"Jakar",null,1.55]
[null,151,"Jakar",null,1.56]
[null,152,"Jakar",null,1.57]
[null,153,"Jakar",null,1.58]
[null,154,"Jakar",null,1.59]
[null,155,"Jakar",null,1.6]
[null,156,"Jakar",null,1.61]
[null,157,"Jakar",null,1.62]
[null,158,"Jakar",null,1.63]
[null,159,"Jakar",null,1.64]
[null,160,"Jakar",null,1.65]
[null,161,"Jakar",null,1.66]
[null,162,"Jakar",null,1.67]
[null,163,"Jakar",null,1.68]
[null,164,"Jakar",null,1.69]
[null,165,"Jakar",null,1.7]
[null,166,"Jakar",null,1.71]
[null,167,"Jakar",null,1.72]
[null,168,"Jakar",null,1.73]
[null,169,"Jakar",null,1.74]
[null,170,"Jakar",null,1.75]
[null,171,"Jakar",null,1.76]
[null,172,"Jakar",null,1.77]
[null,173,"Jakar",null,1.78]
[null,174,"Jakar",null,1.79]
[null,175,"Jakar",null,1.8]
[null,176,"Jakar",null,1.81]
[null,177,"Jakar",null,1.82]
[null,178,"Jakar",null,1.83]
[null,179,"Jakar",null,1.84]
[null,180,"Jakar",null,1.85]
[null,181,"Jakar",null,1.86]
[null,182,"Jakar",null,1.87]
[null,183,"Jakar",null,1.88]
[null,184,"Jakar",null,1.89]
[null,185,"Jakar",null,1.9]
[null,186,"Jakar",null,1.91]
[null,187,"Jakar",null,1.92]
[null,188,"Jakar",null,1.93]
[null,189,"Jakar",null,1.94]
[null,190,"Jakar",null,1.95]
[null,191,"Jakar",null,1.96]
[null,192,"Jakar",null,1.97]
[null,193,"Jakar",null,1.98]
[null,194,"Jakar",null,1.99]
[null,195,"Jakar",null,2]
[null,196,"Jakar",null,2.0099999999999998]
[null,197,"Jakar",null,2.02]
[null,198,"Jakar",null,2.0299999999999998]
[null,199,"Jakar",null,2.04]
[null,200,"Jakar",null,2.0499999999999998]
[null,201,"Jakar",null,2.06]
[null,202,"Jakar",null,2.0699999999999998]
[null,203,"Jakar",null,2.08]
[null,204,"Jakar",null,2.09]
[null,205,"Jakar",null,2.1]
[null,206,"Jakar",null,2.11]
[null,207,"Jakar",null,2.12]
[null,208,"Jakar",null,2.13]
[null,209,"Jakar",null,2.14]
[null,210,"Jakar",null,2.15]
[null,211,"Jakar",null,2.16]
[null,212,"Jakar",null,2.17]
[null,213,"Jakar",null,2.1800000000000002]
[null,214,"Jakar",null,2.19]
[null,215,"Jakar",null,2.2000000000000002]
[null,216,"Jakar",null,2.21]
[null,217,"Jakar",null,2.2200000000000002]
[null,218,"Jakar",null,2.23]
[null,219,"Jakar",null,2.2400000000000002]
[null,220,"Jakar",null,2.25]
[null,221,"Jakar",null,2.2599999999999998]
[null,222,"Jakar",null,2.27]
[null,223,"Jakar",null,2.2799999999999998]
[null,224,"Jakar",null,2.29]
[null,225,"Jakar",null,2.2999999999999998]
[null,226,"Jakar",null,2.31]
[null,227,"Jakar",null,2.3199999999999998]
[null,228,"Jakar",null,2.33]
[null,229,"Jakar",null,2.34]
[null,230,"Jakar",null,2.35]
[null,231,"Jakar",null,2.36]
[null,232,"Jakar",null,2.37]
[null,233,"Jakar",null,2.38]
[null,234,"Jakar",null,2.39]
[null,235,"Jakar",null,2.4]
[null,236,"Jakar",null,2.41]
[null,237,"Jakar",null,2.42]
[null,238,"Jakar",null,2.4300000000000002]
[null,239,"Jakar",null,2.44]
[null,240,"Jakar",null,2.4500000000000002]
[null,241,"Jakar",null,2.46]
[null,242,"Jakar",null,2.4700000000000002]
[null,243,"Jakar",null,2.48]
[null,244,"Jakar",null,2.4900000000000002]
[null,245,"Jakar",null,2.5]
[null,246,"Jakar",null,2.5099999999999998]
[null,247,"Jakar",null,2.52]
[null,248,"Jakar",null,2.5299999999999998]
[null,249,"Jakar",null,2.54]
[null,250,"Jakar",null,2.5499999999999998]
[null,251,"Jakar",null,2.56]
[null,252,"Jakar",null,2.57]
[null,253,"Jakar",null,2.58]
[null,254,"Jakar",null,2.59]
[null,255,"Jakar",null,2.6]
[null,256,"Jakar",null,2.61]
[null,257,"Jakar",null,2.62]
[null,258,"Jakar",null,2.63]
[null,259,"Jakar",null,2.64]
[null,260,"Jakar",null,2.65]
[null,261,"Jakar",null,2.66]
[null,262,"Jakar",null,2.67]
[null,263,"Jakar",null,2.68]
[null,264,"Jakar",null,2.69]
[null,265,"Jakar",null,2.7]
[null,266,"Jakar",null,2.71]
[null,267,"Jakar",null,2.72]
[null,268,"Jakar",null,2.73]
[null,269,"Jakar",null,2.74]
[null,270,"Jakar",null,2.75]
[null,271,"Jakar",null,2.76]
[null,272,"Jakar",null,2.77]
[null,273,"Jakar",null,2.78]
[null,274,"Jakar",null,2.79]
[null,275,"Jakar",null,2.8]
[null,276,"Jakar",null,2.81]
[null,277,"Jakar",null,2.82]
[null,278,"Jakar",null,2.83]
[null,279,"Jakar",null,2.84]
[null,280,"Jakar",null,2.85]
[null,281,"Jakar",null,2.86]
[null,282,"Jakar",null,2.87]
[null,283,"Jakar",null,2.88]
[null,284,"Jakar",null,2.89]
[null,285,"Jakar",null,2.9]
[null,286,"Jakar",null,2.91]
[null,287,"Jakar",null,2.92]
[null,288,"Jakar",null,2.93]
[null,289,"Jakar",null,2.94]
[null,290,"Jakar",null,2.95]
[null,291,"Jakar",null,2.96]
[null,292,"Jakar",null,2.97]
[null,293,"Jakar",null,2.98]
[null,294,"Jakar",null,2.99]
[null,295,"Jakar",null,3]
[null,296,"Jakar",null,3.01]
[null,297,"Jakar",null,3.02]
[null,298,"Jakar",null,3.03]
[null,299,"Jakar",null,3.04]
[null,300,"Jakar",null,3.05]
[null,301,"Electric iron",null,3.06]
[null,302,"Electric iron",null,3.07]
[null,303,"Electric iron",null,3.08]
[null,304,"Electric iron",null,3.09]
[null,305,"Electric iron",null,3.1]
[null,306,"Electric iron",null,3.11]
[null,307,"Electric iron",null,3.12]
[null,308,"Electric iron",null,3.13]
[null,309,"Electric iron",null,3.14]
[null,310,"Electric iron",null,3.15]
[null,311,"Electric iron",null,3.16]
[null,312,"Electric iron",null,3.17]
[null,313,"Electric iron",null,3.18]
[null,314,"Electric iron",null,3.19]
[null,315,"Electric iron",null,3.2]
[null,null,null,null,3.21]
[null,null,null,null,3.22]
[null,null,null,null,3.23]
[null,null,null,null,3.24]
[null,null,null,null,3.25]
[null,null,null,null,3.26]
[null,null,null,null,3.27]
[null,null,null,null,3.28]
[null,null,null,null,3.29]
[null,null,null,null,3.3]
[null,null,null,null,3.31]
[null,null,null,null,3.32]
[null,null,null,null,3.33]
[null,null,null,null,3.34]
[null,null,null,null,3.35]
[null,null,null,null,3.36]
[null,null,null,null,3.37]
[null,null,null,null,3.38]
[null,null,null,null,3.39]
[null,null,null,null,3.4]
[null,null,null,null,3.41]
[null,null,null,null,3.42]
[null,null,null,null,3.43]
[null,null,null,null,3.44]
[null,null,null,null,3.45]
[null,null,null,null,3.46]
[null,null,null,null,3.47]
[null,null,null,null,3.48]
[null,null,null,null,3.49]
[null,null,null,null,3.5]
[null,null,null,null,3.51]
[null,null,null,null,3.52]
[null,null,null,null,3.53]
[null,null,null,null,3.54]
[null,null,null,null,3.55]
[null,null,null,null,3.56]
[null,null,null,null,3.57]
[null,null,null,null,3.58]
[null,null,null,null,3.59]
[null,null,null,null,3.6]
[null,null,null,null,3.61]
[null,null,null,null,3.62]
[null,null,null,null,3.63]
[null,null,null,null,3.64]
[null,null,null,null,3.65]
[null,null,null,null,3.66]
[null,null,null,null,3.67]
[null,null,null,null,3.68]
[null,null,null,null,3.69]
[null,null,null,null,3.7]
[null,null,null,null,3.71]
[null,null,null,null,3.72]
[null,null,null,null,3.73]
[null,null,null,null,3.74]
[null,null,null,null,3.75]
[null,null,null,null,3.76]
[null,null,null,null,3.77]
[null,null,null,null,3.78]
[null,null,null,null,3.79]
[null,null,null,null,3.8]
[null,null,null,null,3.81]
[null,null,null,null,3.82]
[null,null,null,null,3.83]
[null,null,null,null,3.84]
[null,null,null,null,3.85]
[null,null,null,null,3.86]
[null,null,null,null,3.87]
[null,null,null,null,3.88]
[null,null,null,null,3.89]
[null,null,null,null,3.9]
[null,null,null,null,3.91]
[null,null,null,null,3.92]
[null,null,null,null,3.93]
[null,null,null,null,3.94]
[null,null,null,null,3.95]
[null,null,null,null,3.96]
[null,null,null,null,3.97]
[null,null,null,null,3.98]
[null,null,null,null,3.99]
[null,null,null,null,4]
[null,null,null,null,4.01]
[null,null,null,null,4.0199999999999996]
[null,null,null,null,4.03]
[null,null,null,null,4.04]
[null,null,null,null,4.05]
[null,null,null,null,4.0599999999999996]
[null,null,null,null,4.07]
[null,null,null,null,4.08]
[null,null,null,null,4.09]
[null,null,null,null,4.0999999999999996]
[null,null,null,null,4.1100000000000003]
[null,null,null,null,4.12]
[null,null,null,null,4.13]
[null,null,null,null,4.1399999999999997]
[null,null,null,null,4.1500000000000004]
[null,null,null,null,4.16]
[null,null,null,null,4.17]
[null,null,null,null,4.18]
[null,null,null,null,4.1900000000000004]
[null,null,null,null,4.2]
[null,null,null,null,4.21]
[null,null,null,null,4.22]
[null,null,null,null,4.2300000000000004]
[null,null,null,null,4.24]
[null,null,null,null,4.25]
[null,null,null,null,4.26]
[null,null,null,null,4.2699999999999996]
[null,null,null,null,4.28]
[null,null,null,null,4.29]
[null,null,null,null,4.3]
[null,null,null,null,4.3099999999999996]
[null,null,null,null,4.32]
[null,null,null,null,4.33]
[null,null,null,null,4.34]
[null,null,null,null,4.3499999999999996]
[null,null,null,null,4.3600000000000003]
[null,null,null,null,4.37]
[null,null,null,null,4.38]
[null,null,null,null,4.3899999999999997]
[null,null,null,null,4.4000000000000004]
[null,null,null,null,4.41]
[null,null,null,null,4.42]
[null,null,null,null,4.43]
[null,null,null,null,4.4400000000000004]
[null,null,null,null,4.45]
[null,null,null,null,4.46]
[null,null,null,null,4.47]
[null,null,null,null,4.4800000000000004]
[null,null,null,null,4.49]
[null,null,null,null,4.5]
[null,null,null,null,4.51]
[null,null,null,null,4.5199999999999996]
[null,null,null,null,4.53]
[null,null,null,null,4.54]
[null,null,null,null,4.55]
[null,null,null,null,4.5599999999999996]
[null,null,null,null,4.57]
[null,null,null,null,4.58]
[null,null,null,null,4.59]
[null,null,null,null,4.5999999999999996]
[null,null,null,null,4.6100000000000003]
[null,null,null,null,4.62]
[null,null,null,null,4.63]
[null,null,null,null,4.6399999999999997]
[null,null,null,null,4.6500000000000004]
[null,null,null,null,4.66]
[null,null,null,null,4.67]
[null,null,null,null,4.68]
[null,null,null,null,4.6900000000000004]
[null,null,null,null,4.7]
[null,null,null,null,4.71]
[null,null,null,null,4.72]
[null,null,null,null,4.7300000000000004]
[null,null,null,null,4.74]
[null,null,null,null,4.75]
[null,null,null,null,4.76]
[null,null,null,null,4.7699999999999996]
[null,null,null,null,4.78]
[null,null,null,null,4.79]
[null,null,null,null,4.8]
[null,null,null,null,4.8099999999999996]
[null,null,null,null,4.82]
[null,null,null,null,4.83]
[null,null,null,null,4.84]
[null,null,null,null,4.8499999999999996]
[null,null,null,null,4.8600000000000003]
[null,null,null,null,4.87]
[null,null,null,null,4.88]
[null,null,null,null,4.8899999999999997]
[null,null,null,null,4.9000000000000004]
[null,null,null,null,4.91]
[null,null,null,null,4.92]
[null,null,null,null,4.93]
[null,null,null,null,4.9400000000000004]
[null,null,null,null,4.95]
[null,null,null,null,4.96]
[null,null,null,null,4.97]
[null,null,null,null,4.9800000000000004]
[null,null,null,null,4.99]
[null,null,null,null,5]
[null,null,null,null,5.01]
[null,null,null,null,5.0199999999999996]
[null,null,null,null,5.03]
[null,null,null,null,5.04]
[null,null,null,null,5.05]
[null,null,null,null,5.0599999999999996]
[null,null,null,null,5.07]
[null,null,null,null,5.08]
[null,null,null,null,5.09]
[null,null,null,null,5.0999999999999996]
[null,null,null,null,5.1100000000000003]
[null,null,null,null,5.12]
[null,null,null,null,5.13]
[null,null,null,null,5.14]
[null,null,null,null,5.15]
[null,null,null,null,5.16]
[null,null,null,null,5.17]
[null,null,null,null,5.18]
[null,null,null,null,5.19]
[null,null,null,null,5.2]
[null,null,null,null,5.21]
[null,null,null,null,5.22]
[null,null,null,null,5.23]
[null,null,null,null,5.24]
[null,null,null,null,5.25]
[null,null,null,null,5.26]
[null,null,null,null,5.27]
[null,null,null,null,5.28]
[null,null,null,null,5.29]
[null,null,null,null,5.3]
[null,null,null,null,5.31]
[null,null,null,null,5.32]
[null,null,null,null,5.33]
[null,null,null,null,5.34]
[null,null,null,null,5.35]
[null,null,null,null,5.36]
[null,null,null,null,5.37]
[null,null,null,null,5.38]
[null,null,null,null,5.39]
[null,null,null,null,5.4]
[null,null,null,null,5.41]
[null,null,null,null,5.42]
[null,null,null,null,5.43]
[null,null,null,null,5.44]
[null,null,null,null,5.45]
[null,null,null,null,5.46]
[null,null,null,null,5.47]
[null,null,null,null,5.48]
[null,null,null,null,5.49]
[null,null,null,null,5.5]
[null,null,null,null,5.51]
[null,null,null,null,5.52]
[null,null,null,null,5.53]
[null,null,null,null,5.54]
[null,null,null,null,5.55]
[null,null,null,null,5.56]
[null,null,null,null,5.57]
[null,null,null,null,5.58]
[null,null,null,null,5.59]
[null,null,null,null,5.6]
[null,null,null,null,5.61]
[null,null,null,null,5.62]
[null,null,null,null,5.63]
[null,null,null,null,5.64]
[null,null,null,null,5.65]
[null,null,null,null,5.66]
[null,null,null,null,5.67]
[null,null,null,null,5.68]
[null,null,null,null,5.69]
[null,null,null,null,5.7]
[null,null,null,null,5.71]
[null,null,null,null,5.72]
[null,null,null,null,5.73]
[null,null,null,null,5.74]
[null,null,null,null,5.75]
[null,null,null,null,5.76]
[null,null,null,null,5.77]
[null,null,null,null,5.78]
[null,null,null,null,5.79]
[null,null,null,null,5.8]
[null,null,null,null,5.81]
[null,null,null,null,5.82]
[null,null,null,null,5.83]
[null,null,null,null,5.84]
[null,null,null,null,5.85]
[null,null,null,null,5.86]
[null,null,null,null,5.87]
[null,null,null,null,5.88]
[null,null,null,null,5.89]
[null,null,null,null,5.9]
[null,null,null,null,5.91]
[null,null,null,null,5.92]
[null,null,null,null,5.93]
[null,null,null,null,5.94]
[null,null,null,null,5.95]
[null,null,null,null,5.96]
[null,null,null,null,5.97]
[null,null,null,null,5.98]
[null,null,null,null,5.99]
[null,null,null,null,6]

{"sheet":"Total","index":4,"n_rows":8,"n_cols":51,"rows_kept":8,"cut":false,"hidden":false,"merged":[[1,0,1,11],[0,21,0,23],[0,27,0,28],[0,30,0,31],[0,34,0,36],[0,1,0,2],[0,4,0,5],[0,8,0,10],[0,14,0,15],[0,17,0,18],[1,13,1,24],[1,26,1,37]]}
["From Date",null,null,"To Date",null,null,"Machine No.",null,"Name of the employee",null,null,null,null,"From Date",null,null,"To Date",null,null,"Machine No.",null,"Name of the employee",null,null,null,null,"From Date",null,null,"To Date",null,null,"Machine No.",null,"Name of the employee",null,null,null,null,null,null,null,null,null,null,null,null,"Date","Date","Machine No."," name of the employee"]
[null,null,null,null,null,null,null,null,null,null,null,null,null,null,null,null,null,null,null,null,null,null,null,null,null,null,null,null,null,null,null,null,null,null,null,null,null,null,null,null,null,null,null,null,null,null,null,{"$f":"\">=\"&B1","v":">="},{"$f":"\"<=\"&E1","v":"<="},{"$f":"H1","v":0},{"$f":"L1","v":0}]
["Date","Machine No.","Machine Name","Gm/ML","Size MM"," Drawing  "," KG.\\ day","ML X KG."," ML.\\ day","Color","Shift"," name of the employee",null,"Date","Machine No.","Machine Name","Gm/ML","Size MM"," Drawing  "," KG.\\ day","ML X KG."," ML.\\ day","Color","Shift"," name of the employee",null,"Date","Machine No.","Machine Name","Gm/ML","Size MM"," Drawing  "," KG.\\ day","ML X KG."," ML.\\ day","Color","Shift"," name of the employee"]
[null,null,null,null,null,null,null,null,null,null,null,null,null,null,null,null,null,null,null,null,null,null,null,null,null,null,null,null,null,null,null,null,null,null,null,null,null,null,null,null,null,null,null,null,null,null,null,"Date","Date","Machine No."," name of the employee"]
[null,null,null,null,null,null,null,null,null,null,null,null,null,null,null,null,null,null,null,null,null,null,null,null,null,null,null,null,null,null,null,null,null,null,null,null,null,null,null,null,null,null,null,null,null,null,null,{"$f":"\">=\"&O1","v":">="},{"$f":"\"<=\"&R1","v":"<="},{"$f":"U1","v":0},{"$f":"Y1","v":0}]
[]
[null,null,null,null,null,null,null,null,null,null,null,null,null,null,null,null,null,null,null,null,null,null,null,null,null,null,null,null,null,null,null,null,null,null,null,null,null,null,null,null,null,null,null,null,null,null,null,"Date","Date","Machine No."," name of the employee"]
[null,null,null,null,null,null,null,null,null,null,null,null,null,null,null,null,null,null,null,null,null,null,null,null,null,null,null,null,null,null,null,null,null,null,null,null,null,null,null,null,null,null,null,null,null,null,null,{"$f":"\">=\"&AB1","v":">="},{"$f":"\"<=\"&AE1","v":"<="},{"$f":"AH1","v":0},{"$f":"AL1","v":0}]

{"sheet":"Report","index":5,"n_rows":0,"n_cols":0,"rows_kept":0,"cut":false,"hidden":false,"merged":[]}